Workbook

Sheet 20210816
A1: Pl | B1: Speler | C1: Netto | D1: Bruto | E1: Moyenne | F1: Ronde 1 | J1: Ronde 2 | N1: Ronde 3 | R1: Ronde 4 | V1: Hoogste
F2: p | G2: b | H2: m | I2: c | J2: p | K2: b | L2: m | M2: c | N2: p | O2: b | P2: m | Q2: c | R2: p | S2: b | T2: m | U2: c | V2: serie
A3: =A2+1 -> 1 | B3: Hans B | C3: =D3/E3 -> 1.063532414 | D3: =IF(G3>0,(F3+J3+N3+R3)/(G3+K3+O3+S3),0) -> 0.8382352941 | E3: 0.788161492 | F3: 24 | G3: 15 | H3: =IF(G3>0,F3/G3,0) -> 1.6 | I3: =H3/E3 -> 2.030040818 | J3: 11 | K3: 14 | L3: =IF(K3>0,J3/K3,0) -> 0.7857142857 | M3: =L3/E3 -> 0.9968950446 | N3: 17 | O3: 22 | P3: =IF(O3>0,N3/O3,0) -> 0.7727272727 | Q3: =P3/E3 -> 0.9804174405 | R3: 5 | S3: 17 | T3: =IF(S3>0,R3/S3,0) -> 0.2941176471 | U3: =T3/E3 -> 0.373169268 | V3: 5 | W3: =V3/E3 -> 6.343877556
A4: 2 | B4: Peter B | C4: =D4/E4 -> 1.059159177 | D4: =IF(G4>0,(F4+J4+N4+R4)/(G4+K4+O4+S4),0) -> 0.8192771084 | E4: 0.7735165082 | F4: 11 | G4: 15 | H4: =IF(G4>0,F4/G4,0) -> 0.7333333333 | I4: =H4/E4 -> 0.9480513028 | J4: 22 | K4: 25 | L4: =IF(K4>0,J4/K4,0) -> 0.88 | M4: =L4/E4 -> 1.137661563 | N4: 11 | O4: 23 | P4: =IF(O4>0,N4/O4,0) -> 0.4782608696 | Q4: =P4/E4 -> 0.6182943279 | R4: 24 | S4: 20 | T4: =IF(S4>0,R4/S4,0) -> 1.2 | U4: =T4/E4 -> 1.551356677 | V4: 6 | W4: =V4/E4 -> 7.756783387
A5: 3 | B5: Emie | C5: =D5/E5 -> 0.994875178 | D5: =IF(G5>0,(F5+J5+N5+R5)/(G5+K5+O5+S5),0) -> 0.9473684211 | E5: 0.9522485252 | F5: 18 | G5: 24 | H5: =IF(G5>0,F5/G5,0) -> 0.75 | I5: =H5/E5 -> 0.7876095159 | J5: 37 | K5: 27 | L5: =IF(K5>0,J5/K5,0) -> 1.37037037 | M5: =L5/E5 -> 1.439088992 | N5: 21 | O5: 23 | P5: =IF(O5>0,N5/O5,0) -> 0.9130434783 | Q5: =P5/E5 -> 0.9588289759 | R5: 14 | S5: 21 | T5: =IF(S5>0,R5/S5,0) -> 0.6666666667 | U5: =T5/E5 -> 0.7000973475 | V5: 6 | W5: =V5/E5 -> 6.300876127
A6: 4 | B6: Joep | C6: =D6/E6 -> 0.8783581634 | D6: =IF(K6>0,(F6+J6+N6+R6)/(G6+K6+O6+S6),0) -> 0.9347826087 | E6: 1.064238539 | H6: =IF(G6>0,F6/G6,0) -> 0 | I6: =H6/E6 -> 0 | J6: 16 | K6: 25 | L6: =IF(K6>0,J6/K6,0) -> 0.64 | M6: =L6/E6 -> 0.6013689379 | P6: =IF(O6>0,N6/O6,0) -> 0 | Q6: =P6/E6 -> 0 | R6: 27 | S6: 21 | T6: =IF(S6>0,R6/S6,0) -> 1.285714286 | U6: =T6/E6 -> 1.208107241 | V6: 6 | W6: =V6/E6 -> 5.637833793
A7: 5 | B7: Peter D | C7: =D7/E7 -> 0.8607830177 | D7: =IF(G7>0,(F7+J7+N7+R7)/(G7+K7+O7+S7),0) -> 0.8974358974 | E7: 1.042580858 | F7: 13 | G7: 24 | H7: =IF(G7>0,F7/G7,0) -> 0.5416666667 | I7: =H7/E7 -> 0.5195440357 | J7: 14 | K7: 14 | L7: =IF(K7>0,J7/K7,0) -> 1 | M7: =L7/E7 -> 0.9591582197 | N7: 15 | O7: 20 | P7: =IF(O7>0,N7/O7,0) -> 0.75 | Q7: =P7/E7 -> 0.7193686648 | R7: 28 | S7: 20 | T7: =IF(S7>0,R7/S7,0) -> 1.4 | U7: =T7/E7 -> 1.342821508 | V7: 4 | W7: =V7/E7 -> 3.836632879
A8: 6 | B8: Hans dW | C8: =D8/E8 -> 0.8481287423 | D8: =IF(G8>0,(F8+J8+N8+R8)/(G8+K8+O8+S8),0) -> 0.4235294118 | E8: 0.4993692474 | F8: 13 | G8: 20 | H8: =IF(G8>0,F8/G8,0) -> 0.65 | I8: =H8/E8 -> 1.301642028 | J8: 10 | K8: 28 | L8: =IF(K8>0,J8/K8,0) -> 0.3571428571 | M8: =L8/E8 -> 0.7151879276 | N8: 9 | O8: 20 | P8: =IF(O8>0,N8/O8,0) -> 0.45 | Q8: =P8/E8 -> 0.9011367887 | R8: 4 | S8: 17 | T8: =IF(S8>0,R8/S8,0) -> 0.2352941176 | U8: =T8/E8 -> 0.4711826346 | V8: 4 | W8: =V8/E8 -> 8.010104789
A9: 7 | B9: Jan | C9: =D9/E9 -> 0.796564044 | D9: =IF(G9>0,(F9+J9+N9+R9)/(G9+K9+O9+S9),0) -> 1.557142857 | E9: 1.954824435 | F9: 23 | G9: 20 | H9: =IF(G9>0,F9/G9,0) -> 1.15 | I9: =H9/E9 -> 0.5882881242 | J9: 18 | K9: 14 | L9: =IF(K9>0,J9/K9,0) -> 1.285714286 | M9: =L9/E9 -> 0.6577134308 | N9: 49 | O9: 16 | P9: =IF(O9>0,N9/O9,0) -> 3.0625 | Q9: =P9/E9 -> 1.566636853 | R9: 19 | S9: 20 | T9: =IF(S9>0,R9/S9,0) -> 0.95 | U9: =T9/E9 -> 0.4859771461 | V9: 9 | W9: =V9/E9 -> 4.603994016
A10: 8 | B10: Hans M | C10: =D10/E10 -> 0.6305410089 | D10: =IF(G10>0,(F10+J10+N10+R10)/(G10+K10+O10+S10),0) -> 0.404494382 | E10: 0.641503687 | F10: 15 | G10: 29 | H10: =IF(G10>0,F10/G10,0) -> 0.5172413793 | I10: =H10/E10 -> 0.8062952557 | J10: 8 | K10: 27 | L10: =IF(K10>0,J10/K10,0) -> 0.2962962963 | M10: =L10/E10 -> 0.4618777761 | N10: 11 | O10: 16 | P10: =IF(O10>0,N10/O10,0) -> 0.6875 | Q10: =P10/E10 -> 1.071700777 | R10: 2 | S10: 17 | T10: =IF(S10>0,R10/S10,0) -> 0.1176470588 | U10: =T10/E10 -> 0.1833926464 | V10: 4 | W10: =V10/E10 -> 6.235349977
A11: 9 | B11: Ed | C11: =D11/E11 -> 0.5176541559 | D11: =IF(G11>0,(F11+J11+N11+R11)/(G11+K11+O11+S11),0) -> 0.3333333333 | E11: 0.6439305655 | F11: 14 | G11: 29 | H11: =IF(G11>0,F11/G11,0) -> 0.4827586207 | I11: =H11/E11 -> 0.7497060189 | J11: 9 | K11: 28 | L11: =IF(K11>0,J11/K11,0) -> 0.3214285714 | M11: =L11/E11 -> 0.4991665075 | N11: 4 | O11: 22 | P11: =IF(O11>0,N11/O11,0) -> 0.1818181818 | Q11: =P11/E11 -> 0.2823568123 | R11: 6 | S11: 20 | T11: =IF(S11>0,R11/S11,0) -> 0.3 | U11: =T11/E11 -> 0.4658887403 | V11: 4 | W11: =V11/E11 -> 6.211849871
A12: 10 | B12: George | C12: =D12/E12 -> 0 | D12: =IF(G12>0,(F12+J12+N12+R12)/(G12+K12+O12+S12),0) -> 0 | E12: 0.6955998932 | H12: =IF(G12>0,F12/G12,0) -> 0 | I12: =H12/E12 -> 0 | L12: =IF(K12>0,J12/K12,0) -> 0 | M12: =L12/E12 -> 0 | P12: =IF(O12>0,N12/O12,0) -> 0 | Q12: =P12/E12 -> 0 | T12: =IF(S12>0,R12/S12,0) -> 0 | U12: =T12/E12 -> 0 | W12: =V12/E12 -> 0
A13: 11 | B13: Cuma | C13: 0 | D13: 0 | E13: 0.6470588235 | H13: 0 | I13: 0 | L13: 0 | M13: 0 | P13: 0 | Q13: 0 | T13: 0 | U13: 0 | W13: 0
A14: =A13+1 -> 12 | B14: Hein | C14: 0 | D14: 0 | E14: 0.625 | H14: 0 | I14: 0 | L14: 0 | M14: 0 | P14: 0 | Q14: 0 | T14: 0 | U14: 0 | W14: 0
A15: =A14+1 -> 13 | B15: Ton | C15: 0 | D15: 0 | E15: 0.5189451758 | H15: 0 | I15: 0 | L15: 0 | M15: 0 | P15: 0 | Q15: 0 | T15: 0 | U15: 0 | W15: 0
C16: =AVERAGE(C3:C11) -> 0.8499551001 | D16: =AVERAGE(D3:D11) -> 0.7950665904 | E16: =AVERAGE(E3:E14) -> 0.8606693812 | H16: =AVERAGE(H3:H14) -> 0.5354166667 | L16: =AVERAGE(L3:L14) -> 0.5780555556 | P16: =AVERAGE(P3:P14) -> 0.6079874835 | T16: =AVERAGE(T3:T14) -> 0.5374533147

Sheet 20191209
A1: Pl | B1: Speler | C1: Netto | D1: Bruto | E1: Moyenne | F1: Ronde 1 | J1: Ronde 2 | N1: Ronde 3 | R1: Ronde 4 | V1: Hoogste
F2: p | G2: b | H2: m | I2: c | J2: p | K2: b | L2: m | M2: c | N2: p | O2: b | P2: m | Q2: c | R2: p | S2: b | T2: m | U2: c | V2: serie
A3: =A2+1 -> 1 | B3: Hans dW | C3: =D3/E3 -> 1.24068013 | D3: =IF(G3>0,(F3+J3+N3+R3)/(G3+K3+O3+S3),0) -> 0.5632183908 | E3: 0.4539593866 | F3: 15 | G3: 24 | H3: =IF(G3>0,F3/G3,0) -> 0.625 | I3: =H3/E3 -> 1.376775144 | J3: 5 | K3: 16 | L3: =IF(K3>0,J3/K3,0) -> 0.3125 | M3: =L3/E3 -> 0.6883875722 | N3: 17 | O3: 27 | P3: =IF(O3>0,N3/O3,0) -> 0.6296296296 | Q3: =P3/E3 -> 1.386973479 | R3: 12 | S3: 20 | T3: =IF(S3>0,R3/S3,0) -> 0.6 | U3: =T3/E3 -> 1.321704139 | V3: 4 | W3: =V3/E3 -> 8.811360924
A4: 2 | B4: Jan | C4: 1.15442239 | D4: 2.146666667 | E4: 1.859515793 | F4: 28 | G4: 17 | H4: 1.647058824 | I4: 0.8857460796 | J4: 37 | K4: 21 | L4: 1.761904762 | M4: 0.9475072859 | N4: 48 | O4: 17 | P4: 2.823529412 | Q4: 1.518421851 | R4: 48 | S4: 20 | T4: 2.4 | U4: 1.290658573 | V4: 9 | W4: 4.839969649
A5: 3 | B5: Hans B | C5: 1.082262644 | D5: 0.8732394366 | E5: 0.8068646199 | F5: 20 | G5: 24 | H5: 0.8333333333 | I5: 1.032804405 | J5: 19 | K5: 16 | L5: 1.1875 | M5: 1.471746277 | N5: 11 | O5: 17 | P5: 0.6470588235 | Q5: 0.8019422436 | R5: 12 | S5: 14 | T5: 0.8571428571 | U5: 1.062313102 | V5: 6 | W5: 7.436191713
A6: 4 | B6: Peter B | C6: 1.046845091 | D6: 0.8021978022 | E6: 0.766300391 | F6: 19 | G6: 24 | H6: 0.7916666667 | I6: 1.033102261 | J6: 20 | K6: 24 | L6: 0.8333333333 | M6: 1.087476064 | N6: 11 | O6: 15 | P6: 0.7333333333 | Q6: 0.9569789367 | R6: 23 | S6: 28 | T6: 0.8214285714 | U6: 1.071940692 | V6: 8 | W6: 10.43977022
A7: 5 | B7: Emie | C7: 1.037491005 | D7: 1.02739726 | E7: 0.9902710051 | F7: 30 | G7: 23 | H7: 1.304347826 | I7: 1.317162493 | J7: 20 | K7: 21 | L7: 0.9523809524 | M7: 0.9617376935 | N7: 13 | O7: 15 | P7: 0.8666666667 | Q7: 0.8751813011 | R7: 12 | S7: 14 | T7: 0.8571428571 | U7: 0.8655639242 | V7: 10 | W7: 10.09824578
A8: 6 | B8: Ton | C8: 0.91931163 | D8: 0.4757281553 | E8: 0.5174830165 | F8: 11 | G8: 17 | H8: 0.6470588235 | I8: 1.250396251 | J8: 18 | K8: 31 | L8: 0.5806451613 | M8: 1.122056459 | N8: 10 | O8: 27 | P8: 0.3703703704 | Q8: 0.7157150256 | R8: 10 | S8: 28 | T8: 0.3571428571 | U8: 0.6901537747 | V8: 3 | W8: 5.797291707
A9: 7 | B9: Ed | C9: 0.9098837358 | D9: 0.58 | E9: 0.637444079 | F9: 9 | G9: 24 | H9: 0.375 | I9: 0.5882868982 | J9: 12 | K9: 31 | L9: 0.3870967742 | M9: 0.6072638949 | N9: 10 | O9: 15 | P9: 0.6666666667 | Q9: 1.045843375 | R9: 27 | S9: 30 | T9: 0.9 | U9: 1.411888556 | V9: 4 | W9: 6.275060247
A10: 8 | B10: Joep | C10: 0.8941055799 | D10: 1.025641026 | E10: 1.147113997 | F10: 15 | G10: 17 | H10: 0.8823529412 | I10: 0.769193771 | J10: 27 | K10: 24 | L10: 1.125 | M10: 0.980722058 | N10: 28 | O10: 23 | P10: 1.217391304 | Q10: 1.061264449 | R10: 10 | S10: 14 | T10: 0.7142857143 | U10: 0.6226806717 | V10: 5 | W10: 4.358764702
A11: 9 | B11: Hans M | C11: 0.7551637159 | D11: 0.5 | E11: 0.6621080826 | F11: 12 | G11: 23 | H11: 0.5217391304 | I11: 0.787996921 | J11: 4 | K11: 16 | L11: 0.25 | M11: 0.377581858 | N11: 14 | O11: 23 | P11: 0.6086956522 | Q11: 0.9193297411 | R11: 16 | S11: 30 | T11: 0.5333333333 | U11: 0.8055079637 | V11: 5 | W11: 7.551637159
A12: 10 | B12: Peter D | C12: 0 | D12: 0 | E12: 1.042580858 | H12: 0 | I12: 0 | L12: 0 | M12: 0 | P12: 0 | Q12: 0 | T12: 0 | U12: 0 | W12: 0
A13: 11 | B13: George | C13: 0 | D13: 0 | E13: 0.6955998932 | H13: 0 | I13: 0 | L13: 0 | M13: 0 | P13: 0 | Q13: 0 | T13: 0 | U13: 0 | W13: 0
A14: =A13+1 -> 12 | B14: Cuma | C14: 0 | D14: 0 | E14: 0.6470588235 | H14: 0 | I14: 0 | L14: 0 | M14: 0 | P14: 0 | Q14: 0 | T14: 0 | U14: 0 | W14: 0
A15: =A14+1 -> 13 | B15: Hein | C15: 0 | D15: 0 | E15: 0.625 | H15: 0 | I15: 0 | L15: 0 | M15: 0 | P15: 0 | Q15: 0 | T15: 0 | U15: 0 | W15: 0
C16: =AVERAGE(C3:C11) -> 1.00446288 | D16: =AVERAGE(D3:D11) -> 0.8882320819 | E16: =AVERAGE(E3:E14) -> 0.8521916621 | H16: =AVERAGE(H3:H14) -> 0.6356297954 | L16: =AVERAGE(L3:L14) -> 0.6158634153 | P16: =AVERAGE(P3:P14) -> 0.7136118215 | T16: =AVERAGE(T3:T14) -> 0.6700396825

Sheet 20190527
A1: Pl | B1: Speler | C1: Netto | D1: Bruto | E1: Moyenne | F1: Ronde 1 | J1: Ronde 2 | N1: Ronde 3 | R1: Ronde 4 | V1: Hoogste
F2: p | G2: b | H2: m | I2: c | J2: p | K2: b | L2: m | M2: c | N2: p | O2: b | P2: m | Q2: c | R2: p | S2: b | T2: m | U2: c | V2: serie
A3: =A2+1 -> 1 | B3: Cuma | C3: =D3/E3 -> 1.299436253 | D3: =IF(G3>0,(F3+J3+N3+R3)/(G3+K3+O3+S3),0) -> 0.6470588235 | E3: 0.4979534949 | F3: 17 | G3: 23 | H3: =IF(G3>0,F3/G3,0) -> 0.7391304348 | I3: =H3/E3 -> 1.484336273 | J3: 16 | K3: 17 | L3: =IF(K3>0,J3/K3,0) -> 0.9411764706 | M3: =L3/E3 -> 1.890089095 | N3: 11 | O3: 16 | P3: =IF(O3>0,N3/O3,0) -> 0.6875 | Q3: =P3/E3 -> 1.380651019 | R3: 11 | S3: 29 | T3: =IF(S3>0,R3/S3,0) -> 0.3793103448 | U3: =T3/E3 -> 0.7617384931 | W3: =V3/E3 -> 0
A4: 2 | B4: Jan | C4: 1.298267793 | D4: 2.220779221 | E4: 1.710570988 | F4: 43 | G4: 18 | H4: 2.388888889 | I4: 1.396544725 | J4: 49 | K4: 20 | L4: 2.45 | M4: 1.432270287 | N4: 44 | O4: 20 | P4: 2.2 | Q4: 1.286120258 | R4: 35 | S4: 19 | T4: 1.842105263 | U4: 1.076894953 | V4: 10 | W4: 5.846001173
A5: 3 | B5: Hans dW | C5: 1.163922382 | D5: 0.4712643678 | E5: 0.4048932946 | F5: 9 | G5: 25 | H5: 0.36 | I5: 0.8891231463 | J5: 14 | K5: 20 | L5: 0.7 | M5: 1.728850562 | N5: 12 | O5: 23 | P5: 0.5217391304 | Q5: 1.28858427 | R5: 6 | S5: 19 | T5: 0.3157894737 | U5: 0.7799325844 | V5: 3 | W5: 7.409359552
A6: 4 | B6: Emie | C6: 1.125425749 | D6: 1.108433735 | E6: 0.9849017018 | F6: 25 | G6: 18 | H6: 1.388888889 | I6: 1.41018021 | J6: 37 | K6: 26 | L6: 1.423076923 | M6: 1.444892339 | N6: 17 | O6: 20 | P6: 0.85 | Q6: 0.8630302887 | R6: 13 | S6: 19 | T6: 0.6842105263 | U6: 0.6946993036 | V6: 7 | W6: 7.10730826
A7: 5 | B7: Peter B | C7: 1.121475485 | D7: 0.8645833333 | E7: 0.7709337784 | F7: 20 | G7: 18 | H7: 1.111111111 | I7: 1.441253636 | J7: 20 | K7: 27 | L7: 0.7407407407 | M7: 0.9608357572 | N7: 23 | O7: 23 | P7: 1 | Q7: 1.297128272 | R7: 20 | S7: 28 | T7: 0.7142857143 | U7: 0.9265201945 | V7: 4 | W7: 5.188513089
A8: 6 | B8: Hans M | C8: 1.101222427 | D8: 0.7078651685 | E8: 0.6427994481 | F8: 14 | G8: 21 | H8: 0.6666666667 | I8: 1.037130117 | J8: 10 | K8: 26 | L8: 0.3846153846 | M8: 0.5983442981 | N8: 25 | O8: 23 | P8: 1.086956522 | Q8: 1.690973016 | R8: 14 | S8: 19 | T8: 0.7368421053 | U8: 1.146301708 | V8: 6 | W8: 9.334171051
A9: 7 | B9: Ed | C9: 1.10079731 | D9: 0.6836734694 | E9: 0.6210711662 | F9: 15 | G9: 25 | H9: 0.6 | I9: 0.9660728635 | J9: 16 | K9: 25 | L9: 0.64 | M9: 1.030477721 | N9: 16 | O9: 19 | P9: 0.8421052632 | Q9: 1.355891738 | R9: 20 | S9: 29 | T9: 0.6896551724 | U9: 1.110428579 | V9: 4 | W9: 6.440485757
A10: 8 | B10: Ton | C10: 1.09222822 | D10: 0.5443037975 | E10: 0.498342551 | F10: 8 | G10: 21 | H10: 0.380952381 | I10: 0.7644387986 | J10: 12 | K10: 17 | L10: 0.7058823529 | M10: 1.416460127 | N10: 13 | O10: 19 | P10: 0.6842105263 | Q10: 1.372972316 | R10: 10 | S10: 22 | T10: 0.4545454545 | U10: 0.9121144756 | V10: 3 | W10: 6.019955539
A11: 9 | B11: Hans B | C11: 0.999532293 | D11: 0.7901234568 | E11: 0.790493176 | F11: 10 | G11: 18 | H11: 0.5555555556 | I11: 0.7027961435 | J11: 13 | K11: 25 | L11: 0.52 | M11: 0.6578171903 | N11: 15 | O11: 16 | P11: 0.9375 | Q11: 1.185968492 | R11: 26 | S11: 22 | T11: 1.181818182 | U11: 1.495039069 | V11: 7 | W11: 8.855231408
A12: 10 | B12: Peter D | C12: 0.9957740035 | D12: 1.046511628 | E12: 1.050952951 | F12: 14 | G12: 23 | H12: 0.6086956522 | I12: 0.5791844928 | J12: 27 | K12: 17 | L12: 1.588235294 | M12: 1.511233488 | N12: 21 | O12: 23 | P12: 0.9130434783 | Q12: 0.8687767393 | R12: 28 | S12: 23 | T12: 1.217391304 | U12: 1.158368986 | V12: 9 | W12: 8.56365643
A13: 11 | B13: George | C13: 0.9728038174 | D13: 0.6470588235 | E13: 0.6651483186 | F13: 14 | G13: 18 | H13: 0.7777777778 | I13: 1.169329841 | J13: 15 | K13: 17 | L13: 0.8823529412 | M13: 1.32655066 | N13: 17 | O13: 22 | P13: 0.7727272727 | Q13: 1.16173679 | R13: 9 | S13: 28 | T13: 0.3214285714 | U13: 0.4832434548 | V13: 3 | W13: 4.510272245
A14: =A13+1 -> 12 | B14: Joep | C14: 0.8398560225 | D14: 1.022222222 | E14: 1.217139837 | F14: 14 | G14: 18 | H14: 0.7777777778 | I14: 0.6390208867 | J14: 23 | K14: 27 | L14: 0.8518518519 | M14: 0.6998800187 | N14: 26 | O14: 22 | P14: 1.181818182 | Q14: 0.9709797888 | R14: 29 | S14: 23 | T14: 1.260869565 | U14: 1.03592827 | V14: 5 | W14: 4.107991414
A15: =A14+1 -> 13 | B15: Hein | C15: 0 | D15: 0 | E15: 0.625 | H15: 0 | I15: 0 | L15: 0 | M15: 0 | P15: 0 | Q15: 0 | T15: 0 | U15: 0 | W15: 0
C16: =AVERAGE(C3:C11) -> 1.144700879 | D16: =AVERAGE(D3:D11) -> 0.893120597 | E16: =AVERAGE(E3:E14) -> 0.8212667255 | H16: =AVERAGE(H3:H14) -> 0.8629537612 | L16: =AVERAGE(L3:L14) -> 0.9856609966 | P16: =AVERAGE(P3:P14) -> 0.9731333645 | T16: =AVERAGE(T3:T14) -> 0.8165209731

Sheet 20181203
A1: Pl | B1: Speler | C1: Netto | D1: Bruto | E1: Moyenne | F1: Ronde 1 | J1: Ronde 2 | N1: Ronde 3 | R1: Ronde 4 | V1: Hoogste
F2: p | G2: b | H2: m | I2: c | J2: p | K2: b | L2: m | M2: c | N2: p | O2: b | P2: m | Q2: c | R2: p | S2: b | T2: m | U2: c | V2: serie
A3: =A2+1 -> 1 | B3: Hans dW | C3: =D3/E3 -> 1.862362481 | D3: =IF(G3>0,(F3+J3+N3+R3)/(G3+K3+O3+S3),0) -> 0.6231884058 | E3: 0.3346225089 | F3: 9 | G3: 16 | H3: =IF(G3>0,F3/G3,0) -> 0.5625 | I3: =H3/E3 -> 1.680998692 | J3: 7 | K3: 14 | L3: =IF(K3>0,J3/K3,0) -> 0.5 | M3: =L3/E3 -> 1.49422106 | N3: 17 | O3: 26 | P3: =IF(O3>0,N3/O3,0) -> 0.6538461538 | Q3: =P3/E3 -> 1.953981386 | R3: 10 | S3: 13 | T3: =IF(S3>0,R3/S3,0) -> 0.7692307692 | U3: =T3/E3 -> 2.298801631 | V3: 3 | W3: =V3/E3 -> 8.96532636
A4: 2 | B4: Ton | C4: 1.2006877 | D4: 0.5697674419 | E4: 0.474534254 | F4: 18 | G4: 27 | H4: 0.6666666667 | I4: 1.404886288 | J4: 11 | K4: 29 | L4: 0.3793103448 | M4: 0.7993318536 | N4: 11 | O4: 17 | P4: 0.6470588235 | Q4: 1.363566103 | R4: 9 | S4: 13 | T4: 0.6923076923 | U4: 1.458920376 | V4: 5 | W4: 10.53664716
A5: 3 | B5: Peter B | C5: 1.145038633 | D5: 0.8313253012 | E5: 0.7260238014 | F5: 21 | G5: 21 | H5: 1 | I5: 1.377365312 | J5: 19 | K5: 23 | L5: 0.8260869565 | M5: 1.137823519 | N5: 16 | O5: 17 | P5: 0.9411764706 | Q5: 1.296343823 | R5: 13 | S5: 22 | T5: 0.5909090909 | U5: 0.8138976846 | V5: 5 | W5: 6.886826562
A6: 4 | B6: George | C6: 1.124377278 | D6: 0.7222222222 | E6: 0.6423308583 | F6: 15 | G6: 16 | H6: 0.9375 | I6: 1.459528198 | J6: 22 | K6: 29 | L6: 0.7586206897 | M6: 1.181043507 | N6: 14 | O6: 25 | P6: 0.56 | Q6: 0.8718248435 | R6: 14 | S6: 20 | T6: 0.7 | U6: 1.089781054 | V6: 4 | W6: 6.22732031
A7: 5 | B7: Jan | C7: 1.066003376 | D7: 1.851851852 | E7: 1.737191358 | F7: 46 | G7: 27 | H7: 1.703703704 | I7: 0.9807231056 | J7: 12 | K7: 14 | L7: 0.8571428571 | M7: 0.4934072767 | N7: 41 | O7: 21 | P7: 1.952380952 | Q7: 1.12387213 | R7: 51 | S7: 19 | T7: 2.684210526 | U7: 1.54514384 | V7: 19 | W7: 10.93719463
A8: 6 | B8: Joep | C8: 1.018434151 | D8: 1.227272727 | E8: 1.205058497 | F8: 28 | G8: 16 | H8: 1.75 | I8: 1.452211659 | J8: 31 | K8: 29 | L8: 1.068965517 | M8: 0.8870652501 | N8: 30 | O8: 21 | P8: 1.428571429 | Q8: 1.185478906 | R8: 19 | S8: 22 | T8: 0.8636363636 | U8: 0.7166758839 | V8: 9 | W8: 7.468517106
A9: 7 | B9: Hans B | C9: 0.9626887445 | D9: 0.7317073171 | E9: 0.7600663467 | F9: 14 | G9: 21 | H9: 0.6666666667 | I9: 0.8771164117 | J9: 11 | K9: 14 | L9: 0.7857142857 | M9: 1.033744342 | N9: 20 | O9: 27 | P9: 0.7407407407 | Q9: 0.9745737908 | R9: 15 | S9: 20 | T9: 0.75 | U9: 0.9867559632 | V9: 4 | W9: 5.26269847
A10: 8 | B10: Ed | C10: 0.8445701883 | D10: 0.5256410256 | E10: 0.6223769592 | F10: 8 | G10: 16 | H10: 0.5 | I10: 0.8033716426 | J10: 19 | K10: 23 | L10: 0.8260869565 | M10: 1.32730967 | N10: 10 | O10: 27 | P10: 0.3703703704 | Q10: 0.5950901056 | R10: 4 | S10: 12 | T10: 0.3333333333 | U10: 0.535581095 | V10: 5 | W10: 8.033716426
A11: 9 | B11: Emie | C11: 0.8140187857 | D11: 0.8315789474 | E11: 1.021572182 | F11: 19 | G11: 28 | H11: 0.6785714286 | I11: 0.6642422732 | J11: 21 | K11: 29 | L11: 0.724137931 | M11: 0.7088465637 | N11: 21 | O11: 26 | P11: 0.8076923077 | Q11: 0.7906365519 | R11: 18 | S11: 12 | T11: 1.5 | U11: 1.468325025 | V11: 6 | W11: 5.8733001
A12: 10 | B12: Peter D | C12: 0.8102604554 | D12: 0.843373494 | E12: 1.040867154 | F12: 20 | G12: 28 | H12: 0.7142857143 | I12: 0.686240998 | J12: 11 | K12: 19 | L12: 0.5789473684 | M12: 0.5562163878 | N12: 26 | O12: 17 | P12: 1.529411765 | Q12: 1.469363078 | R12: 13 | S12: 19 | T12: 0.6842105263 | U12: 0.6573466402 | V12: 9 | W12: 8.646636574
A13: 11 | B13: Hein | C13: 0.625 | D13: 0.625 | E13: 1 | F13: 12 | G13: 16 | H13: 0.75 | I13: 0.75 | J13: 10 | K13: 19 | L13: 0.5263157895 | M13: 0.5263157895 | N13: 10 | O13: 25 | P13: 0.4 | Q13: 0.4 | R13: 13 | S13: 12 | T13: 1.083333333 | U13: 1.083333333 | V13: 4 | W13: 4
A14: =A13+1 -> 12 | B14: Hans M | C14: 0 | D14: 0 | E14: 0.6427994481 | H14: 0 | I14: 0 | L14: 0 | M14: 0 | P14: 0 | Q14: 0 | T14: 0 | U14: 0 | W14: 0
A15: =A14+1 -> 13 | B15: Sjoerd | C15: 0 | D15: 0 | E15: 0.4979534949 | H15: 0 | I15: 0 | L15: 0 | M15: 0 | P15: 0 | Q15: 0 | T15: 0 | U15: 0 | W15: 0
C16: =AVERAGE(C3:C11) -> 1.115353482 | D16: =AVERAGE(D3:D11) -> 0.8793950267 | E16: =AVERAGE(E3:E14) -> 0.8506202807

Sheet 20180514
A1: Pl | B1: Speler | C1: Netto | D1: Bruto | E1: Moyenne | F1: Ronde 1 | J1: Ronde 2 | N1: Ronde 3 | R1: Ronde 4 | V1: Hoogste
F2: p | G2: b | H2: m | I2: c | J2: p | K2: b | L2: m | M2: c | N2: p | O2: b | P2: m | Q2: c | R2: p | S2: b | T2: m | U2: c | V2: serie
A3: =A2+1 -> 1 | B3: Ed | C3: =D3/E3 -> 1.338156926 | D3: =IF(G3>0,(F3+J3+N3+R3)/(G3+K3+O3+S3),0) -> 0.786407767 | E3: 0.5876797793 | F3: 16 | G3: 25 | H3: =IF(G3>0,F3/G3,0) -> 0.64 | I3: =H3/E3 -> 1.089028451 | J3: 20 | K3: 25 | L3: =IF(K3>0,J3/K3,0) -> 0.8 | M3: =L3/E3 -> 1.361285564 | N3: 24 | O3: 28 | P3: =IF(O3>0,N3/O3,0) -> 0.8571428571 | Q3: =P3/E3 -> 1.458520247 | R3: 21 | S3: 25 | T3: =IF(S3>0,R3/S3,0) -> 0.84 | U3: =T3/E3 -> 1.429349842 | V3: 5 | W3: =V3/E3 -> 8.508034776
A4: 2 | B4: Ton | C4: 1.036625829 | D4: 0.4859813084 | E4: 0.4688107268 | F4: 9 | G4: 28 | H4: 0.3214285714 | I4: 0.6856254626 | J4: 11 | K4: 24 | L4: 0.4583333333 | M4: 0.9776511226 | N4: 16 | O4: 29 | P4: 0.5517241379 | Q4: 1.176859032 | R4: 16 | S4: 26 | T4: 0.6153846154 | U4: 1.312650458 | V4: 5 | W4: 10.66528497
A5: 3 | B5: Hans M | C5: 1.033424511 | D5: 0.7075471698 | E5: 0.6846626557 | F5: 17 | G5: 25 | H5: 0.68 | I5: 0.9931898496 | J5: 23 | K5: 30 | L5: 0.7666666667 | M5: 1.11977287 | N5: 17 | O5: 25 | P5: 0.68 | Q5: 0.9931898496 | R5: 18 | S5: 26 | T5: 0.6923076923 | U5: 1.011166136 | V5: 5 | W5: 7.302866541
A6: 4 | B6: Hans B | C6: 0.9772423919 | D6: 0.7575757576 | E6: 0.7752178618 | F6: 16 | G6: 26 | H6: 0.6153846154 | I6: 0.7938215122 | J6: 14 | K6: 25 | L6: 0.56 | M6: 0.7223775761 | N6: 21 | O6: 28 | P6: 0.75 | Q6: 0.967469968 | R6: 24 | S6: 20 | T6: 1.2 | U6: 1.547951949 | V6: 6 | W6: 7.739759744
A7: 5 | B7: Hans dW | C7: 0.9684898381 | D7: 0.3398058252 | E7: 0.3508615288 | F7: 8 | G7: 28 | H7: 0.2857142857 | I7: 0.8143220679 | J7: 14 | K7: 26 | L7: 0.5384615385 | M7: 1.534683897 | N7: 6 | O7: 28 | P7: 0.2142857143 | Q7: 0.610741551 | R7: 7 | S7: 21 | T7: 0.3333333333 | U7: 0.9500424126 | V7: 3 | W7: 8.550381713
A8: 6 | B8: Jan | C8: 0.9459854015 | D8: 1.6 | E8: 1.691358025 | F8: 40 | G8: 24 | H8: 1.666666667 | I8: 0.9854014599 | J8: 37 | K8: 24 | L8: 1.541666667 | M8: 0.9114963504 | N8: 45 | O8: 22 | P8: 2.045454545 | Q8: 1.209356337 | R8: 22 | S8: 20 | T8: 1.1 | U8: 0.6503649635 | V8: 9 | W8: 5.321167883
A9: 7 | B9: Peter D | C9: 0.8838206294 | D9: 0.96875 | E9: 1.096093447 | F9: 20 | G9: 27 | H9: 0.7407407407 | I9: 0.6758007202 | J9: 18 | K9: 26 | L9: 0.6923076923 | M9: 0.63161375 | N9: 25 | O9: 22 | P9: 1.136363636 | Q9: 1.036739741 | R9: 30 | S9: 21 | T9: 1.428571429 | U9: 1.30332996 | V9: 6 | W9: 5.473985834
A10: 8 | B10: Emie | C10: 0.8113973063 | D10: 0.8415841584 | E10: 1.03720354 | F10: 16 | G10: 24 | H10: 0.6666666667 | I10: 0.6427539446 | J10: 19 | K10: 26 | L10: 0.7307692308 | M10: 0.7045572085 | N10: 26 | O10: 29 | P10: 0.8965517241 | Q10: 0.8643932358 | R10: 24 | S10: 22 | T10: 1.090909091 | U10: 1.051779182 | V10: 5 | W10: 4.820654585
A11: 9 | B11: Joep | C11: 0.7956424635 | D11: 0.9818181818 | E11: 1.233994196 | F11: 29 | G11: 27 | H11: 1.074074074 | I11: 0.8704044783 | J11: 24 | K11: 30 | L11: 0.8 | M11: 0.6483012666 | N11: 23 | O11: 28 | P11: 0.8214285714 | Q11: 0.6656664791 | R11: 32 | S11: 25 | T11: 1.28 | U11: 1.037282027 | V11: 7 | W11: 5.672636083
A12: 10 | B12: Peter B | C12: 0.7853435582 | D12: 0.595959596 | E12: 0.7588520842 | F12: 15 | G12: 26 | H12: 0.5769230769 | I12: 0.7602576166 | J12: 10 | K12: 26 | L12: 0.3846153846 | M12: 0.5068384111 | N12: 19 | O12: 25 | P12: 0.76 | Q12: 1.0015127 | R12: 15 | S12: 22 | T12: 0.6818181818 | U12: 0.8984862742 | V12: 4 | W12: 5.271119475
A13: 11 | B13: Gerard | C13: 0 | D13: 0 | E13: 1.274635452 | H13: 0 | I13: 0 | L13: 0 | M13: 0 | P13: 0 | Q13: 0 | T13: 0 | U13: 0 | W13: 0
A14: 12 | B14: George | C14: 0 | D14: 0 | E14: 0.6423308583 | H14: 0 | I14: 0 | L14: 0 | M14: 0 | P14: 0 | Q14: 0 | T14: 0 | U14: 0 | W14: 0
A15: 13 | B15: Ronald | C15: 0 | D15: 0 | E15: 0.6199166061 | H15: 0 | I15: 0 | L15: 0 | M15: 0 | P15: 0 | Q15: 0 | T15: 0 | U15: 0 | W15: 0
A16: 14 | B16: Frank | C16: 0 | D16: 0 | E16: 0.6133584884 | H16: 0 | I16: 0 | L16: 0 | M16: 0 | P16: 0 | Q16: 0 | T16: 0 | U16: 0 | W16: 0
A17: 15 | B17: Sjoerd | C17: 0 | D17: 0 | E17: 0.4979534949 | H17: 0 | I17: 0 | L17: 0 | M17: 0 | P17: 0 | Q17: 0 | T17: 0 | U17: 0 | W17: 0
A18: 16 | B18: Stefan | C18: 0 | D18: 0 | E18: 0.4946668086 | H18: 0 | I18: 0 | L18: 0 | M18: 0 | P18: 0 | Q18: 0 | T18: 0 | U18: 0 | W18: 0
C19: =AVERAGE(C3:C11) -> 0.9767539218 | D19: =AVERAGE(D3:D11) -> 0.8299411298 | E19: =AVERAGE(E3:E18) -> 0.801724722

Sheet 20171204
A1: Pl | B1: Speler | C1: Netto | D1: Bruto | E1: Moyenne | F1: Ronde 1 | J1: Ronde 2 | N1: Ronde 3 | R1: Ronde 4 | V1: Hoogste
F2: p | G2: b | H2: m | I2: c | J2: p | K2: b | L2: m | M2: c | N2: p | O2: b | P2: m | Q2: c | R2: p | S2: b | T2: m | U2: c | V2: serie
A3: =A2+1 -> 1 | B3: Peter D | C3: =D3/E3 -> 1.430442359 | D3: =IF(G3>0,(F3+J3+N3+R3)/(G3+K3+O3+S3),0) -> 1.311688312 | E3: 0.9169808927 | F3: 21 | G3: 18 | H3: =IF(G3>0,F3/G3,0) -> 1.166666667 | I3: =H3/E3 -> 1.272291141 | J3: 38 | K3: 17 | L3: =IF(K3>0,J3/K3,0) -> 2.235294118 | M3: =L3/E3 -> 2.437667061 | N3: 21 | O3: 21 | P3: =IF(O3>0,N3/O3,0) -> 1 | Q3: =P3/E3 -> 1.090535264 | R3: 21 | S3: 21 | T3: =IF(S3>0,R3/S3,0) -> 1 | U3: =T3/E3 -> 1.090535264 | V3: 7 | W3: =V3/E3 -> 7.633746849
A4: 2 | B4: George | C4: 1.388646219 | D4: 0.8181818182 | E4: 0.5891938545 | F4: 20 | G4: 22 | H4: 0.9090909091 | I4: 1.542940243 | J4: 9 | K4: 19 | L4: 0.4736842105 | M4: 0.8039530741 | N4: 12 | O4: 16 | P4: 0.75 | Q4: 1.272925701 | R4: 22 | S4: 20 | T4: 1.1 | U4: 1.866957694 | V4: 5 | W4: 8.486171337
A5: 3 | B5: Hans B | C5: 1.354706273 | D5: 0.9480519481 | E5: 0.6998210365 | F5: 21 | G5: 20 | H5: 1.05 | I5: 1.500383591 | J5: 29 | K5: 20 | L5: 1.45 | M5: 2.071958293 | N5: 10 | O5: 15 | P5: 0.6666666667 | Q5: 0.9526245025 | R5: 13 | S5: 22 | T5: 0.5909090909 | U5: 0.8443717181 | V5: 5 | W5: 7.144683769
A6: 4 | B6: Emie | C6: 1.251668731 | D6: 1.179487179 | E6: 0.9423317451 | F6: 22 | G6: 19 | H6: 1.157894737 | I6: 1.228754887 | J6: 14 | K6: 24 | L6: 0.5833333333 | M6: 0.619031818 | N6: 28 | O6: 13 | P6: 2.153846154 | Q6: 2.285655943 | R6: 28 | S6: 22 | T6: 1.272727273 | U6: 1.350614876 | V6: 6 | W6: 6.367184414
A7: 5 | B7: Joep | C7: 1.099160553 | D7: 1.357142857 | E7: 1.234708481 | F7: 28 | G7: 22 | H7: 1.272727273 | I7: 1.030791715 | J7: 25 | K7: 24 | L7: 1.041666667 | M7: 0.8436539332 | N7: 27 | O7: 15 | P7: 1.8 | Q7: 1.457833997 | R7: 34 | S7: 23 | T7: 1.47826087 | U7: 1.197254973 | V7: 8 | W7: 6.479262207
A8: 6 | B8: Jan | C8: 1.051746782 | D8: 1.765432099 | E8: 1.678571429 | F8: 21 | G8: 19 | H8: 1.105263158 | I8: 0.6584546473 | J8: 41 | K8: 28 | L8: 1.464285714 | M8: 0.8723404255 | N8: 35 | O8: 13 | P8: 2.692307692 | Q8: 1.603927987 | R8: 46 | S8: 21 | T8: 2.19047619 | U8: 1.304964539 | V8: 8 | W8: 4.765957447
A9: 7 | B9: Hans M | C9: 1.034089377 | D9: 0.6506024096 | E9: 0.6291549104 | F9: 17 | G9: 20 | H9: 0.85 | I9: 1.351018622 | J9: 15 | K9: 25 | L9: 0.6 | M9: 0.9536602037 | N9: 10 | O9: 16 | P9: 0.625 | Q9: 0.9933960455 | R9: 12 | S9: 22 | T9: 0.5454545455 | U9: 0.8669638215 | V9: 5 | W9: 7.947168364
A10: 8 | B10: Hans dW | C10: 1.007457296 | D10: 0.3815789474 | E10: 0.3787544632 | F10: 6 | G10: 22 | H10: 0.2727272727 | I10: 0.7200635219 | J10: 5 | K10: 20 | L10: 0.25 | M10: 0.6600582284 | N10: 6 | O10: 13 | P10: 0.4615384615 | Q10: 1.218569037 | R10: 12 | S10: 21 | T10: 0.5714285714 | U10: 1.508704522 | V10: 3 | W10: 7.920698741
A11: 9 | B11: Ton | C11: 1.004570004 | D11: 0.4698795181 | E11: 0.4677419355 | F11: 7 | G11: 19 | H11: 0.3684210526 | I11: 0.7876588022 | J11: 8 | K11: 28 | L11: 0.2857142857 | M11: 0.6108374384 | N11: 6 | O11: 14 | P11: 0.4285714286 | Q11: 0.9162561576 | R11: 18 | S11: 22 | T11: 0.8181818182 | U11: 1.749216301 | V11: 3 | W11: 6.413793103
A12: 10 | B12: Peter B | C12: 0.9482716767 | D12: 0.7733333333 | E12: 0.8155187509 | F12: 22 | G12: 22 | H12: 1 | I12: 1.226213375 | J12: 6 | K12: 17 | L12: 0.3529411765 | M12: 0.4327811912 | N12: 8 | O12: 13 | P12: 0.6153846154 | Q12: 0.7545928462 | R12: 22 | S12: 23 | T12: 0.9565217391 | U12: 1.17289975 | V12: 7 | W12: =V12/E12 -> 8.583493626
A13: 11 | B13: Gerard | C13: 0.9430733945 | D13: 1.171052632 | E13: 1.241740715 | F13: 22 | G13: 18 | H13: 1.222222222 | I13: 0.9842813456 | J13: 19 | K13: 24 | L13: 0.7916666667 | M13: 0.6375458716 | N13: 26 | O13: 14 | P13: 1.857142857 | Q13: 1.49559633 | R13: 22 | S13: 20 | T13: 1.1 | U13: 0.885853211 | V13: 6 | W13: 4.831926606
A14: 12 | B14: Ronald | C14: 0 | D14: 0 | E14: 0.6199166061 | H14: 0 | I14: 0 | L14: 0 | M14: 0 | P14: 0 | Q14: 0 | T14: 0 | U14: 0 | W14: 0
A15: 13 | B15: Frank | C15: 0 | D15: 0 | E15: 0.6133584884 | H15: 0 | I15: 0 | L15: 0 | M15: 0 | P15: 0 | Q15: 0 | T15: 0 | U15: 0 | W15: 0
A16: 14 | B16: Ed | C16: 0 | D16: 0 | E16: 0.5876797793 | H16: 0 | I16: 0 | L16: 0 | M16: 0 | P16: 0 | Q16: 0 | T16: 0 | U16: 0 | W16: 0
A17: 15 | B17: Sjoerd | C17: 0 | D17: 0 | E17: 0.4979534949 | H17: 0 | I17: 0 | L17: 0 | M17: 0 | P17: 0 | Q17: 0 | T17: 0 | U17: 0 | W17: 0
A18: 16 | B18: Stefan | C18: 0 | D18: 0 | E18: 0.4946668086 | H18: 0 | I18: 0 | L18: 0 | M18: 0 | P18: 0 | Q18: 0 | T18: 0 | U18: 0 | W18: 0
C19: =AVERAGE(C3:C11) -> 1.180276399 | D19: =AVERAGE(D3:D11) -> 0.9868938987 | E19: =AVERAGE(E3:E18) -> 0.775505837
F23: 1e ronde | I23: 2e ronde | L23: 3e ronde | O23: 4e ronde | R23: 5e ronde
E25: Hans M - Hans B | H25: Hans M - Gerard | K25: Hans M - George | N25: Gerard - George | Q25: George - Jan
E26: Peter D - Gerard | H26: Hans B - Hans d W | K26: Hans B - Joep | N26: Peter B - Joep
E27: Hans d W - Peter B | H27: Peter D - Peter B | K27: Gerard - Ton | N27: Hans M - Ton | Q27: Peter D - Hans d W
E28: George - Joep | H28: Joep - Eem | K28: Hans d W - Eem | N28: Hans B - Eem
E29: Eem- Ton | H29: Ton - Jan | K29: Peter B - Jan | N29: Peter D - Jan
E31: vrij | H31: vrij | K31: vrij | N31: vrij
E33: Jan | H33: George | K33: Peter D | N33: Hans d W

Sheet 20170522
A1: Pl | B1: Speler | C1: Netto | D1: Bruto | E1: Moyenne | F1: Ronde 1 | J1: Ronde 2 | N1: Ronde 3 | R1: Ronde 4 | V1: Hoogste
F2: p | G2: b | H2: m | I2: c | J2: p | K2: b | L2: m | M2: c | N2: p | O2: b | P2: m | Q2: c | R2: p | S2: b | T2: m | U2: c | V2: serie
A3: =A2+1 -> 1 | B3: Emie | C3: =D3/E3 -> 1.218756531 | D3: =IF(G3>0,(F3+J3+N3+R3)/(G3+K3+O3+S3),0) -> 1.086956522 | E3: 0.8918569825 | F3: 18 | G3: 19 | H3: =IF(G3>0,F3/G3,0) -> 0.9473684211 | I3: =H3/E3 -> 1.062242534 | J3: 15 | K3: 19 | L3: =IF(K3>0,J3/K3,0) -> 0.7894736842 | M3: =L3/E3 -> 0.8852021117 | N3: 23 | O3: 13 | P3: =IF(O3>0,N3/O3,0) -> 1.769230769 | Q3: =P3/E3 -> 1.98376063 | R3: 19 | S3: 18 | T3: =IF(S3>0,R3/S3,0) -> 1.055555556 | U3: =T3/E3 -> 1.183548009 | V3: 5 | W3: =V3/E3 -> 5.606280041
A4: 2 | B4: Gerard | C4: 1.185485129 | D4: 1.348484848 | E4: 1.137496216 | F4: 24 | G4: 16 | H4: 1.5 | I4: 1.318685706 | J4: 15 | K4: 11 | L4: 1.363636364 | M4: 1.198805187 | N4: 27 | O4: 20 | P4: 1.35 | Q4: 1.186817135 | R4: 23 | S4: 19 | T4: 1.210526316 | U4: 1.064202499 | V4: 7 | W4: 6.153866627
A5: 3 | B5: Peter B | C5: 1.116900348 | D5: 0.8831168831 | E5: 0.7906854761 | F5: 20 | G5: 21 | H5: 0.9523809524 | I5: 1.204500375 | J5: 25 | K5: 19 | L5: 1.315789474 | M5: 1.66411236 | N5: 11 | O5: 20 | P5: 0.55 | Q5: 0.6955989665 | R5: 12 | S5: 17 | T5: 0.7058823529 | U5: 0.8927473367 | V5: 8 | W5: 10.11780315
A6: 4 | B6: Peter D | C6: 1.112639155 | D6: 1.08 | E6: 0.9706651032 | F6: 27 | G6: 16 | H6: 1.6875 | I6: 1.738498679 | J6: 26 | K6: 19 | L6: 1.368421053 | M6: 1.409776707 | N6: 8 | O6: 15 | P6: 0.5333333333 | Q6: 0.5494514345 | R6: 20 | S6: 25 | T6: 0.8 | U6: 0.8241771517 | V6: 8 | W6: 8.241771517
A7: 5 | B7: Joep | C7: 1.08047873 | D7: 1.302325581 | E7: 1.205322738 | F7: 36 | G7: 21 | H7: 1.714285714 | I7: 1.422262818 | J7: 32 | K7: 25 | L7: 1.28 | M7: 1.061956237 | N7: 10 | O7: 15 | P7: 0.6666666667 | Q7: 0.553102207 | R7: 34 | S7: 25 | T7: 1.36 | U7: 1.128328502 | V7: 9 | W7: 7.466879795
A8: 6 | B8: George | C8: 1.024147656 | D8: 0.5949367089 | E8: 0.5809091155 | F8: 9 | G8: 16 | H8: 0.5625 | I8: 0.9683098182 | J8: 14 | K8: 25 | L8: 0.56 | M8: 0.964006219 | N8: 10 | O8: 21 | P8: 0.4761904762 | Q8: 0.8197331795 | R8: 14 | S8: 17 | T8: 0.8235294118 | U8: 1.417656204 | V8: 3 | W8: 5.164319031
A9: 7 | B9: Hans B | C9: 1.011056184 | D9: 0.7246376812 | E9: 0.7167135642 | F9: 14 | G9: 20 | H9: 0.7 | I9: 0.9766802736 | J9: 7 | K9: 11 | L9: 0.6363636364 | M9: 0.8878911578 | N9: 13 | O9: 13 | P9: 1 | Q9: 1.395257534 | R9: 16 | S9: 25 | T9: 0.64 | U9: 0.8929648216 | V9: 4 | W9: 5.581030135
A10: 8 | B10: Jan | C10: 0.9755923239 | D10: 1.625 | E10: 1.665654762 | F10: 34 | G10: 16 | H10: 2.125 | I10: 1.275774577 | J10: 14 | K10: 11 | L10: 1.272727273 | M10: 0.7641002817 | N10: 33 | O10: 19 | P10: 1.736842105 | Q10: 1.042738354 | R10: 23 | S10: 18 | T10: 1.277777778 | U10: 0.7671324256 | V10: 11 | W10: 6.604009577
A11: 9 | B11: Hans M | C11: 0.9415845084 | D11: 0.5824175824 | E11: 0.6185505148 | F11: 9 | G11: 19 | H11: 0.4736842105 | I11: 0.7657971325 | J11: 16 | K11: 26 | L11: 0.6153846154 | M11: 0.9948817448 | N11: 20 | O11: 21 | P11: 0.9523809524 | Q11: 1.539697938 | R11: 8 | S11: 25 | T11: 0.32 | U11: 0.5173385073 | V11: 7 | W11: 11.31677985
A12: 10 | B12: Ed | C12: 0.9178237078 | D12: 0.5540540541 | E12: 0.6036606479 | F12: 4 | G12: 19 | H12: 0.2105263158 | I12: 0.3487494448 | J12: 14 | K12: 19 | L12: 0.7368421053 | M12: 1.220623057 | N12: 14 | O12: 19 | P12: 0.7368421053 | Q12: 1.220623057 | R12: 9 | S12: 17 | T12: 0.5294117647 | U12: 0.8770022803 | V12: 4 | W12: 6.626239451
A13: 11 | B13: Hans dW | C13: 0.6126176712 | D13: 0.275 | E13: 0.4488933521 | F13: 7 | G13: 20 | H13: 0.35 | I13: 0.7796952179 | J13: 5 | K13: 26 | L13: 0.1923076923 | M13: 0.4284039659 | N13: 5 | O13: 15 | P13: 0.3333333333 | Q13: 0.7425668742 | R13: 5 | S13: 19 | T13: 0.2631578947 | U13: 0.586237006 | V13: 4 | W13: 8.910802491
A14: 12 | B14: Ronald | C14: 0 | D14: 0 | E14: 0.6199166061 | H14: 0 | I14: 0 | L14: 0 | M14: 0 | P14: 0 | Q14: 0 | T14: 0 | U14: 0 | W14: 0
A15: 13 | B15: Frank | C15: 0 | D15: 0 | E15: 0.6133584884 | H15: 0 | I15: 0 | L15: 0 | M15: 0 | P15: 0 | Q15: 0 | T15: 0 | U15: 0 | W15: 0
A16: 14 | B16: Sjoerd | C16: 0 | D16: 0 | E16: 0.4979534949 | H16: 0 | I16: 0 | L16: 0 | M16: 0 | P16: 0 | Q16: 0 | T16: 0 | U16: 0 | W16: 0
A17: 15 | B17: Stefan | C17: 0 | D17: 0 | E17: 0.4946668086 | H17: 0 | I17: 0 | L17: 0 | M17: 0 | P17: 0 | Q17: 0 | T17: 0 | U17: 0 | W17: 0
A18: 16 | B18: Ton | C18: 0 | D18: 0 | E18: 0.4677419355 | H18: 0 | I18: 0 | L18: 0 | M18: 0 | P18: 0 | Q18: 0 | T18: 0 | U18: 0
C19: =AVERAGE(C3:C11) -> 1.074071174 | D19: =AVERAGE(D3:D11) -> 1.025319534 | E19: =AVERAGE(E3:E18) -> 0.7702528628

Sheet 20161209
A1: Pl | B1: Speler | C1: Netto | D1: Bruto | E1: Moyenne | F1: Ronde 1 | J1: Ronde 2 | N1: Ronde 3 | R1: Ronde 4 | V1: Hoogste
F2: p | G2: b | H2: m | I2: c | J2: p | K2: b | L2: m | M2: c | N2: p | O2: b | P2: m | Q2: c | R2: p | S2: b | T2: m | U2: c | V2: serie
A3: =A2+1 -> 1 | B3: Jan | C3: =D3/E3 -> 1.239780881 | D3: =IF(G3>0,(F3+J3+N3+R3)/(G3+K3+O3+S3),0) -> 1.958333333 | E3: 1.579580201 | F3: 33 | G3: 26 | H3: =IF(G3>0,F3/G3,0) -> 1.269230769 | I3: =H3/E3 -> 0.8035241065 | J3: 47 | K3: 26 | L3: =IF(K3>0,J3/K3,0) -> 1.807692308 | M3: =L3/E3 -> 1.144413121 | N3: 62 | O3: 21 | P3: =IF(O3>0,N3/O3,0) -> 2.952380952 | Q3: =P3/E3 -> 1.86909215 | R3: 46 | S3: 23 | T3: =IF(S3>0,R3/S3,0) -> 2 | U3: =T3/E3 -> 1.266159198 | V3: 13 | W3: =V3/E3 -> 8.230034788
A4: 2 | B4: Emie | C4: 1.041857484 | D4: 0.9782608696 | E4: 0.9389584317 | F4: 13 | G4: 18 | H4: 0.7222222222 | I4: 0.7691737971 | J4: 28 | K4: 25 | L4: 1.12 | M4: 1.192811058 | N4: 20 | O4: 24 | P4: 0.8333333333 | Q4: 0.8875082274 | R4: 29 | S4: 25 | T4: 1.16 | U4: 1.235411453 | V4: 6 | W4: 6.390059237
A5: 3 | B5: Gerard | C5: 1.021862785 | D5: 1.154761905 | E5: 1.130055739 | F5: 18 | G5: 18 | H5: 1 | I5: 0.8849121022 | J5: 22 | K5: 24 | L5: 0.9166666667 | M5: 0.811169427 | N5: 27 | O5: 22 | P5: 1.227272727 | Q5: 1.086028489 | R5: 30 | S5: 20 | T5: 1.5 | U5: 1.327368153 | V5: 5 | W5: 4.424560511
A6: 4 | B6: Ed | C6: 0.9950671377 | D6: 0.6181818182 | E6: 0.6212463409 | F6: 15 | G6: 22 | H6: 0.6818181818 | I6: 1.097500519 | J6: 16 | K6: 32 | L6: 0.5 | M6: 0.8048337143 | N6: 19 | O6: 31 | P6: 0.6129032258 | Q6: 0.9865703595 | R6: 18 | S6: 25 | T6: 0.72 | U6: 1.158960549 | V6: 5 | W6: 8.048337143
A7: 5 | B7: George | C7: 0.9779490831 | D7: 0.5252525253 | E7: 0.5370959841 | F7: 14 | G7: 26 | H7: 0.5384615385 | I7: 1.002542477 | J7: 13 | K7: 25 | L7: 0.52 | M7: 0.9681695923 | N7: 12 | O7: 22 | P7: 0.5454545455 | Q7: 1.015562509 | R7: 13 | S7: 26 | T7: 0.5 | U7: 0.9309323003 | V7: 4 | W7: 7.447458402
A8: 6 | B8: Hans M | C8: 0.9294681719 | D8: 0.6306306306 | E8: 0.6784854497 | F8: 15 | G8: 26 | H8: 0.5769230769 | I8: 0.8503101683 | J8: 21 | K8: 32 | L8: 0.65625 | M8: 0.9672278164 | N8: 16 | O8: 21 | P8: 0.7619047619 | Q8: 1.122949302 | R8: 18 | S8: 32 | T8: 0.5625 | U8: 0.829052414 | V8: 5 | W8: 7.369354792
A9: 7 | B9: Joep | C9: 0.9123815544 | D9: 1.178947368 | E9: 1.292164843 | F9: 27 | G9: 24 | H9: 1.125 | I9: 0.870631952 | J9: 29 | K9: 24 | L9: 1.208333333 | M9: 0.9351232077 | N9: 27 | O9: 24 | P9: 1.125 | Q9: 0.870631952 | R9: 29 | S9: 23 | T9: 1.260869565 | U9: 0.9757807385 | V9: 5 | W9: 3.869475342
A10: 8 | B10: Peter B | C10: 0.818909173 | D10: 0.6516853933 | E10: 0.7957969146 | F10: 23 | G10: 22 | H10: 1.045454545 | I10: 1.31372028 | J10: 5 | K10: 26 | L10: 0.1923076923 | M10: 0.2416542321 | N10: 11 | O10: 21 | P10: 0.5238095238 | Q10: 0.6582200988 | R10: 19 | S10: 20 | T10: 0.95 | U10: 1.193771907 | V10: 7 | W10: 8.796214048
A11: 9 | B11: Hans B | C11: 0.744953374 | D11: 0.61 | E11: 0.8188431938 | F11: 12 | G11: 26 | H11: 0.4615384615 | I11: 0.5636469412 | J11: 10 | K11: 27 | L11: 0.3703703704 | M11: 0.4523092738 | N11: 25 | O11: 21 | P11: 1.19047619 | Q11: 1.453851237 | R11: 14 | S11: 26 | T11: 0.5384615385 | U11: 0.6575880981 | V11: 4 | W11: 4.884940157
A12: 10 | B12: Hans dW | C12: 0.6835764265 | D12: 0.3421052632 | E12: 0.5004638105 | F12: 10 | G12: 24 | H12: 0.4166666667 | I12: 0.8325610322 | J12: 7 | K12: 27 | L12: 0.2592592593 | M12: 0.5180379756 | N12: 9 | O12: 31 | P12: 0.2903225806 | Q12: 0.5801070418 | R12: 13 | S12: 32 | T12: 0.40625 | U12: 0.8117470064 | V12: 2 | W12: 3.996292955
A13: 11 | B13: Peter D | C13: 0 | D13: 0 | E13: 0.9706651032 | H13: 0 | I13: 0 | L13: 0 | M13: 0 | P13: 0 | Q13: 0 | T13: 0 | U13: 0 | W13: 0
A14: 12 | B14: Ronald | C14: 0 | D14: 0 | E14: 0.6199166061 | H14: 0 | I14: 0 | L14: 0 | M14: 0 | P14: 0 | Q14: 0 | T14: 0 | U14: 0 | W14: 0
A15: 13 | B15: Frank | C15: 0 | D15: 0 | E15: 0.6133584884 | H15: 0 | I15: 0 | L15: 0 | M15: 0 | P15: 0 | Q15: 0 | T15: 0 | U15: 0 | W15: 0
A16: 14 | B16: Sjoerd | C16: 0 | D16: 0 | E16: 0.4979534949 | H16: 0 | I16: 0 | L16: 0 | M16: 0 | P16: 0 | Q16: 0 | T16: 0 | U16: 0 | W16: 0
A17: 15 | B17: Stefan | C17: 0 | D17: 0 | E17: 0.4946668086 | H17: 0 | I17: 0 | L17: 0 | M17: 0 | P17: 0 | Q17: 0 | T17: 0 | U17: 0 | W17: 0
A18: 16 | B18: Ton | C18: 0 | D18: 0 | E18: 0.4677419355 | H18: 0 | I18: 0 | L18: 0 | M18: 0 | P18: 0 | Q18: 0 | T18: 0 | U18: 0
C19: =AVERAGE(C3:C12) -> 0.9365806071 | D19: =AVERAGE(D3:D12) -> 0.8648159107 | E19: =AVERAGE(E3:E18) -> 0.7848120841

Sheet 20160513
A1: Pl | B1: Speler | C1: Netto | D1: Bruto | E1: Moyenne | F1: Ronde 1 | J1: Ronde 2 | N1: Ronde 3 | R1: Ronde 4 | V1: Hoogste
F2: p | G2: b | H2: m | I2: c | J2: p | K2: b | L2: m | M2: c | N2: p | O2: b | P2: m | Q2: c | R2: p | S2: b | T2: m | U2: c | V2: serie
A3: =A2+1 -> 1 | B3: Gerard | C3: =D3/E3 -> 1.436875073 | D3: =IF(G3>0,(F3+J3+N3+R3)/(G3+K3+O3+S3),0) -> 1.424242424 | E3: 0.9912082481 | F3: 33 | G3: 17 | H3: =IF(G3>0,F3/G3,0) -> 1.941176471 | I3: =H3/E3 -> 1.958394186 | J3: 16 | K3: 14 | L3: =IF(K3>0,J3/K3,0) -> 1.142857143 | M3: =L3/E3 -> 1.15299398 | N3: 20 | O3: 20 | P3: =IF(O3>0,N3/O3,0) -> 1 | Q3: =P3/E3 -> 1.008869732 | R3: 25 | S3: 15 | T3: =IF(S3>0,R3/S3,0) -> 1.666666667 | U3: =T3/E3 -> 1.681449554 | V3: 9 | W3: =V3/E3 -> 9.079827591
A4: 2 | B4: Frank | C4: 1.307271766 | D4: 0.7142857143 | E4: 0.5463942026 | F4: 9 | G4: 12 | H4: 0.75 | I4: 1.372635354 | J4: 14 | K4: 23 | L4: 0.6086956522 | M4: 1.114022896 | N4: 12 | O4: 19 | P4: 0.6315789474 | Q4: 1.155903456 | R4: 20 | S4: 23 | T4: 0.8695652174 | U4: 1.59146128 | V4: 6 | W4: 10.98108284
A5: 3 | B5: George | C5: 1.153603736 | D5: 0.630952381 | E5: 0.5469403065 | F5: 24 | G5: 22 | H5: 1.090909091 | I5: 1.994567008 | J5: 9 | K5: 27 | L5: 0.3333333333 | M5: 0.6094510304 | N5: 15 | O5: 21 | P5: 0.7142857143 | Q5: 1.305966494 | R5: 5 | S5: 14 | T5: 0.3571428571 | U5: 0.6529832468 | V5: 5 | W5: 9.141765455
A6: 4 | B6: Emie | C6: 1.017717803 | D6: 0.904109589 | E6: 0.888369631 | F6: 14 | G6: 17 | H6: 0.8235294118 | I6: 0.9270121164 | J6: 17 | K6: 23 | L6: 0.7391304348 | M6: 0.8320077691 | N6: 27 | O6: 19 | P6: 1.421052632 | Q6: 1.599618652 | R6: 8 | S6: 14 | T6: 0.5714285714 | U6: 0.6432328971 | V6: 4 | W6: 4.50263028
A7: 5 | B7: Hans B | C7: 0.9700253056 | D7: 0.8181818182 | E7: 0.843464406 | F7: 6 | G7: 12 | H7: 0.5 | I7: 0.5927932423 | J7: 22 | K7: 19 | L7: 1.157894737 | M7: 1.372784351 | N7: 17 | O7: 21 | P7: 0.8095238095 | Q7: 0.9597604876 | R7: 9 | S7: 14 | T7: 0.6428571429 | U7: 0.7621627401 | V7: 8 | W7: 9.484691877
A8: 6 | B8: Jan | C8: 0.9398141194 | D8: 1.416666667 | E8: 1.507390278 | F8: 14 | G8: 12 | H8: 1.166666667 | I8: 0.7739645689 | J8: 30 | K8: 14 | L8: 2.142857143 | M8: 1.421567575 | N8: 23 | O8: 19 | P8: 1.210526316 | Q8: 0.8030609812 | R8: 18 | S8: 15 | T8: 1.2 | U8: 0.7960778423 | V8: 12 | W8: 7.960778423
A9: 7 | B9: Peter B | C9: 0.9074136312 | D9: 0.7272727273 | E9: 0.8014787328 | F9: 13 | G9: 18 | H9: 0.7222222222 | I9: 0.9011121476 | J9: 21 | K9: 27 | L9: 0.7777777778 | M9: 0.9704284667 | N9: 18 | O9: 20 | P9: 0.9 | Q9: 1.122924369 | R9: 12 | S9: 23 | T9: 0.5217391304 | U9: 0.6509706485 | V9: 5 | W9: 6.238468714
A10: 8 | B10: Ed | C10: 0.8776545311 | D10: 0.5308641975 | E10: 0.6048669251 | F10: 13 | G10: 22 | H10: 0.5909090909 | I10: 0.9769241239 | J10: 10 | K10: 14 | L10: 0.7142857143 | M10: 1.180897293 | N10: 11 | O10: 19 | P10: 0.5789473684 | Q10: 0.9571483319 | R10: 9 | S10: 26 | T10: 0.3461538462 | U10: 0.5722809957 | V10: 4 | W10: 6.613024839
A11: 9 | B11: Joep | C11: 0.8319613259 | D11: 1.097560976 | E11: 1.319245188 | F11: 25 | G11: 18 | H11: 1.388888889 | I11: 1.052790567 | J11: 21 | K11: 19 | L11: 1.105263158 | M11: 0.837799651 | N11: 13 | O11: 19 | P11: 0.6842105263 | Q11: 0.5186378792 | R11: 31 | S11: 26 | T11: 1.192307692 | U11: 0.9037802096 | V11: 7 | W11: 5.306064456
A12: 10 | B12: Peter D | C12: 0 | D12: 0 | E12: 0.9706651032 | H12: 0 | I12: 0 | L12: 0 | M12: 0 | P12: 0 | Q12: 0 | T12: 0 | U12: 0 | W12: 0
A13: 11 | B13: Hans M | C13: 0 | D13: 0 | E13: 0.6784854497 | H13: 0 | I13: 0 | L13: 0 | M13: 0 | P13: 0 | Q13: 0 | T13: 0 | U13: 0 | W13: 0
A14: 12 | B14: Ronald | C14: 0 | D14: 0 | E14: 0.6199166061 | H14: 0 | I14: 0 | L14: 0 | M14: 0 | P14: 0 | Q14: 0 | T14: 0 | U14: 0 | W14: 0
A15: 13 | B15: Hans dW | C15: 0 | D15: 0 | E15: 0.5004638105 | H15: 0 | I15: 0 | L15: 0 | M15: 0 | P15: 0 | Q15: 0 | T15: 0 | U15: 0 | W15: 0
A16: 14 | B16: Sjoerd | C16: 0 | D16: 0 | E16: 0.4979534949 | H16: 0 | I16: 0 | L16: 0 | M16: 0 | P16: 0 | Q16: 0 | T16: 0 | U16: 0 | W16: 0
A17: 15 | B17: Stefan | C17: 0 | D17: 0 | E17: 0.4946668086 | H17: 0 | I17: 0 | L17: 0 | M17: 0 | P17: 0 | Q17: 0 | T17: 0 | U17: 0 | W17: 0
A18: 16 | B18: Ton | C18: 0 | D18: 0 | E18: 0.4677419355 | H18: 0 | I18: 0 | L18: 0 | M18: 0 | P18: 0 | Q18: 0 | T18: 0 | U18: 0
C19: =AVERAGE(C3:C11) -> 1.049148588 | D19: =AVERAGE(D3:D11) -> 0.9182373882 | E19: =AVERAGE(E3:E18) -> 0.7674531954

Sheet 20151207
A1: Pl | B1: Speler | C1: Netto | D1: Bruto | E1: Moyenne | F1: Ronde 1 | J1: Ronde 2 | N1: Ronde 3 | R1: Ronde 4 | V1: Hoogste
F2: p | G2: b | H2: m | I2: c | J2: p | K2: b | L2: m | M2: c | N2: p | O2: b | P2: m | Q2: c | R2: p | S2: b | T2: m | U2: c | V2: serie
A3: =A2+1 -> 1 | B3: Peter B | C3: =D3/E3 -> 1.315038592 | D3: =IF(G3>0,(F3+J3+N3+R3)/(G3+K3+O3+S3),0) -> 1 | E3: 0.7604339567 | F3: 22 | G3: 22 | H3: =IF(G3>0,F3/G3,0) -> 1 | I3: =H3/E3 -> 1.315038592 | J3: 21 | K3: 21 | L3: =IF(K3>0,J3/K3,0) -> 1 | M3: =L3/E3 -> 1.315038592 | N3: 17 | O3: 17 | P3: =IF(O3>0,N3/O3,0) -> 1 | Q3: =P3/E3 -> 1.315038592 | R3: 14 | S3: 14 | T3: =IF(S3>0,R3/S3,0) -> 1 | U3: =T3/E3 -> 1.315038592 | V3: 7 | W3: =V3/E3 -> 9.205270146
A4: 2 | B4: Jan | C4: 1.180824859 | D4: 1.714285714 | E4: 1.451769669 | F4: 45 | G4: 28 | H4: 1.607142857 | I4: 1.107023305 | J4: 38 | K4: 25 | L4: 1.52 | M4: 1.046998041 | N4: 25 | O4: 20 | P4: 1.25 | Q4: 0.8610181261 | R4: 60 | S4: 25 | T4: 2.4 | U4: 1.653154802 | V4: 9 | W4: 6.199330508
A5: 3 | B5: Gerard | C5: 1.128446449 | D5: 1.039473684 | E5: 0.9211546419 | F5: 9 | G5: 13 | H5: 0.6923076923 | I5: 0.7515651128 | J5: 19 | K5: 21 | L5: 0.9047619048 | M5: 0.9822041421 | N5: 33 | O5: 20 | P5: 1.65 | Q5: 1.791230185 | R5: 18 | S5: 22 | T5: 0.8181818182 | U5: 0.8882133151 | V5: 8 | W5: 8.684752414
A6: 4 | B6: George | C6: 1.116189101 | D6: 0.6056338028 | E6: 0.5425906793 | F6: 7 | G6: 13 | H6: 0.5384615385 | I6: 0.9923899525 | J6: 9 | K6: 16 | L6: 0.5625 | M6: 1.036693075 | N6: 12 | O6: 17 | P6: 0.7058823529 | Q6: 1.300948173 | R6: 15 | S6: 25 | T6: 0.6 | U6: 1.105805947 | V6: 3 | W6: 5.529029735
A7: 5 | B7: Ed | C7: 1.096514163 | D7: 0.6476190476 | E7: 0.5906162176 | F7: 18 | G7: 26 | H7: 0.6923076923 | I7: 1.172178602 | J7: 15 | K7: 28 | L7: 0.5357142857 | M7: 0.9070429658 | N7: 19 | O7: 26 | P7: 0.7307692308 | Q7: 1.237299635 | R7: 16 | S7: 25 | T7: 0.64 | U7: 1.083613997 | V7: 6 | W7: 10.15888122
A8: 6 | B8: Joep | C8: 1.038664759 | D8: 1.36 | E8: 1.309373393 | F8: 45 | G8: 22 | H8: 2.045454545 | I8: 1.562162907 | J8: 19 | K8: 16 | L8: 1.1875 | M8: 0.9069223542 | N8: 44 | O8: 33 | P8: 1.333333333 | Q8: 1.018298784 | R8: 28 | S8: 29 | T8: 0.9655172414 | U8: 0.7373887744 | V8: 10 | W8: 7.637240877
A9: 7 | B9: Frank | C9: 0.936776012 | D9: 0.527027027 | E9: 0.5625966296 | F9: 11 | G9: 13 | H9: 0.8461538462 | I9: 1.504015136 | J9: 11 | K9: 25 | L9: 0.44 | M9: 0.7820878706 | N9: 11 | O9: 22 | P9: 0.5 | Q9: 0.8887362166 | R9: 6 | S9: 14 | T9: 0.4285714286 | U9: 0.7617738999 | V9: 3 | W9: 5.332417299
A10: 8 | B10: Ronald | C10: 0.8329887016 | D10: 0.5327102804 | E10: 0.6395168138 | F10: 11 | G10: 26 | H10: 0.4230769231 | I10: 0.6615571537 | J10: 17 | K10: 26 | L10: 0.6538461538 | M10: 1.02240651 | N10: 12 | O10: 33 | P10: 0.3636363636 | Q10: 0.5686111073 | R10: 17 | S10: 22 | T10: 0.7727272727 | U10: 1.208298603 | V10: 4 | W10: 6.254722181
A11: 9 | B11: Emie | C11: 0.8142599074 | D11: 0.8 | E11: 0.982487278 | F11: 19 | G11: 26 | H11: 0.7307692308 | I11: 0.7437951077 | J11: 30 | K11: 28 | L11: 1.071428571 | M11: 1.090526662 | N11: 18 | O11: 17 | P11: 1.058823529 | Q11: 1.077696936 | R11: 13 | S11: 29 | T11: 0.4482758621 | U11: 0.4562663274 | V11: 6 | W11: 6.106949305
A12: 10 | B12: Hans dW | C12: 0.7930529788 | D12: 0.4047619048 | E12: 0.5103844454 | F12: 4 | G12: 28 | H12: 0.1428571429 | I12: 0.2799010513 | J12: 4 | K12: 16 | L12: 0.25 | M12: 0.4898268398 | N12: 22 | O12: 26 | P12: 0.8461538462 | Q12: 1.657875458 | R12: 4 | S12: 14 | T12: 0.2857142857 | U12: 0.5598021027 | V12: 3 | W12: 5.877922078
A13: 11 | B13: Hans B | C13: 0.7194812669 | D13: 0.6464646465 | E13: 0.898514911 | F13: 12 | G13: 26 | H13: 0.4615384615 | I13: 0.513668116 | J13: 16 | K13: 26 | L13: 0.6153846154 | M13: 0.6848908213 | N13: 16 | O13: 22 | P13: 0.7272727273 | Q13: 0.8094164252 | R13: 20 | S13: 25 | T13: 0.8 | U13: 0.8903580677 | V13: 5 | W13: 5.564737923
A14: 12 | B14: Peter D | C14: 0 | D14: 0 | E14: 0.9706651032 | H14: 0 | I14: 0 | L14: 0 | M14: 0 | P14: 0 | Q14: 0 | T14: 0 | U14: 0 | W14: 0
A15: 13 | B15: Hans M | C15: 0 | D15: 0 | E15: 0.6784854497 | H15: 0 | I15: 0 | L15: 0 | M15: 0 | P15: 0 | Q15: 0 | T15: 0 | U15: 0 | W15: 0
A16: 14 | B16: Sjoerd | C16: 0 | D16: 0 | E16: 0.4979534949 | H16: 0 | I16: 0 | L16: 0 | M16: 0 | P16: 0 | Q16: 0 | T16: 0 | U16: 0 | W16: 0
A17: 15 | B17: Stefan | C17: 0 | D17: 0 | E17: 0.4946668086 | H17: 0 | I17: 0 | L17: 0 | M17: 0 | P17: 0 | Q17: 0 | T17: 0 | U17: 0 | W17: 0
A18: 16 | B18: Ton | C18: 0 | D18: 0 | E18: 0.4677419355 | H18: 0 | I18: 0 | L18: 0 | M18: 0 | P18: 0 | Q18: 0 | T18: 0 | U18: 0
C19: =AVERAGE(C3:C13) -> 0.9974760718 | D19: =AVERAGE(D3:D13) -> 0.8434523734 | E19: =AVERAGE(E3:E18) -> 0.7674344642

Sheet 20150522
A1: Pl | B1: Speler | C1: Netto | D1: Bruto | E1: Moyenne | F1: Ronde 1 | J1: Ronde 2 | N1: Ronde 3 | R1: Ronde 4 | V1: Hoogste
F2: p | G2: b | H2: m | I2: c | J2: p | K2: b | L2: m | M2: c | N2: p | O2: b | P2: m | Q2: c | R2: p | S2: b | T2: m | U2: c | V2: serie
A3: =A2+1 -> 1 | B3: Hans M | C3: =D3/E3 -> 1.447543604 | D3: =IF(G3>0,(F3+J3+N3+R3)/(G3+K3+O3+S3),0) -> 0.875 | E3: 0.6044722918 | F3: 25 | G3: 27 | H3: =IF(G3>0,F3/G3,0) -> 0.9259259259 | I3: =H3/E3 -> 1.531792174 | J3: 17 | K3: 18 | L3: =IF(K3>0,J3/K3,0) -> 0.9444444444 | M3: =L3/E3 -> 1.562428017 | N3: 12 | O3: 22 | P3: =IF(O3>0,N3/O3,0) -> 0.5454545455 | Q3: =P3/E3 -> 0.9023648442 | R3: 23 | S3: 21 | T3: =IF(S3>0,R3/S3,0) -> 1.095238095 | U3: =T3/E3 -> 1.811891314 | V3: 6 | W3: =V3/E3 -> 9.926013286
A4: 2 | B4: Jan | C4: 1.130455253 | D4: 1.573333333 | E4: 1.391769669 | F4: 43 | G4: 18 | H4: 2.388888889 | I4: 1.716439826 | J4: 31 | K4: 18 | L4: 1.722222222 | M4: 1.237433363 | N4: 32 | O4: 24 | P4: 1.333333333 | Q4: 0.9580129262 | R4: 12 | S4: 15 | T4: 0.8 | U4: 0.5748077557 | V4: 6 | W4: 4.311058168
A5: 3 | B5: Ed | C5: 1.071137868 | D5: 0.6179775281 | E5: 0.5769355624 | F5: 10 | G5: 16 | H5: 0.625 | I5: 1.083309889 | J5: 18 | K5: 21 | L5: 0.8571428571 | M5: 1.485682133 | N5: 7 | O5: 22 | P5: 0.3181818182 | Q5: 0.5515032162 | R5: 20 | S5: 30 | T5: 0.6666666667 | U5: 1.155530548 | V5: 3 | W5: 5.199887467
A6: 4 | B6: Peter B | C6: 1.063168116 | D6: 0.7837837838 | E6: 0.7372152835 | F6: 8 | G6: 14 | H6: 0.5714285714 | I6: 0.775117641 | J6: 22 | K6: 22 | L6: 1 | M6: 1.356455872 | N6: 18 | O6: 23 | P6: 0.7826086957 | Q6: 1.06157416 | R6: 10 | S6: 15 | T6: 0.6666666667 | U6: 0.9043039145 | V6: 5 | W6: 6.782279358
A7: 5 | B7: Gerard | C7: 1.030214799 | D7: 0.9315068493 | E7: 0.9041870205 | F7: 14 | G7: 16 | H7: 0.875 | I7: 0.967720151 | J7: 8 | K7: 12 | L7: 0.6666666667 | M7: 0.7373105912 | N7: 16 | O7: 24 | P7: 0.6666666667 | Q7: 0.7373105912 | R7: 30 | S7: 21 | T7: 1.428571429 | U7: 1.579951267 | V7: 7 | W7: 7.741761208
A8: 6 | B8: George | C8: 1.012017872 | D8: 0.5617977528 | E8: 0.5551263157 | F8: 17 | G8: 27 | H8: 0.6296296296 | I8: 1.13420966 | J8: 12 | K8: 20 | L8: 0.6 | M8: 1.080835087 | N8: 14 | O8: 27 | P8: 0.5185185185 | Q8: 0.9340550138 | R8: 7 | S8: 15 | T8: 0.4666666667 | U8: 0.8406495124 | V8: 4 | W8: 7.205567249
A9: 7 | B9: Frank | C9: 0.945380461 | D9: 0.5454545455 | E9: 0.5769682873 | F9: 4 | G9: 14 | H9: 0.2857142857 | I9: 0.4951992891 | J9: 19 | K9: 21 | L9: 0.9047619048 | M9: 1.568131082 | N9: 12 | O9: 24 | P9: 0.5 | Q9: 0.8665987559 | R9: 13 | S9: 29 | T9: 0.4482758621 | U9: 0.7769506088 | V9: 6 | W9: 10.39918507
A10: 8 | B10: Hans dW | C10: 0.9384594015 | D10: 0.4931506849 | E10: 0.5254896313 | F10: 10 | G10: 19 | H10: 0.5263157895 | I10: 1.001572168 | J10: 10 | K10: 12 | L10: 0.8333333333 | M10: 1.5858226 | N10: 9 | O10: 23 | P10: 0.3913043478 | Q10: 0.7446471338 | R10: 7 | S10: 19 | T10: 0.3684210526 | U10: 0.7011005178 | V10: 6 | W10: 11.41792272
A11: 9 | B11: Hans B | C11: 0.9021896327 | D11: 0.7922077922 | E11: 0.8780945419 | F11: 14 | G11: 14 | H11: 1 | I11: 1.138829536 | J11: 9 | K11: 20 | L11: 0.45 | M11: 0.5124732913 | N11: 14 | O11: 24 | P11: 0.5833333333 | Q11: 0.6643172295 | R11: 24 | S11: 19 | T11: 1.263157895 | U11: 1.43852152 | V11: 5 | W11: 5.694147682
A12: 10 | B12: Emie | C12: 0.8960017653 | D12: 0.8850574713 | E12: 0.9877854102 | F12: 18 | G12: 18 | H12: 1 | I12: 1.012365631 | J12: 13 | K12: 12 | L12: 1.083333333 | M12: 1.096729433 | N12: 21 | O12: 27 | P12: 0.7777777778 | Q12: 0.7873954907 | R12: 25 | S12: 30 | T12: 0.8333333333 | U12: 0.8436380257 | V12: 7 | W12: 7.086559416
A13: 11 | B13: Joep | C13: 0.8584676877 | D13: 1.184782609 | E13: 1.380113225 | F13: 29 | G13: 19 | H13: 1.526315789 | I13: 1.105935196 | J13: 17 | K13: 22 | L13: 0.7727272727 | M13: 0.559901361 | N13: 40 | O13: 22 | P13: 1.818181818 | Q13: 1.317414967 | R13: 23 | S13: 29 | T13: 0.7931034483 | U13: 0.5746654942 | V13: 8 | W13: 5.796625855
A14: 12 | B14: Peter D | C14: 0 | D14: 0 | E14: 0.9706651032 | H14: 0 | I14: 0 | L14: 0 | M14: 0 | P14: 0 | Q14: 0 | T14: 0 | U14: 0 | W14: 0
A15: 13 | B15: Ronald | C15: 0 | D15: 0 | E15: 0.6395168138 | H15: 0 | I15: 0 | L15: 0 | M15: 0 | P15: 0 | Q15: 0 | T15: 0 | U15: 0 | W15: 0
A16: 14 | B16: Sjoerd | C16: 0 | D16: 0 | E16: 0.4979534949 | H16: 0 | I16: 0 | L16: 0 | M16: 0 | P16: 0 | Q16: 0 | T16: 0 | U16: 0 | W16: 0
A17: 15 | B17: Stefan | C17: 0 | D17: 0 | E17: 0.4946668086 | H17: 0 | I17: 0 | L17: 0 | M17: 0 | P17: 0 | Q17: 0 | T17: 0 | U17: 0 | W17: 0
A18: 16 | B18: Ton | C18: 0 | D18: 0 | E18: 0.4677419355 | H18: 0 | I18: 0 | L18: 0 | M18: 0 | P18: 0 | Q18: 0 | T18: 0 | U18: 0
C19: =AVERAGE(C3:C13) -> 1.026821496 | D19: =AVERAGE(D3:D13) -> 0.8403683954 | E19: =AVERAGE(E3:E18) -> 0.7617938371

Sheet 20141208
A1: Pl | B1: Speler | C1: Netto | D1: Bruto | E1: Moyenne | F1: Ronde 1 | J1: Ronde 2 | N1: Ronde 3 | R1: Ronde 4 | V1: Hoogste
F2: p | G2: b | H2: m | I2: c | J2: p | K2: b | L2: m | M2: c | N2: p | O2: b | P2: m | Q2: c | R2: p | S2: b | T2: m | U2: c | V2: serie
A3: =A2+1 -> 1 | B3: Emie | C3: =D3/E3 -> 1.6625 | D3: =IF(G3>0,(F3+J3+N3+R3)/(G3+K3+O3+S3),0) -> 1.166666667 | E3: 0.701754386 | F3: 10 | G3: 16 | H3: =IF(G3>0,F3/G3,0) -> 0.625 | I3: =H3/E3 -> 0.890625 | J3: 20 | K3: 18 | L3: =IF(K3>0,J3/K3,0) -> 1.111111111 | M3: =L3/E3 -> 1.583333333 | N3: 17 | O3: 11 | P3: =IF(O3>0,N3/O3,0) -> 1.545454545 | Q3: =P3/E3 -> 2.202272727 | R3: 23 | S3: 15 | T3: =IF(S3>0,R3/S3,0) -> 1.533333333 | U3: =T3/E3 -> 2.185 | V3: 11 | W3: =V3/E3 -> 15.675
A4: 2 | B4: Frank | C4: 1.493333333 | D4: 0.6666666667 | E4: 0.4464285714 | F4: 10 | G4: 11 | H4: 0.9090909091 | I4: 2.036363636 | J4: 7 | K4: 18 | L4: 0.3888888889 | M4: 0.8711111111 | N4: 14 | O4: 12 | P4: 1.166666667 | Q4: 2.613333333 | R4: 7 | S4: 16 | T4: 0.4375 | U4: 0.98 | V4: 4 | W4: 8.96
A5: 3 | B5: Ed | C5: 1.479595396 | D5: 0.6885245902 | E5: 0.4653465347 | F5: 6 | G5: 16 | H5: 0.375 | I5: 0.8058510638 | J5: 13 | K5: 15 | L5: 0.8666666667 | M5: 1.862411348 | N5: 12 | O5: 15 | P5: 0.8 | Q5: 1.719148936 | R5: 11 | S5: 15 | T5: 0.7333333333 | U5: 1.575886525 | V5: 5 | W5: 10.74468085
A6: 4 | B6: Gerard | C6: 1.294811321 | D6: 1.125 | E6: 0.868852459 | F6: 18 | G6: 11 | H6: 1.636363636 | I6: 1.883361921 | J6: 9 | K6: 12 | L6: 0.75 | M6: 0.8632075472 | N6: 10 | O6: 10 | P6: 1 | Q6: 1.150943396 | R6: 17 | S6: 15 | T6: 1.133333333 | U6: 1.304402516 | V6: 5 | W6: 5.754716981
A7: 5 | B7: Jan | C7: 1.269300418 | D7: 1.614035088 | E7: 1.271594231 | F7: 26 | G7: 13 | H7: 2 | I7: 1.572828778 | J7: 22 | K7: 12 | L7: 1.833333333 | M7: 1.441759713 | N7: 32 | O7: 15 | P7: 2.133333333 | Q7: 1.67768403 | R7: 12 | S7: 17 | T7: 0.7058823529 | U7: 0.5551160394 | V7: 9 | W7: 7.077729502
A8: 6 | B8: Hans dW | C8: 1.126526227 | D8: 0.5555555556 | E8: 0.4931581195 | F8: 9 | G8: 13 | H8: 0.6923076923 | I8: 1.40382499 | J8: 6 | K8: 15 | L8: 0.4 | M8: 0.8110988833 | N8: 6 | O8: 11 | P8: 0.5454545455 | Q8: 1.106043932 | R8: 9 | S8: 15 | T8: 0.6 | U8: 1.216648325 | V8: 3 | W8: 6.083241625
A9: 7 | B9: Hans B | C9: 1.111111111 | D9: 1.018518519 | E9: 0.9166666667 | F9: 13 | G9: 15 | H9: 0.8666666667 | I9: 0.9454545455 | J9: 14 | K9: 12 | L9: 1.166666667 | M9: 1.272727273 | N9: 16 | O9: 11 | P9: 1.454545455 | Q9: 1.58677686 | R9: 12 | S9: 16 | T9: 0.75 | U9: 0.8181818182 | V9: 8 | W9: 8.727272727
A10: 8 | B10: Joep | C10: 1.038145942 | D10: 1.526315789 | E10: 1.47023239 | F10: 18 | G10: 15 | H10: 1.2 | I10: 0.816197499 | J10: 17 | K10: 15 | L10: 1.133333333 | M10: 0.7708531935 | N10: 28 | O10: 12 | P10: 2.333333333 | Q10: 1.587050692 | R10: 24 | S10: 15 | T10: 1.6 | U10: 1.088263332 | V10: 8 | W10: 5.44131666
A11: 9 | B11: Ronald | C11: 1.036183967 | D11: 0.6567164179 | E11: 0.6337836124 | F11: 12 | G11: 16 | H11: 0.75 | I11: 1.18336919 | J11: 10 | K11: 22 | L11: 0.4545454545 | M11: 0.7171934485 | N11: 9 | O11: 12 | P11: 0.75 | Q11: 1.18336919 | R11: 13 | S11: 17 | T11: 0.7647058824 | U11: 1.206572507 | V11: 5 | W11: 7.889127933
A12: 10 | B12: Peter B | C12: 0.8682737216 | D12: 0.6721311475 | E12: 0.7741005294 | F12: 14 | G12: 13 | H12: 1.076923077 | I12: 1.391192792 | J12: 10 | K12: 22 | L12: 0.4545454545 | M12: 0.5871917629 | N12: 9 | O12: 10 | P12: 0.9 | Q12: 1.162639691 | R12: 8 | S12: 16 | T12: 0.5 | U12: 0.6459109392 | V12: 5 | W12: 6.459109392
A13: 11 | B13: Hans M | C13: 0.6606234016 | D13: 0.4285714286 | E13: 0.6487378854 | F13: 11 | G13: 11 | H13: 1 | I13: 1.541454604 | J13: 3 | K13: 22 | L13: 0.1363636364 | M13: 0.210198355 | N13: 5 | O13: 15 | P13: 0.3333333333 | Q13: 0.5138182012 | R13: 8 | S13: 15 | T13: 0.5333333333 | U13: 0.8221091219 | V13: 4 | W13: 6.165818415
A14: 12 | B14: George | C14: 0.5591414726 | D14: 0.35 | E14: 0.6259596491 | F14: 5 | G14: 15 | H14: 0.3333333333 | I14: 0.5325156882 | J14: 5 | K14: 18 | L14: 0.2777777778 | M14: 0.4437630735 | N14: 6 | O14: 10 | P14: 0.6 | Q14: 0.9585282388 | R14: 5 | S14: 17 | T14: 0.2941176471 | U14: 0.4698667837 | V14: 3 | W14: 4.792641194
A15: 13 | B15: Peter D | C15: 0 | D15: 0 | E15: 0.9706651032 | H15: 0 | I15: 0 | L15: 0 | M15: 0 | P15: 0 | Q15: 0 | T15: 0 | U15: 0 | W15: 0
A16: 14 | B16: Sjoerd | C16: 0 | D16: 0 | E16: 0.4979534949 | H16: 0 | I16: 0 | L16: 0 | M16: 0 | P16: 0 | Q16: 0 | T16: 0 | U16: 0 | W16: 0
A17: 15 | B17: Stefan | C17: 0 | D17: 0 | E17: 0.4946668086 | H17: 0 | I17: 0 | L17: 0 | M17: 0 | P17: 0 | Q17: 0 | T17: 0 | U17: 0 | W17: 0
A18: 16 | B18: Ton | C18: 0 | D18: 0 | E18: 0.4677419355 | H18: 0 | I18: 0 | L18: 0 | M18: 0 | P18: 0 | Q18: 0 | T18: 0 | U18: 0
C19: =AVERAGE(C3:C14) -> 1.133295526 | D19: =AVERAGE(D3:D14) -> 0.8723918224 | E19: =AVERAGE(E3:E18) -> 0.7342276485

Sheet 20140509
A1: Pl | B1: Speler | C1: Netto | D1: Bruto | E1: Moyenne | F1: Ronde 1 | J1: Ronde 2 | N1: Ronde 3 | R1: Ronde 4 | V1: Hoogste
F2: p | G2: b | H2: m | I2: c | J2: p | K2: b | L2: m | M2: c | N2: p | O2: b | P2: m | Q2: c | R2: p | S2: b | T2: m | U2: c | V2: serie
A3: =A2+1 -> 1 | B3: Hans dW | C3: =D3/E3 -> 1.233870968 | D3: =IF(G3>0,(F3+J3+N3+R3)/(G3+K3+O3+S3),0) -> 0.5483870968 | E3: 0.4444444444 | F3: 13 | G3: 23 | H3: =IF(G3>0,F3/G3,0) -> 0.5652173913 | I3: =H3/E3 -> 1.27173913 | J3: 20 | K3: 26 | L3: =IF(K3>0,J3/K3,0) -> 0.7692307692 | M3: =L3/E3 -> 1.730769231 | N3: 6 | O3: 20 | P3: =IF(O3>0,N3/O3,0) -> 0.3 | Q3: =P3/E3 -> 0.675 | R3: 12 | S3: 24 | T3: =IF(S3>0,R3/S3,0) -> 0.5 | U3: =T3/E3 -> 1.125 | V3: 5 | W3: =V3/E3 -> 11.25
A4: 2 | B4: George | C4: 1.13956044 | D4: 0.6703296703 | E4: 0.5882352941 | F4: 18 | G4: 21 | H4: 0.8571428571 | I4: 1.457142857 | J4: 12 | K4: 21 | L4: 0.5714285714 | M4: 0.9714285714 | N4: 20 | O4: 28 | P4: 0.7142857143 | Q4: 1.214285714 | R4: 11 | S4: 21 | T4: 0.5238095238 | U4: 0.8904761905 | V4: 7 | W4: 11.9
A5: 3 | B5: Joep | C5: 0.9131924615 | D5: 1.205882353 | E5: 1.320512821 | F5: 47 | G5: 24 | H5: 1.958333333 | I5: 1.483009709 | J5: 17 | K5: 24 | L5: 0.7083333333 | M5: 0.536407767 | N5: 38 | O5: 30 | P5: 1.266666667 | Q5: 0.959223301 | R5: 21 | S5: 24 | T5: 0.875 | U5: 0.6626213592 | V5: 7 | W5: 5.300970874
A6: 4 | B6: Peter B | C6: 0.8973214286 | D6: 0.75 | E6: 0.8358208955 | F6: 19 | G6: 23 | H6: 0.8260869565 | I6: 0.9883540373 | J6: 23 | K6: 24 | L6: 0.9583333333 | M6: 1.146577381 | N6: 12 | O6: 28 | P6: 0.4285714286 | Q6: 0.512755102 | R6: 18 | S6: 21 | T6: 0.8571428571 | U6: 1.025510204 | V6: 5 | W6: 5.982142857
A7: 5 | B7: Jan | C7: 0.7560695119 | D7: 1.127906977 | E7: 1.491803279 | F7: 27 | G7: 23 | H7: 1.173913043 | I7: 0.7869087434 | J7: 23 | K7: 21 | L7: 1.095238095 | M7: 0.7341705913 | N7: 31 | O7: 20 | P7: 1.55 | Q7: 1.039010989 | R7: 16 | S7: 22 | T7: 0.7272727273 | U7: 0.4875124875 | V7: 8 | W7: 5.362637363
A8: 6 | B8: Stefan | C8: 0.6769825919 | D8: 0.4545454545 | E8: 0.6714285714 | F8: 5 | G8: 24 | H8: 0.2083333333 | I8: 0.3102836879 | J8: 6 | K8: 26 | L8: 0.2307692308 | M8: 0.3436988543 | N8: 18 | O8: 28 | P8: 0.6428571429 | Q8: 0.9574468085 | R8: 16 | S8: 21 | T8: 0.7619047619 | U8: 1.134751773 | V8: 10 | W8: 14.89361702
A9: 7 | B9: Hans M | C9: 0.6204255319 | D9: 0.54 | E9: 0.8703703704 | F9: 17 | G9: 21 | H9: 0.8095238095 | I9: 0.9300911854 | J9: 14 | K9: 28 | L9: 0.5 | M9: 0.5744680851 | N9: 12 | O9: 30 | P9: 0.4 | Q9: 0.4595744681 | R9: 11 | S9: 21 | T9: 0.5238095238 | U9: 0.6018237082 | V9: 4 | W9: 4.595744681
A10: 8 | B10: Ed | C10: 0.4653465347 | D10: 0.4653465347 | E10: 1 | F10: 14 | G10: 23 | H10: 0.6086956522 | I10: 0.6086956522 | J10: 12 | K10: 28 | L10: 0.4285714286 | M10: 0.4285714286 | N10: 13 | O10: 28 | P10: 0.4642857143 | Q10: 0.4642857143 | R10: 8 | S10: 22 | T10: 0.3636363636 | U10: 0.3636363636 | V10: 5 | W10: 5
A11: 9 | B11: Peter D | C11: 0 | D11: 0 | E11: 0.9706651032 | H11: 0 | I11: 0 | L11: 0 | M11: 0 | P11: 0 | Q11: 0 | T11: 0 | U11: 0 | W11: 0
A12: 10 | B12: Hans B | C12: 0 | D12: 0 | E12: 0.9166666667 | H12: 0 | I12: 0 | L12: 0 | M12: 0 | P12: 0 | Q12: 0 | T12: 0 | U12: 0 | W12: 0
A13: 11 | B13: Gerard | C13: 0 | D13: 0 | E13: 0.868852459 | H13: 0 | I13: 0 | L13: 0 | M13: 0 | P13: 0 | Q13: 0 | T13: 0 | U13: 0 | W13: 0
A14: 12 | B14: Emie | C14: 0 | D14: 0 | E14: 0.701754386 | H14: 0 | I14: 0 | L14: 0 | M14: 0 | P14: 0 | Q14: 0 | T14: 0 | U14: 0 | W14: 0
A15: 13 | B15: Ronald | C15: 0 | D15: 0 | E15: 0.6337836124 | H15: 0 | I15: 0 | L15: 0 | M15: 0 | P15: 0 | Q15: 0 | T15: 0 | U15: 0 | W15: 0
A16: 14 | B16: Sjoerd | C16: 0 | D16: 0 | E16: 0.4979534949 | H16: 0 | I16: 0 | L16: 0 | M16: 0 | P16: 0 | Q16: 0 | T16: 0 | U16: 0 | W16: 0
A17: 15 | B17: Ton | C17: 0 | D17: 0 | E17: 0.4677419355 | H17: 0 | I17: 0 | L17: 0 | M17: 0 | P17: 0 | Q17: 0 | T17: 0 | U17: 0
A18: 16 | B18: Frank | C18: 0 | D18: 0 | E18: 0.4464285714 | H18: 0 | I18: 0 | L18: 0 | M18: 0 | P18: 0 | Q18: 0 | T18: 0 | U18: 0 | W18: =V18/E18 -> 0
E19: =AVERAGE(E3:E18) -> 0.795403869

Sheet 20131206
A1: Pl | B1: Speler | C1: Netto | D1: Bruto | E1: Corr. | F1: Ronde 1 | J1: Ronde 2 | N1: Ronde 3 | R1: Ronde 4 | V1: Hoogste
E2: factor | F2: p | G2: b | H2: m | I2: c | J2: p | K2: b | L2: m | M2: c | N2: p | O2: b | P2: m | Q2: c | R2: p | S2: b | T2: m | U2: c | V2: serie
A3: =A2+1 -> 1 | B3: Stefan | C3: =D3/E3 -> 1.494968105 | D3: =IF(G3>0,(F3+J3+N3+R3)/(G3+K3+O3+S3),0) -> 0.6714285714 | E3: 0.4491256831 | F3: 16 | G3: 23 | H3: =IF(G3>0,F3/G3,0) -> 0.6956521739 | I3: =H3/E3 -> 1.548903125 | J3: 16 | K3: 15 | L3: =IF(K3>0,J3/K3,0) -> 1.066666667 | M3: =L3/E3 -> 2.374984791 | N3: 5 | O3: 17 | P3: =IF(O3>0,N3/O3,0) -> 0.2941176471 | Q3: =P3/E3 -> 0.65486713 | R3: 10 | S3: 15 | T3: =IF(S3>0,R3/S3,0) -> 0.6666666667 | U3: =T3/E3 -> 1.484365495 | V3: 5 | W3: =V3/E3 -> 11.13274121
A4: 2 | B4: Hans M | C4: 1.285287012 | D4: 0.8703703704 | E4: 0.6771797756 | F4: 14 | G4: 14 | H4: 1 | I4: 1.476712737 | J4: 8 | K4: 15 | L4: 0.5333333333 | M4: 0.7875801265 | N4: 14 | O4: 15 | P4: 0.9333333333 | Q4: 1.378265221 | R4: 11 | S4: 10 | T4: 1.1 | U4: 1.624384011 | V4: 4 | W4: 5.906850949
A5: 3 | B5: Peter B | C5: 1.236929703 | D5: 0.8358208955 | E5: 0.6757222286 | F5: 10 | G5: 14 | H5: 0.7142857143 | I5: 1.057070027 | J5: 9 | K5: 16 | L5: 0.5625 | M5: 0.8324426461 | N5: 15 | O5: 15 | P5: 1 | Q5: 1.479898038 | R5: 22 | S5: 22 | T5: 1 | U5: 1.479898038 | V5: 8 | W5: 11.8391843
A6: 4 | B6: Jan | C6: 1.185258694 | D6: 1.491803279 | E6: 1.258630952 | F6: 23 | G6: 14 | H6: 1.642857143 | I6: 1.305273114 | J6: 18 | K6: 16 | L6: 1.125 | M6: 0.8938283282 | N6: 36 | O6: 21 | P6: 1.714285714 | Q6: 1.362024119 | R6: 14 | S6: 10 | T6: 1.4 | U6: 1.112319697 | V6: 8 | W6: 6.356112556
A7: 5 | B7: Hans B | C7: 1.17461124 | D7: 0.9166666667 | E7: 0.780400047 | F7: 9 | G7: 23 | H7: 0.3913043478 | I7: 0.5014150746 | J7: 12 | K7: 13 | L7: 0.9230769231 | M7: 1.182825304 | N7: 12 | O7: 14 | P7: 0.8571428571 | Q7: 1.098337783 | R7: 22 | S7: 10 | T7: 2.2 | U7: 2.819066975 | V7: 8 | W7: 10.25115264
A8: 6 | B8: Gerard | C8: 1.128800867 | D8: 0.868852459 | E8: 0.7697127849 | F8: 15 | G8: 14 | H8: 1.071428571 | I8: 1.391984897 | J8: 10 | K8: 16 | L8: 0.625 | M8: 0.8119911898 | N8: 14 | O8: 17 | P8: 0.8235294118 | Q8: 1.069917803 | R8: 14 | S8: 14 | T8: 1 | U8: 1.299185904 | V8: 8 | W8: 10.39348723
A9: 7 | B9: Joep | C9: 0.9246790871 | D9: 1.320512821 | E9: 1.428076874 | F9: 15 | G9: 14 | H9: 1.071428571 | I9: 0.7502597309 | J9: 42 | K9: 25 | L9: 1.68 | M9: 1.176407258 | N9: 19 | O9: 17 | P9: 1.117647059 | Q9: 0.7826238761 | R9: 27 | S9: 22 | T9: 1.227272727 | U9: 0.859388419 | V9: 6 | W9: 4.201454493
A10: 8 | B10: Hans dW | C10: 0.9021896342 | D10: 0.4444444444 | E10: 0.4926286311 | F10: 8 | G10: 14 | H10: 0.5714285714 | I10: 1.159958101 | J10: 8 | K10: 13 | L10: 0.6153846154 | M10: 1.249185647 | N10: 6 | O10: 21 | P10: 0.2857142857 | Q10: 0.5799790505 | R10: 6 | S10: 15 | T10: 0.4 | U10: 0.8119706708 | V10: 3 | W10: 6.089780031
A11: 9 | B11: George | C11: 0.8611860304 | D11: 0.5882352941 | E11: 0.6830525268 | F11: 8 | G11: 14 | H11: 0.5714285714 | I11: 0.8365807152 | J11: 15 | K11: 25 | L11: 0.6 | M11: 0.878409751 | N11: 11 | O11: 14 | P11: 0.7857142857 | Q11: 1.150298483 | R11: 6 | S11: 15 | T11: 0.4 | U11: 0.5856065007 | V11: 6 | W11: 8.78409751
A12: 10 | B12: Emie | C12: 0.7627315349 | D12: 0.701754386 | E12: 0.9200542443 | F12: 9 | G12: 14 | H12: 0.6428571429 | I12: 0.6987165668 | J12: 17 | K12: 15 | L12: 1.133333333 | M12: 1.231811429 | N12: 9 | O12: 14 | P12: 0.6428571429 | Q12: 0.6987165668 | R12: 5 | S12: 14 | T12: 0.3571428571 | U12: 0.3881758704 | V12: 9 | W12: 9.782031935
A13: 11 | B13: Frank | C13: 0.7208467333 | D13: 0.4464285714 | E13: 0.6193113609 | F13: 6 | G13: 14 | H13: 0.4285714286 | I13: 0.692012864 | J13: 2 | K13: 13 | L13: 0.1538461538 | M13: 0.2484148743 | N13: 9 | O13: 15 | P13: 0.6 | Q13: 0.9688180096 | R13: 8 | S13: 14 | T13: 0.5714285714 | U13: 0.9226838187 | V13: 3 | W13: 4.844090048
A14: 12 | B14: Ronald | C14: 0 | D14: 0 | E14: 0.6337836124 | H14: 0 | I14: 0 | L14: 0 | M14: 0 | P14: 0 | Q14: 0 | T14: 0 | U14: 0 | W14: 0
A15: 13 | B15: Ton | C15: 0 | D15: 0 | E15: 0.4677419355 | H15: 0 | I15: 0 | L15: 0 | M15: 0 | P15: 0 | Q15: 0 | T15: 0 | U15: 0
A16: 14 | B16: Peter D | C16: 0 | D16: 0 | E16: 0.9706651032 | H16: 0 | I16: 0 | L16: 0 | M16: 0 | P16: 0 | Q16: 0 | T16: 0 | U16: 0 | W16: =V16/E16 -> 0
A17: 15 | B17: Sjoerd | C17: 0 | D17: 0 | E17: 0.4979534949 | H17: 0 | I17: 0 | L17: 0 | M17: 0 | P17: 0 | Q17: 0 | T17: 0 | U17: 0 | W17: =V17/E17 -> 0
E18: =AVERAGE(E3:E17) -> 0.7549359503

Sheet 20130510
A1: Pl | B1: Speler | C1: Netto | D1: Bruto | E1: Corr. | F1: Ronde 1 | J1: Ronde 2 | N1: Ronde 3 | R1: Ronde 4 | V1: Hoogste
E2: factor | F2: p | G2: b | H2: m | I2: c | J2: p | K2: b | L2: m | M2: c | N2: p | O2: b | P2: m | Q2: c | R2: p | S2: b | T2: m | U2: c | V2: serie
A3: =A2+1 -> 1 | B3: Emie | C3: =D3/E3 -> 1.328877417 | D3: =IF(G3>0,(F3+J3+N3+R3)/(G3+K3+O3+S3),0) -> 1.176470588 | E3: 0.8853115973 | F3: 14 | G3: 11 | H3: =IF(G3>0,F3/G3,0) -> 1.272727273 | I3: =H3/E3 -> 1.437603751 | J3: 18 | K3: 12 | L3: =IF(K3>0,J3/K3,0) -> 1.5 | M3: =L3/E3 -> 1.694318706 | N3: 11 | O3: 15 | P3: =IF(O3>0,N3/O3,0) -> 0.7333333333 | Q3: =P3/E3 -> 0.8283335897 | R3: 17 | S3: 13 | T3: =IF(S3>0,R3/S3,0) -> 1.307692308 | U3: =T3/E3 -> 1.477098359 | V3: 6 | W3: =V3/E3 -> 6.777274825
A4: 2 | B4: Ronald | C4: 1.132758621 | D4: 0.6875 | E4: 0.6069254186 | F4: 15 | G4: 17 | H4: 0.8823529412 | I4: 1.453807855 | J4: 12 | K4: 12 | L4: 1 | M4: 1.647648903 | N4: 10 | O4: 22 | P4: 0.4545454545 | Q4: 0.7489313195 | R4: 7 | S4: 13 | T4: 0.5384615385 | U4: 0.8871955631 | V4: 7 | W4: 11.53354232
A5: 3 | B5: Hans dW | C5: 1.125016474 | D5: 0.5535714286 | E5: 0.4920562867 | F5: 4 | G5: 11 | H5: 0.3636363636 | I5: 0.739013754 | J5: 12 | K5: 21 | L5: 0.5714285714 | M5: 1.161307328 | N5: 5 | O5: 9 | P5: 0.5555555556 | Q5: 1.129048791 | R5: 10 | S5: 15 | T5: 0.6666666667 | U5: 1.354858549 | V5: 2 | W5: 4.064575647
A6: 4 | B6: Joep | C6: 1.093692864 | D6: 1.467741935 | E6: 1.342005588 | F6: 25 | G6: 15 | H6: 1.666666667 | I6: 1.2419223 | J6: 17 | K6: 12 | L6: 1.416666667 | M6: 1.055633955 | N6: 30 | O6: 22 | P6: 1.363636364 | Q6: 1.016118246 | R6: 19 | S6: 13 | T6: 1.461538462 | U6: 1.089070325 | V6: 6 | W6: 4.47092028
A7: 5 | B7: Gerard | C7: 1.008002795 | D7: 0.7592592593 | E7: 0.7532313034 | F7: 12 | G7: 18 | H7: 0.6666666667 | I7: 0.8850756251 | J7: 7 | K7: 12 | L7: 0.5833333333 | M7: 0.7744411719 | N7: 9 | O7: 9 | P7: 1 | Q7: 1.327613438 | R7: 13 | S7: 15 | T7: 0.8666666667 | U7: 1.150598313 | V7: 5 | W7: 6.638067188
A8: 6 | B8: Peter B | C8: 0.9675160636 | D8: 0.6909090909 | E8: 0.714106067 | F8: 15 | G8: 15 | H8: 1 | I8: 1.400352197 | J8: 4 | K8: 12 | L8: 0.3333333333 | M8: 0.4667840658 | N8: 9 | O8: 17 | P8: 0.5294117647 | Q8: 0.741362928 | R8: 10 | S8: 11 | T8: 0.9090909091 | U8: 1.273047452 | V8: 5 | W8: 7.001760987
A9: 7 | B9: Ton | C9: 0.935483871 | D9: 0.4677419355 | E9: 0.5 | F9: 4 | G9: 17 | H9: 0.2352941176 | I9: 0.4705882353 | J9: 3 | K9: 12 | L9: 0.25 | M9: 0.5 | N9: 6 | O9: 9 | P9: 0.6666666667 | Q9: 1.333333333 | R9: 16 | S9: 24 | T9: 0.6666666667 | U9: 1.333333333 | V9: 4
A10: 8 | B10: Frank | C10: 0.9193352273 | D10: 0.5918367347 | E10: 0.6437659703 | F10: 9 | G10: 11 | H10: 0.8181818182 | I10: 1.270930518 | J10: 7 | K10: 12 | L10: 0.5833333333 | M10: 0.9061263879 | N10: 4 | O10: 15 | P10: 0.2666666667 | Q10: 0.4142292059 | R10: 9 | S10: 11 | T10: 0.8181818182 | U10: 1.270930518 | V10: 3 | W10: =V10/E10 -> 4.660078566
A11: 9 | B11: Stefan | C11: 0.8764027155 | D11: 0.4098360656 | E11: 0.4676344086 | F11: 8 | G11: 17 | H11: 0.4705882353 | I11: 1.00631653 | J11: 9 | K11: 12 | L11: 0.75 | M11: 1.603816969 | N11: 3 | O11: 17 | P11: 0.1764705882 | Q11: 0.3773686987 | R11: 5 | S11: 15 | T11: 0.3333333333 | U11: 0.712807542 | V11: 4 | W11: 8.553690504
A12: 10 | B12: George | C12: 0.8418771975 | D12: 0.6119402985 | E12: 0.7268759628 | F12: 15 | G12: 18 | H12: 0.8333333333 | I12: 1.146458785 | J12: 10 | K12: 21 | L12: 0.4761904762 | M12: 0.6551193058 | N12: 8 | O12: 17 | P12: 0.4705882353 | Q12: 0.6474120199 | R12: 8 | S12: 11 | T12: 0.7272727273 | U12: 1.000545849 | V12: 4 | W12: 5.503002169
A13: 11 | B13: Peter D | C13: 0.7822663188 | D13: 0.803030303 | E13: 1.02654337 | F13: 11 | G13: 15 | H13: 0.7333333333 | I13: 0.7143715062 | J13: 9 | K13: 12 | L13: 0.75 | M13: 0.7306072222 | N13: 14 | O13: 15 | P13: 0.9333333333 | Q13: 0.9092000988 | R13: 19 | S13: 24 | T13: 0.7916666667 | U13: 0.7711965124 | V13: 5 | W13: 4.870714815
A14: 12 | B14: Jan | C14: 0 | D14: 0 | E14: 1.258630952 | H14: 0 | I14: 0 | L14: 0 | M14: 0 | P14: 0 | Q14: 0 | T14: 0 | U14: 0 | W14: 0
A15: 13 | B15: Hans B | C15: 0 | D15: 0 | E15: 0.780400047 | H15: 0 | I15: 0 | L15: 0 | M15: 0 | P15: 0 | Q15: 0 | T15: 0 | U15: 0 | W15: 0
A16: 14 | B16: Hans M | C16: 0 | D16: 0 | E16: 0.6771797756 | H16: 0 | I16: 0 | L16: 0 | M16: 0 | P16: 0 | Q16: 0 | T16: 0 | U16: 0 | W16: 0
A17: 15 | B17: Sjoerd | C17: 0 | D17: 0 | E17: 0.4979534949 | H17: 0 | I17: 0 | L17: 0 | M17: 0 | P17: 0 | Q17: 0 | T17: 0 | U17: 0 | W17: 0
E18: =AVERAGE(E3:E17) -> 0.7581746828

Sheet 20121130
A1: Pl | B1: Speler | C1: Netto | D1: Bruto | E1: Corr. | F1: Ronde 1 | J1: Ronde 2 | N1: Ronde 3 | R1: Ronde 4 | V1: Hoogste
E2: factor | F2: p | G2: b | H2: m | I2: c | J2: p | K2: b | L2: m | M2: c | N2: p | O2: b | P2: m | Q2: c | R2: p | S2: b | T2: m | U2: c | V2: serie
A3: =A2+1 -> 1 | B3: Joep | C3: =D3/E3 -> 1.376911742 | D3: =IF(G3>0,(F3+J3+N3+R3)/(G3+K3+O3+S3),0) -> 1.886792453 | E3: 1.370307475 | F3: 23 | G3: 11 | H3: =IF(G3>0,F3/G3,0) -> 2.090909091 | I3: =H3/E3 -> 1.525868558 | J3: 26 | K3: 16 | L3: =IF(K3>0,J3/K3,0) -> 1.625 | M3: =L3/E3 -> 1.185865238 | N3: 25 | O3: 13 | P3: =IF(O3>0,N3/O3,0) -> 1.923076923 | Q3: =P3/E3 -> 1.403390814 | R3: 26 | S3: 13 | T3: =IF(S3>0,R3/S3,0) -> 2 | U3: =T3/E3 -> 1.459526447 | V3: 8 | W3: =V3/E3 -> 5.838105788
A4: 2 | B4: Gerard | C4: 1.213945358 | D4: 0.8636363636 | E4: 0.7114293553 | F4: 10 | G4: 16 | H4: 0.625 | I4: 0.8785130882 | J4: 16 | K4: 13 | L4: 1.230769231 | M4: 1.729995005 | N4: 7 | O4: 17 | P4: 0.4117647059 | Q4: 0.5787850934 | R4: 24 | S4: 20 | T4: 1.2 | U4: 1.686745129 | V4: 5 | W4: 7.028104706
A5: 3 | B5: Peter B | C5: 1.154336275 | D5: 0.8196721311 | E5: 0.7100808913 | F5: 6 | G5: 15 | H5: 0.4 | I5: 0.5633161023 | J5: 20 | K5: 17 | L5: 1.176470588 | M5: 1.656812065 | N5: 13 | O5: 13 | P5: 1 | Q5: 1.408290256 | R5: 11 | S5: 16 | T5: 0.6875 | U5: 0.9681995508 | V5: 5 | W5: 7.041451278
A6: 4 | B6: Jan | C6: 1.145889951 | D6: 1.333333333 | E6: 1.163578869 | F6: 30 | G6: 11 | H6: 2.727272727 | I6: 2.343865809 | J6: 9 | K6: 13 | L6: 0.6923076923 | M6: 0.5949813208 | N6: 24 | O6: 23 | P6: 1.043478261 | Q6: 0.89678344 | R6: 21 | S6: 16 | T6: 1.3125 | U6: 1.127985421 | V6: 10 | W6: 8.594174633
A7: 5 | B7: Hans B | C7: 1.128619109 | D7: 0.8666666667 | E7: 0.767900047 | F7: 17 | G7: 15 | H7: 1.133333333 | I7: 1.475886527 | J7: 10 | K7: 16 | L7: 0.625 | M7: 0.8139080111 | N7: 10 | O7: 12 | P7: 0.8333333333 | Q7: 1.085210681 | R7: 15 | S7: 17 | T7: 0.8823529412 | U7: 1.149046604 | V7: 5 | W7: 6.511264089
A8: 6 | B8: Emie | C8: 1.052794961 | D8: 0.90625 | E8: 0.8608038918 | F8: 15 | G8: 16 | H8: 0.9375 | I8: 1.089098236 | J8: 19 | K8: 23 | L8: 0.8260869565 | M8: 0.9596691702 | N8: 10 | O8: 12 | P8: 0.8333333333 | Q8: 0.9680873208 | R8: 14 | S8: 13 | T8: 1.076923077 | U8: 1.251066692 | V8: 6 | W8: 6.97022871
A9: 7 | B9: Ronald | C9: 0.9863013699 | D9: 0.602739726 | E9: 0.6111111111 | F9: 7 | G9: 16 | H9: 0.4375 | I9: 0.7159090909 | J9: 8 | K9: 17 | L9: 0.4705882353 | M9: 0.7700534759 | N9: 16 | O9: 23 | P9: 0.6956521739 | Q9: 1.138339921 | R9: 13 | S9: 17 | T9: 0.7647058824 | U9: 1.251336898 | V9: 4 | W9: 6.545454545
A10: 8 | B10: Frank | C10: 0.9171962398 | D10: 0.6029411765 | E10: 0.657374235 | F10: 7 | G10: 15 | H10: 0.4666666667 | I10: 0.7098949759 | J10: 22 | K10: 23 | L10: 0.9565217391 | M10: 1.455064236 | N10: 5 | O10: 17 | P10: 0.2941176471 | Q10: 0.4474127999 | R10: 7 | S10: 13 | T10: 0.5384615385 | U10: 0.8191095875 | V10: 4 | W10: 6.084814079
A11: 9 | B11: Stefan | C11: 0.9041009593 | D11: 0.4428571429 | E11: 0.4898315153 | F11: 9 | G11: 27 | H11: 0.3333333333 | I11: 0.6805060984 | J11: 9 | K11: 13 | L11: 0.6923076923 | M11: 1.41335882 | N11: 5 | O11: 13 | P11: 0.3846153846 | Q11: 0.7851993443 | R11: 8 | S11: 17 | T11: 0.4705882353 | U11: 0.9607144918 | V11: 3 | W11: 6.124554885
A12: 10 | B12: George | C12: 0.8083851733 | D12: 0.6333333333 | E12: 0.7834549102 | F12: 9 | G12: 11 | H12: 0.8181818182 | I12: 1.044325343 | J12: 5 | K12: 17 | L12: 0.2941176471 | M12: 0.3754110712 | N12: 8 | O12: 12 | P12: 0.6666666667 | Q12: 0.8509317613 | R12: 16 | S12: 20 | T12: 0.8 | U12: 1.021118114 | V12: 4 | W12: 5.105590568
A13: 11 | B13: Hans M | C13: 0.7759101288 | D13: 0.5789473684 | E13: 0.7461526109 | F13: 11 | G13: 27 | H13: 0.4074074074 | I13: 0.5460108314 | J13: 15 | K13: 16 | L13: 0.9375 | M13: 1.256445379 | N13: 12 | O13: 17 | P13: 0.7058823529 | Q13: 0.9460294619 | R13: 6 | S13: 16 | T13: 0.375 | U13: 0.5025781516 | V13: 4 | W13: 5.360833617
A14: 12 | B14: Hans dW | C14: 0 | D14: 0 | E14: 0.4920562867 | H14: 0 | I14: 0 | L14: 0 | M14: 0 | P14: 0 | Q14: 0 | T14: 0 | U14: 0 | W14: 0
A15: 13 | B15: Peter D | C15: 0 | D15: 0 | E15: 1.02654337 | H15: 0 | I15: 0 | L15: 0 | M15: 0 | P15: 0 | Q15: 0 | T15: 0 | U15: 0 | W15: 0
A16: 14 | B16: Dick | C16: 0 | D16: 0 | E16: 0.5198708395 | H16: 0 | I16: 0 | L16: 0 | M16: 0 | P16: 0 | Q16: 0 | T16: 0 | U16: 0 | W16: 0
A17: 15 | B17: Sjoerd | C17: 0 | D17: 0 | E17: 0.4979534949 | H17: 0 | I17: 0 | L17: 0 | M17: 0 | P17: 0 | Q17: 0 | T17: 0 | U17: 0 | W17: 0
E19: =AVERAGE(E3:E17) -> 0.7605632602

Sheet 20120511
A1: Pl | B1: Speler | C1: Netto | D1: Bruto | E1: Corr. | F1: Ronde 1 | J1: Ronde 2 | N1: Ronde 3 | R1: Ronde 4 | V1: Hoogste
E2: factor | F2: p | G2: b | H2: m | I2: c | J2: p | K2: b | L2: m | M2: c | N2: p | O2: b | P2: m | Q2: c | R2: p | S2: b | T2: m | U2: c | V2: serie
A3: =A2+1 -> 1 | B3: Gerard | C3: =D3/E3 -> 1.115903385 | D3: =IF(G3>0,(F3+J3+N3+R3)/(G3+K3+O3+S3),0) -> 0.7843137255 | E3: 0.702850924 | F3: 9 | G3: 11 | H3: =IF(G3>0,F3/G3,0) -> 0.8181818182 | I3: =H3/E3 -> 1.164090123 | J3: 9 | K3: 13 | L3: =IF(K3>0,J3/K3,0) -> 0.6923076923 | M3: =L3/E3 -> 0.9849993344 | N3: 12 | O3: 15 | P3: =IF(O3>0,N3/O3,0) -> 0.8 | Q3: =P3/E3 -> 1.138221453 | R3: 10 | S3: 12 | T3: =IF(S3>0,R3/S3,0) -> 0.8333333333 | U3: =T3/E3 -> 1.185647347 | V3: 4 | W3: =V3/E3 -> 5.691107266
A4: 2 | B4: George | C4: 0.9731845346 | D4: 0.7213114754 | E4: 0.7411867428 | F4: 11 | G4: 20 | H4: 0.55 | I4: 0.7420532077 | J4: 14 | K4: 15 | L4: 0.9333333333 | M4: 1.259241807 | N4: 7 | O4: 14 | P4: 0.5 | Q4: 0.6745938252 | R4: 12 | S4: 12 | T4: 1 | U4: 1.34918765 | V4: 4 | W4: 5.396750601
A5: 3 | B5: Jan | C5: 0.9666663226 | D5: 1.133333333 | E5: 1.17241421 | F5: 24 | G5: 18 | H5: 1.333333333 | I5: 1.137254497 | J5: 12 | K5: 15 | L5: 0.8 | M5: 0.6823526983 | N5: 17 | O5: 12 | P5: 1.416666667 | Q5: 1.208332903 | R5: 15 | S5: 15 | T5: 1 | U5: 0.8529408729 | V5: 6 | W5: 5.117645237
A6: 4 | B6: Hans B | C6: 0.9199332713 | D6: 0.7105263158 | E6: 0.7723672335 | F6: 8 | G6: 11 | H6: 0.7272727273 | I6: 0.9416152003 | J6: 20 | K6: 26 | L6: 0.7692307692 | M6: 0.9959391541 | N6: 9 | O6: 14 | P6: 0.6428571429 | Q6: 0.8323205788 | R6: 17 | S6: 25 | T6: 0.68 | U6: 0.8804102122 | V6: 4 | W6: 5.178883601
A7: 5 | B7: Hans dW | C7: 0.8349273624 | D7: 0.4262295082 | E7: 0.5104989097 | F7: 13 | G7: 18 | H7: 0.7222222222 | I7: 1.414738031 | J7: 1 | K7: 15 | L7: 0.06666666667 | M7: 0.1305912028 | N7: 5 | O7: 14 | P7: 0.3571428571 | Q7: 0.6995957295 | R7: 7 | S7: 14 | T7: 0.5 | U7: 0.9794340213 | V7: 3 | W7: 5.876604128
A8: 6 | B8: Emie | C8: 0.8299465801 | D8: 0.8064516129 | E8: 0.9716909886 | F8: 10 | G8: 17 | H8: 0.5882352941 | I8: 0.6053727996 | J8: 19 | K8: 15 | L8: 1.266666667 | M8: 1.303569429 | N8: 12 | O8: 15 | P8: 0.8 | Q8: 0.8233070075 | R8: 9 | S8: 15 | T8: 0.6 | U8: 0.6174802556 | V8: 7 | W8: 7.203936316
A9: 7 | B9: Hans M | C9: 0.8132105429 | D9: 0.6056338028 | E9: 0.7447441602 | F9: 9 | G9: 17 | H9: 0.5294117647 | I9: 0.7108639356 | J9: 13 | K9: 26 | L9: 0.5 | M9: 0.6713714947 | N9: 10 | O9: 16 | P9: 0.625 | Q9: 0.8392143684 | R9: 11 | S9: 12 | T9: 0.9166666667 | U9: 1.23084774 | V9: 3 | W9: 4.028228968
A10: 8 | B10: Ronald | C10: 0.7735583685 | D10: 0.6111111111 | E10: 0.79 | F10: 12 | G10: 20 | H10: 0.6 | I10: 0.7594936709 | J10: 7 | K10: 15 | L10: 0.4666666667 | M10: 0.5907172996 | N10: 14 | O10: 12 | P10: 1.166666667 | Q10: 1.476793249 | R10: 11 | S10: 25 | T10: 0.44 | U10: 0.5569620253 | V10: 4 | W10: 5.063291139
A11: 9 | B11: Stefan | C11: 0.69624033 | D11: 0.3571428571 | E11: 0.5129591633 | F11: 5 | G11: 11 | H11: 0.4545454545 | I11: 0.8861240563 | J11: 9 | K11: 15 | L11: 0.6 | M11: 1.169683754 | N11: 3 | O11: 16 | P11: 0.1875 | Q11: 0.3655261732 | R11: 3 | S11: 14 | T11: 0.2142857143 | U11: 0.417744198 | V11: 4 | W11: 7.797891696
A12: 10 | B12: Peter B | C12: 0.6239291612 | D12: 0.5 | E12: 0.8013730262 | F12: 8 | G12: 20 | H12: 0.4 | I12: 0.4991433289 | J12: 9 | K12: 13 | L12: 0.6923076923 | M12: 0.8639019155 | N12: 11 | O12: 16 | P12: 0.6875 | Q12: 0.8579025966 | R12: 4 | S12: 15 | T12: 0.2666666667 | U12: 0.3327622193 | V12: 5 | W12: 6.239291612
A13: 11 | B13: Joep | C13: 0.565980134 | D13: 0.9107142857 | E13: 1.609092318 | F13: 7 | G13: 17 | H13: 0.4117647059 | I13: 0.2558987457 | J13: 11 | K13: 13 | L13: 0.8461538462 | M13: 0.525857862 | N13: 18 | O13: 12 | P13: 1.5 | Q13: 0.9322025736 | R13: 15 | S13: 14 | T13: 1.071428571 | U13: 0.6658589811 | V13: 8 | W13: 4.971747059
A14: 12 | B14: Peter D | C14: 0 | D14: 0 | E14: 1.02654337 | H14: 0 | I14: 0 | L14: 0 | M14: 0 | P14: 0 | Q14: 0 | T14: 0 | U14: 0 | W14: 0
A15: 13 | B15: Frank | C15: 0 | D15: 0 | E15: 0.657374235 | H15: 0 | I15: 0 | L15: 0 | M15: 0 | P15: 0 | Q15: 0 | T15: 0 | U15: 0 | W15: 0
A16: 14 | B16: Dick | C16: 0 | D16: 0 | E16: 0.5198708395 | H16: 0 | I16: 0 | L16: 0 | M16: 0 | P16: 0 | Q16: 0 | T16: 0 | U16: 0 | W16: 0
A17: 15 | B17: Sjoerd | C17: 0 | D17: 0 | E17: 0.4979534949 | H17: 0 | I17: 0 | L17: 0 | M17: 0 | P17: 0 | Q17: 0 | T17: 0 | U17: 0 | W17: 0
E19: =AVERAGE(E3:E17) -> 0.8020613077

Sheet 20111223
A1: Pl | B1: Speler | C1: Netto | D1: Bruto | E1: Corr. | F1: Ronde 1 | J1: Ronde 2 | N1: Ronde 3 | R1: Ronde 4 | V1: Hoogste
E2: factor | F2: p | G2: b | H2: m | I2: c | J2: p | K2: b | L2: m | M2: c | N2: p | O2: b | P2: m | Q2: c | R2: p | S2: b | T2: m | U2: c | V2: serie
A3: =A2+1 -> 1 | B3: Jan | C3: =D3/E3 -> 1.096717701 | D3: =IF(G3>0,(F3+J3+N3+R3)/(G3+K3+O3+S3),0) -> 1.242857143 | E3: 1.133251649 | F3: 20 | G3: 13 | H3: =IF(G3>0,F3/G3,0) -> 1.538461538 | I3: =H3/E3 -> 1.357563909 | J3: 26 | K3: 21 | L3: =IF(K3>0,J3/K3,0) -> 1.238095238 | M3: =L3/E3 -> 1.092515717 | N3: 15 | O3: 14 | P3: =IF(O3>0,N3/O3,0) -> 1.071428571 | Q3: =P3/E3 -> 0.9454462939 | R3: 26 | S3: 22 | T3: =IF(S3>0,R3/S3,0) -> 1.181818182 | U3: =T3/E3 -> 1.042855912 | V3: 7 | W3: =V3/E3 -> 6.176915787
A4: 2 | B4: Hans M | C4: 0.9718899543 | D4: 0.724137931 | E4: 0.7450822264 | F4: 7 | G4: 25 | H4: 0.28 | I4: 0.375797449 | J4: 24 | K4: 21 | L4: 1.142857143 | M4: 1.533867139 | N4: 17 | O4: 19 | P4: 0.8947368421 | Q4: 1.20085651 | R4: 15 | S4: 22 | T4: 0.6818181818 | U4: 0.9150911908 | V4: 6 | W4: 8.052802479
A5: 3 | B5: Gerard | C5: 0.9036263386 | D5: 0.671641791 | E5: 0.7432738095 | F5: 9 | G5: 18 | H5: 0.5 | I5: 0.6726996076 | J5: 9 | K5: 14 | L5: 0.6428571429 | M5: 0.8648994955 | N5: 14 | O5: 19 | P5: 0.7368421053 | Q5: 0.9913467901 | R5: 13 | S5: 16 | T5: 0.8125 | U5: 1.093136862 | V5: 4 | W5: 5.381596861
A6: 4 | B6: Joep | C6: 0.8656884199 | D6: 1.447058824 | E6: 1.671570036 | F6: 24 | G6: 31 | H6: 0.7741935484 | I6: 0.4631535213 | J6: 39 | K6: 14 | L6: 2.785714286 | M6: 1.666525617 | N6: 35 | O6: 17 | P6: 2.058823529 | Q6: 1.231670516 | R6: 25 | S6: 23 | T6: 1.086956522 | U6: 0.6502608315 | V6: 8 | W6: 4.78591972
A7: 5 | B7: Peter B | C7: 0.8605166605 | D7: 0.6923076923 | E7: 0.8045256113 | F7: 12 | G7: 13 | H7: 0.9230769231 | I7: 1.147355547 | J7: 33 | K7: 38 | L7: 0.8684210526 | M7: 1.079420022 | N7: 8 | O7: 17 | P7: 0.4705882353 | Q7: 0.5849263575 | R7: 10 | S7: 23 | T7: 0.4347826087 | U7: 0.5404210911 | V7: 6 | W7: 7.457811058
A8: 6 | B8: Frank | C8: 0.8094098884 | D8: 0.5681818182 | E8: 0.7019704433 | F8: 13 | G8: 31 | H8: 0.4193548387 | I8: 0.5973967176 | J8: 14 | K8: 14 | L8: 1 | M8: 1.424561404 | N8: 13 | O8: 27 | P8: 0.4814814815 | Q8: 0.685899935 | R8: 10 | S8: 16 | T8: 0.625 | U8: 0.8903508772 | V8: 4 | W8: 5.698245614
A9: 7 | B9: Hans B | C9: 0.7984683906 | D9: 0.6612903226 | E9: 0.828198499 | F9: 8 | G9: 18 | H9: 0.4444444444 | I9: 0.5366400023 | J9: 16 | K9: 14 | L9: 1.142857143 | M9: 1.379931435 | N9: 7 | O9: 17 | P9: 0.4117647059 | Q9: 0.4971811786 | R9: 10 | S9: 13 | T9: 0.7692307692 | U9: 0.928800004 | V9: 4 | W9: 4.829760021
A10: 8 | B10: Sjoerd | C10: 0.7949765299 | D10: 0.4302325581 | E10: 0.5411890061 | F10: 4 | G10: 18 | H10: 0.2222222222 | I10: 0.410618508 | J10: 15 | K10: 38 | L10: 0.3947368421 | M10: 0.7293881391 | N10: 12 | O10: 14 | P10: 0.8571428571 | Q10: 1.583814245 | R10: 6 | S10: 16 | T10: 0.375 | U10: 0.6929187322 | V10: 3 | W10: 5.543349857
A11: 9 | B11: Emie | C11: 0.7191316147 | D11: 0.7910447761 | E11: 1.1 | F11: 7 | G11: 13 | H11: 0.5384615385 | I11: 0.4895104895 | J11: 13 | K11: 14 | L11: 0.9285714286 | M11: 0.8441558442 | N11: 25 | O11: 27 | P11: 0.9259259259 | Q11: 0.8417508418 | R11: 8 | S11: 13 | T11: 0.6153846154 | U11: 0.5594405594 | V11: 4 | W11: 3.636363636
A12: 10 | B12: Hans dW | C12: 0.7040225936 | D12: 0.3939393939 | E12: 0.5595550448 | F12: 11 | G12: 25 | H12: 0.44 | I12: 0.7863390815 | J12: 5 | K12: 14 | L12: 0.3571428571 | M12: 0.6382622415 | N12: 4 | O12: 14 | P12: 0.2857142857 | Q12: 0.5106097932 | R12: 6 | S12: 13 | T12: 0.4615384615 | U12: 0.8248312044 | V12: 3 | W12: 5.361402829
A13: 11 | B13: Peter D | C13: 0 | D13: 0 | E13: 1.02654337 | H13: 0 | I13: 0 | L13: 0 | M13: 0 | P13: 0 | Q13: 0 | T13: 0 | U13: 0 | W13: 0
A14: 12 | B14: George | C14: 0 | D14: 0 | E14: 0.7411867428 | H14: 0 | I14: 0 | L14: 0 | M14: 0 | P14: 0 | Q14: 0 | T14: 0 | U14: 0
A15: 13 | B15: Jeroen | C15: 0 | D15: 0 | E15: 0.5443973635 | H15: 0 | I15: 0 | L15: 0 | M15: 0 | P15: 0 | Q15: 0 | T15: 0 | U15: 0 | W15: =V15/E15 -> 0
A16: 14 | B16: Dick | C16: 0 | D16: 0 | E16: 0.5198708395 | H16: 0 | I16: 0 | L16: 0 | M16: 0 | P16: 0 | Q16: 0 | T16: 0 | U16: 0 | W16: =V16/E16 -> 0
A17: 15 | B17: Stefan | C17: 0 | D17: 0 | E17: 0.5129591633 | H17: 0 | I17: 0 | L17: 0 | M17: 0 | P17: 0 | Q17: 0 | T17: 0 | U17: 0 | W17: =V17/E17 -> 0
E19: =AVERAGE(E3:E17) -> 0.811571587

Sheet 20110715
A1: Pl | B1: Speler | C1: Netto | D1: Bruto | E1: Corr. | F1: Ronde 1 | J1: Ronde 2 | N1: Ronde 3 | R1: Ronde 4 | V1: Hoogste
E2: factor | F2: p | G2: b | H2: m | I2: c | J2: p | K2: b | L2: m | M2: c | N2: p | O2: b | P2: m | Q2: c | R2: p | S2: b | T2: m | U2: c | V2: serie
A3: =A2+1 -> 1 | B3: Jan | C3: =D3/E3 -> 1.310095504 | D3: =IF(G3>0,(F3+J3+N3+R3)/(G3+K3+O3+S3),0) -> 1.325 | E3: 1.011376649 | F3: 34 | G3: 23 | H3: =IF(G3>0,F3/G3,0) -> 1.47826087 | I3: =H3/E3 -> 1.461632391 | J3: 14 | K3: 17 | L3: =IF(K3>0,J3/K3,0) -> 0.8235294118 | M3: =L3/E3 -> 0.8142657957 | N3: 26 | O3: 22 | P3: =IF(O3>0,N3/O3,0) -> 1.181818182 | Q3: =P3/E3 -> 1.168524291 | R3: 32 | S3: 18 | T3: =IF(S3>0,R3/S3,0) -> 1.777777778 | U3: =T3/E3 -> 1.757780131 | V3: 7 | W3: =V3/E3 -> 6.921259264
A4: 2 | B4: Stefan | C4: 1.186306095 | D4: 0.5866666667 | E4: 0.4945322875 | F4: 14 | G4: 24 | H4: 0.5833333333 | I4: 1.179565719 | J4: 20 | K4: 20 | L4: 1 | M4: 2.022112661 | N4: 3 | O4: 13 | P4: 0.2307692308 | Q4: 0.4666413834 | R4: 7 | S4: 18 | T4: 0.3888888889 | U4: 0.7863771461 | V4: 4 | W4: 8.088450646
A5: 3 | B5: Peter B | C5: 1.142302224 | D5: 0.8444444444 | E5: 0.7392478335 | F5: 30 | G5: 24 | H5: 1.25 | I5: 1.690907898 | J5: 10 | K5: 17 | L5: 0.5882352941 | M5: 0.7957213636 | N5: 20 | O5: 24 | P5: 0.8333333333 | Q5: 1.127271932 | R5: 16 | S5: 25 | T5: 0.64 | U5: 0.8657448436 | V5: 6 | W5: 8.116357909
A6: 4 | B6: Frank | C6: 1.035714286 | D6: 0.7142857143 | E6: 0.6896551724 | F6: 12 | G6: 23 | H6: 0.5217391304 | I6: 0.7565217391 | J6: 17 | K6: 23 | L6: 0.7391304348 | M6: 1.07173913 | N6: 16 | O6: 13 | P6: 1.230769231 | Q6: 1.784615385 | R6: 15 | S6: 25 | T6: 0.6 | U6: 0.87 | V6: 5 | W6: 7.25
A7: 5 | B7: Hans M | C7: 1.006185239 | D7: 0.8 | E7: 0.7950822264 | F7: 23 | G7: 23 | H7: 1 | I7: 1.257731549 | J7: 11 | K7: 17 | L7: 0.6470588235 | M7: 0.8138262962 | N7: 13 | O7: 18 | P7: 0.7222222222 | Q7: 0.9083616741 | R7: 13 | S7: 17 | T7: 0.7647058824 | U7: 0.9617947137 | V7: 5 | W7: 6.288657743
A8: 6 | B8: Dick | C8: 0.9617773531 | D8: 0.5 | E8: 0.5198708395 | F8: 6 | G8: 20 | H8: 0.3 | I8: 0.5770664118 | J8: 12 | K8: 23 | L8: 0.5217391304 | M8: 1.00359376 | N8: 15 | O8: 22 | P8: 0.6818181818 | Q8: 1.311514572 | R8: 10 | S8: 21 | T8: 0.4761904762 | U8: 0.9159784315 | V8: 4 | W8: 7.694218825
A9: 7 | B9: Hans B | C9: 0.9563161789 | D9: 0.8831168831 | E9: 0.9234570141 | F9: 18 | G9: 23 | H9: 0.7826086957 | I9: 0.8474771253 | J9: 19 | K9: 20 | L9: 0.95 | M9: 1.028743066 | N9: 18 | O9: 13 | P9: 1.384615385 | Q9: 1.499382606 | R9: 13 | S9: 21 | T9: 0.619047619 | U9: 0.6703588901 | V9: 5 | W9: 5.414437189
A10: 8 | B10: Gerard | C10: 0.9153634578 | D10: 0.6933333333 | E10: 0.7574404762 | F10: 6 | G10: 20 | H10: 0.3 | I10: 0.3960707269 | J10: 8 | K10: 20 | L10: 0.4 | M10: 0.5280943026 | N10: 25 | O10: 18 | P10: 1.388888889 | Q10: 1.833660773 | R10: 13 | S10: 17 | T10: 0.7647058824 | U10: 1.009592049 | V10: 5 | W10: 6.601178782
A11: 9 | B11: Joep | C11: 0.6557767459 | D11: 1.12345679 | E11: 1.713169607 | F11: 26 | G11: 20 | H11: 1.3 | I11: 0.7588273774 | J11: 17 | K11: 20 | L11: 0.85 | M11: 0.4961563622 | N11: 38 | O11: 24 | P11: 1.583333333 | Q11: 0.9242128315 | R11: 10 | S11: 17 | T11: 0.5882352941 | U11: 0.3433608043 | V11: 9 | W11: 5.253420305
A12: 10 | B12: Emie | C12: 0 | D12: 0 | E12: 1.1 | H12: 0 | I12: 0 | L12: 0 | M12: 0 | P12: 0 | Q12: 0 | T12: 0 | U12: 0
A13: 11 | B13: Peter D | C13: 0 | D13: 0 | E13: 1.02654337 | H13: 0 | I13: 0 | L13: 0 | M13: 0 | P13: 0 | Q13: 0 | T13: 0 | U13: 0
A14: 12 | B14: George | C14: 0 | D14: 0 | E14: 0.7411867428 | H14: 0 | I14: 0 | L14: 0 | M14: 0 | P14: 0 | Q14: 0 | T14: 0 | U14: 0 | W14: =V14/E14 -> 0
A15: 13 | B15: Hans dW | C15: 0 | D15: 0 | E15: 0.5595550448 | H15: 0 | I15: 0 | L15: 0 | M15: 0 | P15: 0 | Q15: 0 | T15: 0 | U15: 0 | W15: =V15/E15 -> 0
A16: 14 | B16: Jeroen | C16: 0 | D16: 0 | E16: 0.5443973635 | H16: 0 | I16: 0 | L16: 0 | M16: 0 | P16: 0 | Q16: 0 | T16: 0 | U16: 0
A17: 15 | B17: Sjoerd | C17: 0 | D17: 0 | E17: 0.5411890061 | H17: 0 | I17: 0 | L17: 0 | M17: 0 | P17: 0 | Q17: 0 | T17: 0 | U17: 0 | W17: =V17/E17 -> 0
E19: =AVERAGE(E3:E17) -> 0.8104469088

Sheet 20101210
A1: Pl | B1: Speler | C1: Netto | D1: Bruto | E1: Corr. | F1: Ronde 1 | J1: Ronde 2 | N1: Ronde 3 | R1: Ronde 4 | V1: Hoogste
E2: factor | F2: p | G2: b | H2: m | I2: c | J2: p | K2: b | L2: m | M2: c | N2: p | O2: b | P2: m | Q2: c | R2: p | S2: b | T2: m | U2: c | V2: serie
A3: =A2+1 -> 1 | B3: Joep | C3: =D3/E3 -> 1.257861635 | D3: =IF(G3>0,(F3+J3+N3+R3)/(G3+K3+O3+S3),0) -> 2 | E3: 1.59 | F3: 29 | G3: 15 | H3: =IF(G3>0,F3/G3,0) -> 1.933333333 | I3: =H3/E3 -> 1.215932914 | J3: 25 | K3: 11 | L3: =IF(K3>0,J3/K3,0) -> 2.272727273 | M3: =L3/E3 -> 1.429388222 | N3: 34 | O3: 12 | P3: =IF(O3>0,N3/O3,0) -> 2.833333333 | Q3: =P3/E3 -> 1.78197065 | R3: 22 | S3: 17 | T3: =IF(S3>0,R3/S3,0) -> 1.294117647 | U3: =T3/E3 -> 0.8139104698 | V3: 11 | W3: =V3/E3 -> 6.918238994
A4: 2 | B4: Hans dW | C4: 1.18469871 | D4: 0.5967741935 | E4: 0.5037349904 | F4: 7 | G4: 19 | H4: 0.3684210526 | I4: 0.7313787203 | J4: 11 | K4: 11 | L4: 1 | M4: 1.985170812 | N4: 8 | O4: 15 | P4: 0.5333333333 | Q4: 1.058757766 | R4: 11 | S4: 17 | T4: 0.6470588235 | U4: 1.28452229 | V4: 2 | W4: =V4/E4 -> 3.970341624
A5: 3 | B5: Hans M | C5: 1.134565234 | D5: 0.8548387097 | E5: 0.7534504711 | F5: 16 | G5: 15 | H5: 1.066666667 | I5: 1.415709071 | J5: 7 | K5: 11 | L5: 0.6363636364 | M5: 0.8445991618 | N5: 13 | O5: 16 | P5: 0.8125 | Q5: 1.078372144 | R5: 17 | S5: 20 | T5: 0.85 | U5: 1.128143166 | V5: 6 | W5: 7.963363526
A6: 4 | B6: Peter B | C6: 1.071428571 | D6: 0.8035714286 | E6: 0.75 | F6: 14 | G6: 14 | H6: 1 | I6: 1.333333333 | J6: 13 | K6: 13 | L6: 1 | M6: 1.333333333 | N6: 7 | O6: 12 | P6: 0.5833333333 | Q6: 0.7777777778 | R6: 11 | S6: 17 | T6: 0.6470588235 | U6: 0.862745098 | V6: 4 | W6: 5.333333333
A7: 5 | B7: Sjoerd | C7: 1.067214775 | D7: 0.5217391304 | E7: 0.4888792235 | F7: 11 | G7: 19 | H7: 0.5789473684 | I7: 1.184233939 | J7: 9 | K7: 15 | L7: 0.6 | M7: 1.227296991 | N7: 6 | O7: 15 | P7: 0.4 | Q7: 0.818197994 | R7: 10 | S7: 20 | T7: 0.5 | U7: 1.022747493 | V7: 4 | W7: 8.18197994
A8: 6 | B8: Stefan | C8: 1.008064516 | D8: 0.4838709677 | E8: 0.48 | F8: 5 | G8: 14 | H8: 0.3571428571 | I8: 0.744047619 | J8: 8 | K8: 16 | L8: 0.5 | M8: 1.041666667 | N8: 10 | O8: 12 | P8: 0.8333333333 | Q8: 1.736111111 | R8: 7 | S8: 20 | T8: 0.35 | U8: 0.7291666667 | V8: 3 | W8: 6.25
A9: 7 | B9: George | C9: 0.9815705128 | D9: 0.765625 | E9: 0.78 | F9: 14 | G9: 15 | H9: 0.9333333333 | I9: 1.196581197 | J9: 13 | K9: 15 | L9: 0.8666666667 | M9: 1.111111111 | N9: 7 | O9: 16 | P9: 0.4375 | Q9: 0.5608974359 | R9: 15 | S9: 18 | T9: 0.8333333333 | U9: 1.068376068 | V9: 5 | W9: 6.41025641
A10: 8 | B10: Hans B | C10: 0.9176029963 | D10: 0.8166666667 | E10: 0.89 | F10: 18 | G10: 15 | H10: 1.2 | I10: 1.348314607 | J10: 13 | K10: 13 | L10: 1 | M10: 1.123595506 | N10: 4 | O10: 14 | P10: 0.2857142857 | Q10: 0.3210272873 | R10: 14 | S10: 18 | T10: 0.7777777778 | U10: 0.8739076155 | V10: 5 | W10: 5.617977528
A11: 9 | B11: Gerard | C11: 0.8597883598 | D11: 0.6964285714 | E11: 0.81 | F11: 13 | G11: 14 | H11: 0.9285714286 | I11: 1.14638448 | J11: 6 | K11: 15 | L11: 0.4 | M11: 0.4938271605 | N11: 6 | O11: 14 | P11: 0.4285714286 | Q11: 0.5291005291 | R11: 14 | S11: 13 | T11: 1.076923077 | U11: 1.329534663 | V11: 4 | W11: 4.938271605
A12: 10 | B12: Jan | C12: 0.8216594828 | D12: 0.953125 | E12: 1.16 | F12: 18 | G12: 19 | H12: 0.9473684211 | I12: 0.8166969147 | J12: 13 | K12: 16 | L12: 0.8125 | M12: 0.7004310345 | N12: 12 | O12: 16 | P12: 0.75 | Q12: 0.6465517241 | R12: 18 | S12: 13 | T12: 1.384615385 | U12: 1.193633952 | V12: 5 | W12: 4.310344828
A13: 11 | B13: Dick | C13: 0.7066139062 | D13: 0.4098360656 | E13: 0.58 | F13: 6 | G13: 15 | H13: 0.4 | I13: 0.6896551724 | J13: 5 | K13: 13 | L13: 0.3846153846 | M13: 0.6631299735 | N13: 9 | O13: 15 | P13: 0.6 | Q13: 1.034482759 | R13: 5 | S13: 18 | T13: 0.2777777778 | U13: 0.4789272031 | V13: 2 | W13: 3.448275862
A14: 12 | B14: Frank | C14: 0.6896551724 | D14: 0.6896551724 | E14: 1 | F14: 10 | G14: 15 | H14: 0.6666666667 | I14: 0.6666666667 | J14: 10 | K14: 16 | L14: 0.625 | M14: 0.625 | N14: 13 | O14: 14 | P14: 0.9285714286 | Q14: 0.9285714286 | R14: 7 | S14: 13 | T14: 0.5384615385 | U14: 0.5384615385 | V14: 6 | W14: 6
A15: 13 | B15: Emie | C15: 0 | D15: 0 | E15: 1.1 | H15: 0 | I15: 0 | L15: 0 | M15: 0 | P15: 0 | Q15: 0 | T15: 0 | U15: 0
A16: 14 | B16: Peter D | C16: 0 | D16: 0 | E16: 1.02654337 | H16: 0 | I16: 0 | L16: 0 | M16: 0 | P16: 0 | Q16: 0 | T16: 0 | U16: 0
A17: 15 | B17: Jeroen | C17: 0 | D17: 0 | E17: 0.5443973635 | H17: 0 | I17: 0 | L17: 0 | M17: 0 | P17: 0 | Q17: 0 | T17: 0 | U17: 0
E19: =AVERAGE(E3:E17) -> 0.8304670279

Sheet 20100507
A1: Pl | B1: Speler | C1: Netto | D1: Bruto | E1: Corr. | F1: Ronde 1 | J1: Ronde 2 | N1: Ronde 3 | R1: Ronde 4 | V1: Hoogste
E2: factor | F2: p | G2: b | H2: m | I2: c | J2: p | K2: b | L2: m | M2: c | N2: p | O2: b | P2: m | Q2: c | R2: p | S2: b | T2: m | U2: c | V2: serie
A3: =A2+1 -> 1 | B3: Joep | C3: =D3/E3 -> 1.302371602 | D3: =IF(G3>0,(F3+J3+N3+R3)/(G3+K3+O3+S3),0) -> 1.865853659 | E3: 1.432658433 | F3: 22 | G3: 19 | H3: =IF(G3>0,F3/G3,0) -> 1.157894737 | I3: =H3/E3 -> 0.8082140936 | J3: 31 | K3: 18 | L3: =IF(K3>0,J3/K3,0) -> 1.722222222 | M3: =L3/E3 -> 1.202116417 | N3: 38 | O3: 23 | P3: =IF(O3>0,N3/O3,0) -> 1.652173913 | Q3: =P3/E3 -> 1.153222481 | R3: 62 | S3: 22 | T3: =IF(S3>0,R3/S3,0) -> 2.818181818 | U3: =T3/E3 -> 1.967099592 | V3: 11
A4: 2 | B4: Stefan | C4: 1.163284503 | D4: 0.5316455696 | E4: 0.4570211056 | F4: 8 | G4: 18 | H4: 0.4444444444 | I4: 0.9724812246 | J4: 11 | K4: 21 | L4: 0.5238095238 | M4: 1.146138586 | N4: 8 | O4: 18 | P4: 0.4444444444 | Q4: 0.9724812246 | R4: 15 | S4: 22 | T4: 0.6818181818 | U4: 1.491874606
A5: 3 | B5: Peter B | C5: 1.118007565 | D5: 0.8651685393 | E5: 0.7738485558 | F5: 22 | G5: 22 | H5: 1 | I5: 1.29224251 | J5: 10 | K5: 16 | L5: 0.625 | M5: 0.8076515686 | N5: 18 | O5: 18 | P5: 1 | Q5: 1.29224251 | R5: 27 | S5: 33 | T5: 0.8181818182 | U5: 1.057289326 | V5: 6
A6: 4 | B6: George | C6: 1.070923591 | D6: 0.7872340426 | E6: 0.7350982362 | F6: 13 | G6: 19 | H6: 0.6842105263 | I6: 0.9307742729 | J6: 19 | K6: 22 | L6: 0.8636363636 | M6: 1.174858435 | N6: 20 | O6: 20 | P6: 1 | Q6: 1.360362399 | R6: 22 | S6: 33 | T6: 0.6666666667 | U6: 0.9069082659
A7: 5 | B7: Emie | C7: 0.9661145584 | D7: 1.0375 | E7: 1.07388921 | F7: 14 | G7: 19 | H7: 0.7368421053 | I7: 0.6861435038 | J7: 30 | K7: 16 | L7: 1.875 | M7: 1.745990166 | N7: 14 | O7: 23 | P7: 0.6086956522 | Q7: 0.5668141988 | R7: 25 | S7: 22 | T7: 1.136363636 | U7: 1.058175858 | V7: 10
A8: 6 | B8: Gerard | C8: 0.9375151534 | D8: 0.75 | E8: 0.7999870693 | F8: 9 | G8: 18 | H8: 0.5 | I8: 0.6250101023 | J8: 15 | K8: 18 | L8: 0.8333333333 | M8: 1.041683504 | N8: 12 | O8: 18 | P8: 0.6666666667 | Q8: 0.833346803 | R8: 21 | S8: 22 | T8: 0.9545454545 | U8: 1.193201104 | V8: 4
A9: 7 | B9: Jan | C9: 0.9341905519 | D9: 1.168674699 | E9: 1.251002482 | F9: 15 | G9: 22 | H9: 0.6818181818 | I9: 0.5450174494 | J9: 18 | K9: 22 | L9: 0.8181818182 | M9: 0.6540209393 | N9: 31 | O9: 18 | P9: 1.722222222 | Q9: 1.376673706 | R9: 33 | S9: 21 | T9: 1.571428571 | U9: 1.256135455 | V9: 7
A10: 8 | B10: Hans B | C10: 0.8127733376 | D10: 0.7283950617 | E10: 0.8961847394 | F10: 12 | G10: 19 | H10: 0.6315789474 | I10: 0.7047419127 | J10: 11 | K10: 21 | L10: 0.5238095238 | M10: 0.5844883324 | N10: 18 | O10: 20 | P10: 0.9 | Q10: 1.004257226 | R10: 18 | S10: 21 | T10: 0.8571428571 | U10: 0.956435453
A11: =A10+1 -> 9 | B11: Peter D | C11: 0 | D11: 0 | E11: 1.02654337 | H11: 0 | I11: 0 | L11: 0 | M11: 0 | P11: 0 | Q11: 0 | T11: 0 | U11: 0
A12: 10 | B12: Hans M | C12: 0 | D12: 0 | E12: 0.7534504711 | H12: 0 | I12: 0 | L12: 0 | M12: 0 | P12: 0 | Q12: 0 | T12: 0 | U12: 0
A13: 11 | B13: Dick | C13: 0 | D13: 0 | E13: 0.58 | H13: 0 | I13: 0 | L13: 0 | M13: 0 | P13: 0 | Q13: 0 | T13: 0 | U13: 0
A14: 12 | B14: Jeroen | C14: 0 | D14: 0 | E14: 0.5443973635 | H14: 0 | I14: 0 | L14: 0 | M14: 0 | P14: 0 | Q14: 0 | T14: 0 | U14: 0
A15: 13 | B15: Hans dW | C15: 0 | D15: 0 | E15: 0.5037349904 | H15: 0 | I15: 0 | L15: 0 | M15: 0 | P15: 0 | Q15: 0 | T15: 0 | U15: 0
A16: 14 | B16: Sjoerd | C16: 0 | D16: 0 | E16: 0.4888792235 | H16: 0 | I16: 0 | L16: 0 | M16: 0 | P16: 0 | Q16: 0 | T16: 0 | U16: 0
E18: =AVERAGE(E2:E16) -> 0.808335375

Sheet 20091211
A1: Pl | B1: Speler | C1: Netto | D1: Bruto | E1: Corr. | F1: Ronde 1 | J1: Ronde 2 | N1: Ronde 3 | R1: Ronde 4 | V1: Hoogste
E2: factor | F2: p | G2: b | H2: m | I2: c | J2: p | K2: b | L2: m | M2: c | N2: p | O2: b | P2: m | Q2: c | R2: p | S2: b | T2: m | U2: c | V2: serie
A3: 1 | B3: George | C3: =D3/E3 -> 1.283058392 | D3: =IF(G3>0,(F3+J3+N3+R3)/(G3+K3+O3+S3),0) -> 0.8596491228 | E3: 0.67 | F3: 12 | G3: 12 | H3: =IF(G3>0,F3/G3,0) -> 1 | I3: =H3/E3 -> 1.492537313 | J3: 16 | K3: 16 | L3: =IF(K3>0,J3/K3,0) -> 1 | M3: =L3/E3 -> 1.492537313 | N3: 11 | O3: 15 | P3: =IF(O3>0,N3/O3,0) -> 0.7333333333 | Q3: =P3/E3 -> 1.094527363 | R3: 10 | S3: 14 | T3: =IF(S3>0,R3/S3,0) -> 0.7142857143 | U3: =T3/E3 -> 1.066098081
A4: =A3+1 -> 2 | B4: Stefan | C4: 1.201550388 | D4: 0.5166666667 | E4: 0.43 | F4: 9 | G4: 14 | H4: 0.6428571429 | I4: 1.495016611 | J4: 15 | K4: 17 | L4: 0.8823529412 | M4: 2.051983584 | N4: 4 | O4: 15 | P4: 0.2666666667 | Q4: 0.6201550388 | R4: 3 | S4: 14 | T4: 0.2142857143 | U4: 0.4983388704 | V4: 4
A5: =A4+1 -> 3 | B5: Joep | C5: 1.186692096 | D5: 1.696969697 | E5: 1.43 | F5: 20 | G5: 14 | H5: 1.428571429 | I5: 0.999000999 | J5: 38 | K5: 15 | L5: 2.533333333 | M5: 1.771561772 | N5: 32 | O5: 25 | P5: 1.28 | Q5: 0.8951048951 | R5: 22 | S5: 12 | T5: 1.833333333 | U5: 1.282051282 | V5: 11
A6: 4 | B6: Sjoerd | C6: 1.18185284 | D6: 0.5081967213 | E6: 0.43 | F6: 7 | G6: 14 | H6: 0.5 | I6: 1.162790698 | J6: 4 | K6: 19 | L6: 0.2105263158 | M6: 0.4895960832 | N6: 5 | O6: 13 | P6: 0.3846153846 | Q6: 0.8944543828 | R6: 15 | S6: 15 | T6: 1 | U6: 2.325581395 | V6: 3
A7: 5 | B7: Gerard | C7: 1.141552511 | D7: 0.8333333333 | E7: 0.73 | F7: 11 | G7: 12 | H7: 0.9166666667 | I7: 1.255707763 | J7: 13 | K7: 17 | L7: 0.7647058824 | M7: 1.047542305 | N7: 10 | O7: 13 | P7: 0.7692307692 | Q7: 1.05374078 | R7: 11 | S7: 12 | T7: 0.9166666667 | U7: 1.255707763 | V7: 4
A8: 6 | B8: Hans dW | C8: 1.125065411 | D8: 0.5512820513 | E8: 0.49 | F8: 18 | G8: 23 | H8: 0.7826086957 | I8: 1.597160603 | J8: 15 | K8: 16 | L8: 0.9375 | M8: 1.913265306 | N8: 5 | O8: 25 | P8: 0.2 | Q8: 0.4081632653 | R8: 5 | S8: 14 | T8: 0.3571428571 | U8: 0.7288629738
A9: 7 | B9: Hans B | C9: 1.053113553 | D9: 0.8846153846 | E9: 0.84 | F9: 7 | G9: 12 | H9: 0.5833333333 | I9: 0.6944444444 | J9: 11 | K9: 15 | L9: 0.7333333333 | M9: 0.873015873 | N9: 11 | O9: 13 | P9: 0.8461538462 | Q9: 1.007326007 | R9: 17 | S9: 12 | T9: 1.416666667 | U9: 1.686507937 | V9: 4
A10: 8 | B10: Peter B | C10: 0.881147541 | D10: 0.7049180328 | E10: 0.8 | F10: 11 | G10: 12 | H10: 0.9166666667 | I10: 1.145833333 | J10: 15 | K10: 19 | L10: 0.7894736842 | M10: 0.9868421053 | N10: 4 | O10: 15 | P10: 0.2666666667 | Q10: 0.3333333333 | R10: 13 | S10: 15 | T10: 0.8666666667 | U10: 1.083333333 | V10: 4
A11: 9 | B11: Jan | C11: 0.8689655172 | D11: 1.086206897 | E11: 1.25 | F11: 12 | G11: 12 | H11: 1 | I11: 0.8 | J11: 11 | K11: 16 | L11: 0.6875 | M11: 0.55 | N11: 16 | O11: 15 | P11: 1.066666667 | Q11: 0.8533333333 | R11: 24 | S11: 15 | T11: 1.6 | U11: 1.28 | V11: 3
A12: 10 | B12: Emie | C12: 0.7347447073 | D12: 0.8082191781 | E12: 1.1 | F12: 6 | G12: 12 | H12: 0.5 | I12: 0.4545454545 | J12: 16 | K12: 19 | L12: 0.8421052632 | M12: 0.7655502392 | N12: 14 | O12: 15 | P12: 0.9333333333 | Q12: 0.8484848485 | R12: 23 | S12: 27 | T12: 0.8518518519 | U12: 0.7744107744
A13: 11 | B13: Hans M | C13: 0.7326296151 | D13: 0.6 | E13: 0.8189677125 | F13: 17 | G13: 23 | H13: 0.7391304348 | I13: 0.9025147433 | J13: 5 | K13: 15 | L13: 0.3333333333 | M13: 0.4070164529 | N13: 4 | O13: 15 | P13: 0.2666666667 | Q13: 0.3256131623 | R13: 22 | S13: 27 | T13: 0.8148148148 | U13: 0.994929107 | V13: 3
A14: 12 | B14: Peter D | C14: 0 | D14: 0 | E14: 1.02654337 | H14: 0 | I14: 0 | L14: 0 | M14: 0 | P14: 0 | Q14: 0 | T14: 0 | U14: 0
A15: 13 | B15: Eugene | C15: 0 | D15: 0 | E15: 0.6202531646 | H15: 0 | I15: 0 | L15: 0 | M15: 0 | P15: 0 | Q15: 0 | T15: 0 | U15: 0
A16: 14 | B16: Dick | C16: 0 | D16: 0 | E16: 0.58 | H16: 0 | I16: 0 | L16: 0 | M16: 0 | P16: 0 | Q16: 0 | T16: 0 | U16: 0
A17: 15 | B17: Jeroen | C17: 0 | D17: 0 | E17: 0.5443973635 | H17: 0 | I17: 0 | L17: 0 | M17: 0 | P17: 0 | Q17: 0 | T17: 0 | U17: 0
E19: =AVERAGE(E3:E17) -> 0.784010774

Sheet 20090508
A1: Pl | B1: Speler | C1: Netto | D1: Bruto | E1: Corr. | F1: Ronde 1 | J1: Ronde 2 | N1: Ronde 3 | R1: Ronde 4 | V1: Hoogste
E2: factor | F2: p | G2: b | H2: m | I2: c | J2: p | K2: b | L2: m | M2: c | N2: p | O2: b | P2: m | Q2: c | R2: p | S2: b | T2: m | U2: c | V2: serie
A3: 1 | B3: Hans B | C3: =D3/E3 -> 1.823462734 | D3: =IF(G3>0,(F3+J3+N3+R3)/(G3+K3+O3+S3),0) -> 1.264150943 | E3: 0.6932694153 | F3: 20 | G3: 12 | H3: =IF(G3>0,F3/G3,0) -> 1.666666667 | I3: =H3/E3 -> 2.404067784 | J3: 11 | K3: 16 | L3: =IF(K3>0,J3/K3,0) -> 0.6875 | M3: =L3/E3 -> 0.9916779607 | N3: 13 | O3: 11 | P3: =IF(O3>0,N3/O3,0) -> 1.181818182 | Q3: =P3/E3 -> 1.70470261 | R3: 23 | S3: 14 | T3: =IF(S3>0,R3/S3,0) -> 1.642857143 | U3: =T3/E3 -> 2.369723958
A4: =A3+1 -> 2 | B4: Sjoerd | C4: 1.391184835 | D4: 0.5316455696 | E4: 0.3821530801 | F4: 9 | G4: 14 | H4: 0.6428571429 | I4: 1.682197989 | J4: 6 | K4: 20 | L4: 0.3 | M4: 0.7850257282 | N4: 15 | O4: 31 | P4: 0.4838709677 | Q4: 1.266170529 | R4: 12 | S4: 14 | T4: 0.8571428571 | U4: 2.242930652
A5: =A4+1 -> 3 | B5: Emie | C5: 1.195280969 | D5: 1.25 | E5: 1.045779221 | F5: 12 | G5: 14 | H5: 0.8571428571 | I5: 0.8196212356 | J5: 15 | K5: 16 | L5: 0.9375 | M5: 0.8964607265 | N5: 24 | O5: 13 | P5: 1.846153846 | Q5: 1.765338046 | R5: 19 | S5: 13 | T5: 1.461538462 | U5: 1.397559286
A6: 4 | B6: Stefan | C6: 1.091798695 | D6: 0.4459459459 | E6: 0.4084507042 | F6: 8 | G6: 12 | H6: 0.6666666667 | I6: 1.632183908 | J6: 8 | K6: 18 | L6: 0.4444444444 | M6: 1.088122605 | N6: 10 | O6: 31 | P6: 0.3225806452 | Q6: 0.7897664071 | R6: 7 | S6: 13 | T6: 0.5384615385 | U6: 1.318302387
A7: 5 | B7: Hans dW | C7: 1.039946916 | D7: 0.5 | E7: 0.4807937715 | F7: 14 | G7: 14 | H7: 1 | I7: 2.079893832 | J7: 10 | K7: 32 | L7: 0.3125 | M7: 0.6499668226 | N7: 13 | O7: 18 | P7: 0.7222222222 | Q7: 1.502145546 | R7: 2 | S7: 14 | T7: 0.1428571429 | U7: 0.2971276903
A8: 6 | B8: Gerard | C8: 1.037872189 | D8: 0.75 | E8: 0.7226323317 | F8: 4 | G8: 16 | H8: 0.25 | I8: 0.3459573963 | J8: 18 | K8: 32 | L8: 0.5625 | M8: 0.7784041418 | N8: 20 | O8: 11 | P8: 1.818181818 | Q8: 2.516053792 | R8: 12 | S8: 13 | T8: 0.9230769231 | U8: 1.277381156
A9: 7 | B9: Dick | C9: 0.8926651535 | D9: 0.5303030303 | E9: 0.5940671351 | F9: 13 | G9: 20 | H9: 0.65 | I9: 1.094152431 | J9: 8 | K9: 18 | L9: 0.4444444444 | M9: 0.7481384144 | N9: 4 | O9: 11 | P9: 0.3636363636 | Q9: 0.6121132481 | R9: 10 | S9: 17 | T9: 0.5882352941 | U9: 0.9901831955
A10: 8 | B10: Joep | C10: 0.8735195178 | D10: 1.289855072 | E10: 1.476618491 | F10: 30 | G10: 16 | H10: 1.875 | I10: 1.269793119 | J10: 22 | K10: 18 | L10: 1.222222222 | M10: 0.8277169962 | N10: 21 | O10: 18 | P10: 1.166666667 | Q10: 0.7900934964 | R10: 16 | S10: 17 | T10: 0.9411764706 | U10: 0.6373863501
A11: 9 | B11: George | C11: 0.8464102815 | D11: 0.552238806 | E11: 0.6524481307 | F11: 10 | G11: 12 | H11: 0.8333333333 | I11: 1.27724074 | J11: 7 | K11: 20 | L11: 0.35 | M11: 0.5364411109 | N11: 9 | O11: 18 | P11: 0.5 | Q11: 0.7663444441 | R11: 11 | S11: 17 | T11: 0.6470588235 | U11: 0.9917398688
A12: 10 | B12: Peter B | C12: 0.7138795542 | D12: 0.5833333333 | E12: 0.8171313072 | F12: 14 | G12: 16 | H12: 0.875 | I12: 1.070819331 | J12: 6 | K12: 16 | L12: 0.375 | M12: 0.4589225706 | N12: 4 | O12: 13 | P12: 0.3076923077 | Q12: 0.3765518528 | R12: 18 | S12: 27 | T12: 0.6666666667 | U12: 0.8158623477
A13: 11 | B13: Jan | C13: 0.5920372199 | D13: 0.8375 | E13: 1.414607008 | F13: 23 | G13: 20 | H13: 1.15 | I13: 0.8129466303 | J13: 17 | K13: 20 | L13: 0.85 | M13: 0.6008735963 | N13: 9 | O13: 13 | P13: 0.6923076923 | Q13: 0.4893993092 | R13: 18 | S13: 27 | T13: 0.6666666667 | U13: 0.4712734089
B14: Peter D | C14: 0 | D14: 0 | E14: 1.02654337 | H14: 0 | I14: 0 | L14: 0 | M14: 0 | P14: 0 | Q14: 0 | T14: 0 | U14: 0
B15: Hans M | C15: 0 | D15: 0 | E15: 0.8189677125 | H15: 0 | I15: 0 | L15: 0 | M15: 0 | P15: 0 | Q15: 0 | T15: 0 | U15: 0
B16: Eugene | C16: 0 | D16: 0 | E16: 0.6202531646 | H16: 0 | I16: 0 | L16: 0 | M16: 0 | P16: 0 | Q16: 0 | T16: 0 | U16: 0
B17: Jeroen | C17: 0 | D17: 0 | E17: 0.5443973635 | H17: 0 | I17: 0 | L17: 0 | M17: 0 | P17: 0 | Q17: 0 | T17: 0 | U17: 0
E19: =AVERAGE(E3:E17) -> 0.7798741471

Sheet 20081219
A1: Pl | B1: Speler | C1: Netto | D1: Bruto | E1: Corr. | F1: Ronde 1 | J1: Ronde 2 | N1: Ronde 3 | R1: Ronde 4 | V1: Hoogste
E2: factor | F2: p | G2: b | H2: m | I2: c | J2: p | K2: b | L2: m | M2: c | N2: p | O2: b | P2: m | Q2: c | R2: p | S2: b | T2: m | U2: c | V2: serie
B3: Sjoerd | C3: =D3/E3 -> 1.955316685 | D3: =IF(G3>0,(F3+J3+N3+R3)/(G3+K3+O3+S3),0) -> 0.6031746032 | E3: 0.3084792391 | F3: 7 | G3: 12 | H3: =IF(G3>0,F3/G3,0) -> 0.5833333333 | I3: =H3/E3 -> 1.890997057 | J3: 1 | K3: 16 | L3: =IF(K3>0,J3/K3,0) -> 0.0625 | M3: =L3/E3 -> 0.2026068276 | N3: 18 | O3: 15 | P3: =IF(O3>0,N3/O3,0) -> 1.2 | Q3: =P3/E3 -> 3.890051089 | R3: 12 | S3: 20 | T3: =IF(S3>0,R3/S3,0) -> 0.6 | U3: =T3/E3 -> 1.945025545
B4: George | C4: 1.583533647 | D4: 0.9016393443 | E4: 0.5693843928 | F4: 14 | G4: 14 | H4: 1 | I4: 1.756282772 | J4: 8 | K4: 13 | L4: 0.6153846154 | M4: 1.080789398 | N4: 12 | O4: 15 | P4: =IF(O4>0,N4/O4,0) -> 0.8 | Q4: 1.405026218 | R4: 21 | S4: 19 | T4: =IF(S4>0,R4/S4,0) -> 1.105263158 | U4: 1.941154643
B5: Gerard | C5: 1.415108394 | D5: 0.8983050847 | E5: 0.6347959552 | F5: 7 | G5: 14 | H5: 0.5 | I5: 0.7876546722 | J5: 18 | K5: 12 | L5: 1.5 | M5: 2.362964016 | N5: 19 | O5: 13 | P5: =IF(O5>0,N5/O5,0) -> 1.461538462 | Q5: 2.302375196 | R5: 9 | S5: 20 | T5: =IF(S5>0,R5/S5,0) -> 0.45 | U5: 0.7088892049
B6: Emie | C6: 1.398276772 | D6: 1.290909091 | E6: 0.9232142857 | F6: 17 | G6: 10 | H6: 1.7 | I6: 1.84139265 | J6: 26 | K6: 13 | L6: 2 | M6: 2.166344294 | N6: 12 | O6: 13 | P6: =IF(O6>0,N6/O6,0) -> 0.9230769231 | Q6: 0.9998512126 | R6: 16 | S6: 19 | T6: =IF(S6>0,R6/S6,0) -> 0.8421052632 | U6: 0.9121449659 | V6: 10
B7: Hans dW | C7: 1.385007976 | D7: 0.5901639344 | E7: 0.4261086901 | F7: 9 | G7: 12 | H7: =IF(G7>0,F7/G7,0) -> 0.75 | I7: 1.760114303 | J7: 4 | K7: 12 | L7: =IF(K7>0,J7/K7,0) -> 0.3333333333 | M7: 0.7822730235 | N7: 11 | O7: 18 | P7: 0.6111111111 | Q7: 1.43416721 | R7: 12 | S7: 19 | T7: 0.6315789474 | U7: 1.482201518
B8: Jeroen | C8: 1.37951191 | D8: 0.6666666667 | E8: 0.4832627119 | F8: 12 | G8: 14 | H8: 0.8571428571 | I8: 1.77365817 | J8: 7 | K8: 10 | L8: 0.7 | M8: 1.448487505 | N8: 11 | O8: 13 | P8: 0.8461538462 | Q8: 1.750918963 | R8: 8 | S8: 20 | T8: 0.4 | U8: 0.827707146 | V8: 3
B9: Peter D | C9: =D9/E9 -> 1.258911056 | D9: 1.189655172 | E9: 0.9449874687 | F9: 14 | G9: 13 | H9: 1.076923077 | I9: =H9/E9 -> 1.139616252 | J9: 15 | K9: 13 | L9: 1.153846154 | M9: =L9/E9 -> 1.221017413 | N9: 24 | O9: 13 | P9: 1.846153846 | Q9: 1.95362786 | R9: 16 | S9: 19 | T9: 0.8421052632 | U9: 0.8911284975
B10: Jan | C10: 1.131819753 | D10: 1.55 | E10: 1.36947601 | F10: 29 | G10: 15 | H10: =IF(G10>0,F10/G10,0) -> 1.933333333 | I10: 1.411732165 | J10: 14 | K10: 16 | L10: =IF(K10>0,J10/K10,0) -> 0.875 | M10: 0.6389305059 | N10: 19 | O10: 13 | P10: 1.461538462 | Q10: 1.067224581 | R10: 31 | S10: 16 | T10: 1.9375 | U10: 1.414774692 | V10: 7
B11: Peter B | C11: 1.066371141 | D11: 0.8571428571 | E11: 0.8037941239 | F11: 15 | G11: 10 | H11: 1.5 | I11: 1.866149497 | J11: 11 | K11: 16 | L11: 0.6875 | M11: 0.8553185195 | N11: 11 | O11: 18 | P11: 0.6111111111 | Q11: 0.7602831284 | R11: 17 | S11: 19 | T11: 0.8947368421 | U11: 1.113141805
B12: Joep | C12: 1.033709659 | D12: 1.509433962 | E12: 1.460210756 | F12: 20 | G12: 10 | H12: 2 | I12: 1.369665298 | J12: 7 | K12: 12 | L12: 0.5833333333 | M12: 0.3994857119 | N12: 29 | O12: 15 | P12: 1.933333333 | Q12: =P12/E12 -> 1.324009788 | R12: 24 | S12: 16 | T12: 1.5 | U12: =T12/E12 -> 1.027248973 | V12: 8
B13: Hans B | C13: 1.000603722 | D13: 0.6935483871 | E13: 0.6931299294 | F13: 9 | G13: 15 | H13: =IF(G13>0,F13/G13,0) -> 0.6 | I13: 0.8656385686 | J13: 7 | K13: 10 | L13: =IF(K13>0,J13/K13,0) -> 0.7 | M13: 1.009911663 | N13: 15 | O13: 18 | P13: 0.8333333333 | Q13: 1.20227579 | R13: 12 | S13: 19 | T13: 0.6315789474 | U13: 0.9111984933 | V13: 4
B14: Hans M | C14: =D14/E14 -> 0.853390487 | D14: =IF(G14>0,(F14+J14+N14+R14)/(G14+K14+O14+S14),0) -> 0.7254901961 | E14: 0.8501268846 | F14: 7 | G14: 12 | H14: =IF(G14>0,F14/G14,0) -> 0.5833333333 | I14: =H14/E14 -> 0.6861720808 | J14: 16 | K14: 10 | L14: =IF(K14>0,J14/K14,0) -> 1.6 | M14: =L14/E14 -> 1.882071993 | N14: 7 | O14: 13 | P14: =IF(O14>0,N14/O14,0) -> 0.5384615385 | Q14: =P14/E14 -> 0.633389613 | R14: 7 | S14: 16 | T14: =IF(S14>0,R14/S14,0) -> 0.4375 | U14: =T14/E14 -> 0.5146290606 | V14: 4
B15: Eugene | C15: =D15/E15 -> 0 | D15: =IF(G15>0,(F15+J15+N15+R15)/(G15+K15+O15+S15),0) -> 0 | E15: 0.6202531646 | H15: =IF(G15>0,F15/G15,0) -> 0 | I15: =H15/E15 -> 0 | L15: =IF(K15>0,J15/K15,0) -> 0 | M15: =L15/E15 -> 0 | P15: =IF(O15>0,N15/O15,0) -> 0 | Q15: =P15/E15 -> 0 | T15: =IF(S15>0,R15/S15,0) -> 0 | U15: =T15/E15 -> 0
B16: Dick | C16: =D16/E16 -> 0 | D16: =IF(G16>0,(F16+J16+N16+R16)/(G16+K16+O16+S16),0) -> 0 | E16: 0.5940671351 | H16: =IF(G16>0,F16/G16,0) -> 0 | I16: =H16/E16 -> 0 | L16: =IF(K16>0,J16/K16,0) -> 0 | M16: =L16/E16 -> 0 | P16: =IF(O16>0,N16/O16,0) -> 0 | Q16: =P16/E16 -> 0 | T16: =IF(S16>0,R16/S16,0) -> 0 | U16: =T16/E16 -> 0
B17: Stefan | C17: 0 | D17: 0 | E17: 0.4084507042 | H17: 0 | I17: 0 | L17: 0 | M17: 0 | P17: 0 | Q17: 0 | T17: 0 | U17: 0
F18: =SUM(F3:F17) -> 160 | G18: =SUM(G3:G17) -> 151
D19: =AVERAGE(D3:D14) -> 0.9563441083 | E19: =AVERAGE(E3:E14) -> 0.7889142039

Sheet 20080425
A1: Pl | B1: Speler | C1: Netto | D1: Bruto | E1: Corr. | F1: Ronde 1 | J1: Ronde 2 | N1: Ronde 3 | R1: Ronde 4 | V1: Hoogste
E2: factor | F2: p | G2: b | H2: m | I2: c | J2: p | K2: b | L2: m | M2: c | N2: p | O2: b | P2: m | Q2: c | R2: p | S2: b | T2: m | U2: c | V2: serie
A3: 2 | B3: Hans M | C3: =D3/E3 -> 1.333333333 | D3: =IF(G3>0,(F3+J3+N3+R3)/(G3+K3+O3+S3),0) -> 1 | E3: 0.75 | F3: 20 | G3: 19 | H3: =IF(G3>0,F3/G3,0) -> 1.052631579 | I3: =H3/E3 -> 1.403508772 | J3: 16 | K3: 15 | L3: =IF(K3>0,J3/K3,0) -> 1.066666667 | M3: =L3/E3 -> 1.422222222 | N3: 16 | O3: 15 | P3: =IF(O3>0,N3/O3,0) -> 1.066666667 | Q3: =P3/E3 -> 1.422222222 | R3: 16 | S3: 19 | T3: =IF(S3>0,R3/S3,0) -> 0.8421052632 | U3: =T3/E3 -> 1.122807018
A4: 7 | B4: Peter B | C4: 1.266666667 | D4: 0.95 | E4: 0.75 | F4: 18 | G4: 14 | H4: =IF(G4>0,F4/G4,0) -> 1.285714286 | I4: 1.714285714 | J4: 12 | K4: 15 | L4: =IF(K4>0,J4/K4,0) -> 0.8 | M4: 1.066666667 | N4: 10 | O4: 14 | P4: 0.7142857143 | Q4: =P4/E4 -> 0.9523809524 | R4: 17 | S4: 17 | T4: 1 | U4: =T4/E4 -> 1.333333333 | V4: 7
A5: 1 | B5: Jan | C5: =D5/E5 -> 1.224242424 | D5: 1.53030303 | E5: 1.25 | F5: 26 | G5: 15 | H5: 1.733333333 | I5: =H5/E5 -> 1.386666667 | J5: 30 | K5: 18 | L5: 1.666666667 | M5: =L5/E5 -> 1.333333333 | N5: 25 | O5: 14 | P5: 1.785714286 | Q5: 1.428571429 | R5: 20 | S5: 19 | T5: 1.052631579 | U5: 0.8421052632
A6: 12 | B6: Stefan | C6: 1.021126761 | D6: 0.4084507042 | E6: 0.4 | F6: 7 | G6: 15 | H6: 0.4666666667 | I6: 1.166666667 | J6: 8 | K6: 14 | L6: 0.5714285714 | M6: 1.428571429 | N6: 9 | O6: 25 | P6: 0.36 | Q6: 0.9 | R6: 5 | S6: 17 | T6: 0.2941176471 | U6: 0.7352941176
A7: 13 | B7: Jeroen | C7: =D7/E7 -> 0.9830508475 | D7: =IF(G7>0,(F7+J7+N7+R7)/(G7+K7+O7+S7),0) -> 0.4915254237 | E7: 0.5 | F7: 2 | G7: 15 | H7: =IF(G7>0,F7/G7,0) -> 0.1333333333 | I7: =H7/E7 -> 0.2666666667 | J7: 9 | K7: 15 | L7: =IF(K7>0,J7/K7,0) -> 0.6 | M7: =L7/E7 -> 1.2 | N7: 8 | O7: 17 | P7: =IF(O7>0,N7/O7,0) -> 0.4705882353 | Q7: =P7/E7 -> 0.9411764706 | R7: 10 | S7: 12 | T7: =IF(S7>0,R7/S7,0) -> 0.8333333333 | U7: =T7/E7 -> 1.666666667
A8: 6 | B8: Emie | C8: 0.9464285714 | D8: 0.9464285714 | E8: 1 | F8: 7 | G8: 15 | H8: 0.4666666667 | I8: 0.4666666667 | J8: 10 | K8: 15 | L8: 0.6666666667 | M8: 0.6666666667 | N8: 21 | O8: 14 | P8: 1.5 | Q8: 1.5 | R8: 15 | S8: 12 | T8: 1.25 | U8: 1.25
A9: 5 | B9: Dick | C9: 0.9133489461 | D9: 0.6393442623 | E9: 0.7 | F9: 10 | G9: 15 | H9: =IF(G9>0,F9/G9,0) -> 0.6666666667 | I9: 0.9523809524 | J9: 7 | K9: 14 | L9: =IF(K9>0,J9/K9,0) -> 0.5 | M9: 0.7142857143 | N9: 5 | O9: 15 | P9: 0.3333333333 | Q9: 0.4761904762 | R9: 17 | S9: 17 | T9: 1 | U9: 1.428571429
A10: 11 | B10: George | C10: 0.8358208955 | D10: 0.6268656716 | E10: 0.75 | F10: 14 | G10: 19 | H10: 0.7368421053 | I10: 0.9824561404 | J10: 6 | K10: 14 | L10: 0.4285714286 | M10: 0.5714285714 | N10: 8 | O10: 17 | P10: =IF(O10>0,N10/O10,0) -> 0.4705882353 | Q10: 0.6274509804 | R10: 14 | S10: 17 | T10: =IF(S10>0,R10/S10,0) -> 0.8235294118 | U10: 1.098039216
A11: 14 | B11: Joep | C11: =D11/E11 -> 0.8229166667 | D11: =IF(G11>0,(F11+J11+N11+R11)/(G11+K11+O11+S11),0) -> 1.234375 | E11: 1.5 | F11: 13 | G11: 14 | H11: =IF(G11>0,F11/G11,0) -> 0.9285714286 | I11: =H11/E11 -> 0.619047619 | J11: 26 | K11: 18 | L11: =IF(K11>0,J11/K11,0) -> 1.444444444 | M11: =L11/E11 -> 0.962962963 | N11: 24 | O11: 15 | P11: =IF(O11>0,N11/O11,0) -> 1.6 | Q11: =P11/E11 -> 1.066666667 | R11: 16 | S11: 17 | T11: =IF(S11>0,R11/S11,0) -> 0.9411764706 | U11: =T11/E11 -> 0.6274509804
A12: 15 | B12: Hans B | C12: =D12/E12 -> 0.7424242424 | D12: =IF(G12>0,(F12+J12+N12+R12)/(G12+K12+O12+S12),0) -> 0.7424242424 | E12: 1 | F12: 13 | G12: 14 | H12: =IF(G12>0,F12/G12,0) -> 0.9285714286 | I12: =H12/E12 -> 0.9285714286 | J12: 9 | K12: 15 | L12: =IF(K12>0,J12/K12,0) -> 0.6 | M12: =L12/E12 -> 0.6 | N12: 21 | O12: 25 | P12: =IF(O12>0,N12/O12,0) -> 0.84 | Q12: =P12/E12 -> 0.84 | R12: 6 | S12: 12 | T12: =IF(S12>0,R12/S12,0) -> 0.5 | U12: =T12/E12 -> 0.5
A13: 10 | B13: Sjoerd | C13: 0.6944444444 | D13: 0.3125 | E13: 0.45 | F13: 2 | G13: 15 | H13: 0.1333333333 | I13: 0.2962962963 | J13: 2 | K13: 15 | L13: 0.1333333333 | M13: 0.2962962963 | N13: 6 | O13: 17 | P13: =IF(O13>0,N13/O13,0) -> 0.3529411765 | Q13: 0.7843137255 | R13: 10 | S13: 17 | T13: =IF(S13>0,R13/S13,0) -> 0.5882352941 | U13: 1.307189542
A14: 3 | B14: Peter D | C14: 0 | D14: 0 | E14: 1.15 | H14: 0 | I14: 0 | L14: 0 | M14: 0 | P14: 0 | Q14: 0 | T14: 0 | U14: 0
A15: 4 | B15: Eugene | C15: 0 | D15: 0 | E15: 0.65 | H15: =IF(G15>0,F15/G15,0) -> 0 | I15: 0 | L15: =IF(K15>0,J15/K15,0) -> 0 | M15: 0 | P15: 0 | Q15: 0 | T15: 0 | U15: 0
A16: 8 | B16: Hans dW | C16: 0 | D16: 0 | E16: 0.6 | H16: 0 | I16: 0 | L16: 0 | M16: 0 | P16: 0 | Q16: 0 | T16: 0 | U16: 0
A17: 9 | B17: Gerard | C17: 0 | D17: 0 | E17: 0.75 | H17: 0 | I17: 0 | L17: 0 | M17: 0 | P17: =IF(O17>0,N17/O17,0) -> 0 | Q17: 0 | T17: =IF(S17>0,R17/S17,0) -> 0 | U17: 0
D19: =AVERAGE(D3:D13) -> 0.8074742642 | E19: =AVERAGE(E3:E13) -> 0.8227272727

Sheet 20071214
A1: Pl | B1: Speler | C1: Netto | D1: Bruto | E1: Corr. | F1: Ronde 1 | J1: Ronde 2 | N1: Ronde 3 | R1: Ronde 4 | V1: Hoogste
E2: factor | F2: p | G2: b | H2: m | I2: c | J2: p | K2: b | L2: m | M2: c | N2: p | O2: b | P2: m | Q2: c | R2: p | S2: b | T2: m | U2: c | V2: serie
A3: 1 | B3: Joep | C3: =D3/E3 -> 1.124031008 | D3: =IF(G3>0,(F3+J3+N3+R3)/(G3+K3+O3+S3),0) -> 1.686046512 | E3: 1.5 | F3: 32 | G3: 22 | H3: =IF(G3>0,F3/G3,0) -> 1.454545455 | I3: =H3/E3 -> 0.9696969697 | J3: 47 | K3: 20 | L3: =IF(K3>0,J3/K3,0) -> 2.35 | M3: =L3/E3 -> 1.566666667 | N3: 36 | O3: 26 | P3: =IF(O3>0,N3/O3,0) -> 1.384615385 | Q3: =P3/E3 -> 0.9230769231 | R3: 30 | S3: 18 | T3: =IF(S3>0,R3/S3,0) -> 1.666666667 | U3: =T3/E3 -> 1.111111111
A4: 2 | B4: Peter B | C4: 1.092369478 | D4: 0.8192771084 | E4: 0.75 | F4: 9 | G4: 23 | H4: 0.3913043478 | I4: 0.5217391304 | J4: 21 | K4: 20 | L4: 1.05 | M4: 1.4 | N4: 14 | O4: 20 | P4: 0.7 | Q4: 0.9333333333 | R4: 24 | S4: 20 | T4: 1.2 | U4: 1.6
A5: 3 | B5: Gerard | C5: 0.9577464789 | D5: 0.7183098592 | E5: 0.75 | F5: 12 | G5: 21 | H5: 0.5714285714 | I5: 0.7619047619 | J5: 8 | K5: 14 | L5: 0.5714285714 | M5: 0.7619047619 | N5: 20 | O5: 16 | P5: 1.25 | Q5: 1.666666667 | R5: 11 | S5: 20 | T5: 0.55 | U5: 0.7333333333
A6: 4 | B6: Jeroen | C6: 0.95 | D6: 0.475 | E6: 0.5 | F6: 15 | G6: 22 | H6: 0.6818181818 | I6: 1.363636364 | J6: 8 | K6: 20 | L6: 0.4 | M6: 0.8 | N6: 8 | O6: 16 | P6: 0.5 | Q6: 1 | R6: 7 | S6: 22 | T6: 0.3181818182 | U6: 0.6363636364
A7: 5 | B7: Hans M | C7: 0.9177489177 | D7: 0.6883116883 | E7: 0.75 | F7: 10 | G7: 23 | H7: 0.4347826087 | I7: 0.5797101449 | J7: 21 | K7: 20 | L7: 1.05 | M7: 1.4 | N7: 10 | O7: 16 | P7: 0.625 | Q7: 0.8333333333 | R7: 12 | S7: 18 | T7: 0.6666666667 | U7: 0.8888888889
A8: 6 | B8: Jan | C8: 0.8625 | D8: 1.078125 | E8: 1.25 | F8: 9 | G8: 15 | H8: 0.6 | I8: 0.48 | J8: 26 | K8: 14 | L8: 1.857142857 | M8: 1.485714286 | N8: 22 | O8: 16 | P8: 1.375 | Q8: 1.1 | R8: 12 | S8: 19 | T8: 0.6315789474 | U8: 0.5052631579
A9: 7 | B9: George | C9: 0.8034188034 | D9: 0.6025641026 | E9: 0.75 | F9: 13 | G9: 23 | H9: 0.5652173913 | I9: 0.7536231884 | J9: 15 | K9: 20 | L9: 0.75 | M9: 1 | N9: 10 | O9: 16 | P9: 0.625 | Q9: 0.8333333333 | R9: 9 | S9: 19 | T9: 0.4736842105 | U9: 0.6315789474
A10: 8 | B10: Dick | C10: 0.7142857143 | D10: 0.5 | E10: 0.7 | F10: 13 | G10: 21 | H10: 0.619047619 | I10: 0.8843537415 | J10: 4 | K10: 14 | L10: 0.2857142857 | M10: 0.4081632653 | N10: 9 | O10: 16 | P10: 0.5625 | Q10: 0.8035714286 | R10: 9 | S10: 19 | T10: 0.4736842105 | U10: 0.6766917293
A11: 9 | B11: Hans B | C11: 0.6438356164 | D11: 0.6438356164 | E11: 1 | F11: 18 | G11: 15 | H11: 1.2 | I11: 1.2 | J11: 9 | K11: 20 | L11: 0.45 | M11: 0.45 | N11: 14 | O11: 20 | P11: 0.7 | Q11: 0.7 | R11: 6 | S11: 18 | T11: 0.3333333333 | U11: 0.3333333333
A12: 10 | B12: Sjoerd | C12: 0.6385696041 | D12: 0.2873563218 | E12: 0.45 | F12: 7 | G12: 21 | H12: 0.3333333333 | I12: 0.7407407407 | J12: 8 | K12: 20 | L12: 0.4 | M12: 0.8888888889 | N12: 5 | O12: 26 | P12: 0.1923076923 | Q12: 0.4273504274 | R12: 5 | S12: 20 | T12: 0.25 | U12: 0.5555555556
A13: 11 | B13: Hans dW | C13: 0.6224899598 | D13: 0.3734939759 | E13: 0.6 | F13: 3 | G13: 15 | H13: 0.2 | I13: 0.3333333333 | J13: 7 | K13: 20 | L13: 0.35 | M13: 0.5833333333 | N13: 10 | O13: 26 | P13: 0.3846153846 | Q13: 0.641025641 | R13: 11 | S13: 22 | T13: 0.5 | U13: 0.8333333333
A14: 12 | B14: Peter D | C14: 0.5175983437 | D14: 0.5952380952 | E14: 1.15 | F14: 18 | G14: 22 | H14: 0.8181818182 | I14: 0.7114624506 | J14: 4 | K14: 20 | L14: 0.2 | M14: 0.1739130435 | N14: 13 | O14: 20 | P14: 0.65 | Q14: 0.5652173913 | R14: 15 | S14: 22 | T14: 0.6818181818 | U14: 0.5928853755
A15: 13 | B15: Eugene | C15: 0 | D15: 0 | E15: 0.65 | H15: 0 | I15: 0 | L15: 0 | M15: 0 | P15: 0 | Q15: 0 | T15: 0 | U15: 0
A16: 14 | B16: Emie | C16: 0 | D16: 0 | E16: 1 | H16: 0 | I16: 0 | L16: 0 | M16: 0 | P16: 0 | Q16: 0 | T16: 0 | U16: 0
A17: 15 | B17: Stefan | C17: 0 | D17: 0 | E17: 0.4 | H17: 0 | I17: 0 | L17: 0 | M17: 0 | P17: 0 | Q17: 0 | T17: 0 | U17: 0
D19: =AVERAGE(D3:D14) -> 0.7056298566 | E19: =AVERAGE(E3:E14) -> 0.8458333333

Sheet 20070420
A1: Pl | B1: Speler | C1: Netto | D1: Bruto | E1: Corr. | F1: Ronde 1 | J1: Ronde 2 | N1: Ronde 3 | R1: Ronde 4 | V1: Hoogste
E2: factor | F2: p | G2: b | H2: m | I2: c | J2: p | K2: b | L2: m | M2: c | N2: p | O2: b | P2: m | Q2: c | R2: p | S2: b | T2: m | U2: c | V2: serie
A3: 1 | B3: Jan | C3: =D3/E3 -> 1.2 | D3: =IF(G3>0,(F3+J3+N3+R3)/(G3+K3+O3+S3),0) -> 1.5 | E3: 1.25 | F3: 22 | G3: 19 | H3: =IF(G3>0,F3/G3,0) -> 1.157894737 | I3: =H3/E3 -> 0.9263157895 | J3: 31 | K3: 16 | L3: =IF(K3>0,J3/K3,0) -> 1.9375 | M3: =L3/E3 -> 1.55 | N3: 33 | O3: 17 | P3: =IF(O3>0,N3/O3,0) -> 1.941176471 | Q3: =P3/E3 -> 1.552941176 | R3: 31 | S3: 26 | T3: =IF(S3>0,R3/S3,0) -> 1.192307692 | U3: =T3/E3 -> 0.9538461538 | V3: 9
A4: 2 | B4: Hans M | C4: =D4/E4 -> 1.149425287 | D4: 0.8620689655 | E4: 0.75 | F4: 22 | G4: 20 | H4: 1.1 | I4: =H4/E4 -> 1.466666667 | J4: 27 | K4: 32 | L4: 0.84375 | M4: =L4/E4 -> 1.125 | N4: 11 | O4: 17 | P4: 0.6470588235 | Q4: =P4/E4 -> 0.862745098 | R4: 15 | S4: 18 | T4: 0.8333333333 | U4: =T4/E4 -> 1.111111111 | V4: 5
A5: 3 | B5: Peter D | C5: 1.125858124 | D5: 1.294736842 | E5: 1.15 | F5: 34 | G5: 33 | H5: 1.03030303 | I5: 0.8959156785 | J5: 36 | K5: 19 | L5: 1.894736842 | M5: 1.647597254 | N5: 15 | O5: 17 | P5: 0.8823529412 | Q5: 0.7672634271 | R5: 38 | S5: 26 | T5: 1.461538462 | U5: 1.27090301 | V5: 7
A6: 4 | B6: Eugene | C6: 0.9542356378 | D6: 0.6202531646 | E6: 0.65 | F6: 12 | G6: 20 | H6: =IF(G6>0,F6/G6,0) -> 0.6 | I6: 0.9230769231 | J6: 15 | K6: 19 | L6: =IF(K6>0,J6/K6,0) -> 0.7894736842 | M6: 1.214574899 | N6: 9 | O6: 17 | P6: 0.5294117647 | Q6: 0.814479638 | R6: 13 | S6: 23 | T6: 0.5652173913 | U6: 0.8695652174 | V6: 3
A7: 5 | B7: Dick | C7: 0.9183673469 | D7: 0.6428571429 | E7: 0.7 | F7: 12 | G7: 20 | H7: =IF(G7>0,F7/G7,0) -> 0.6 | I7: 0.8571428571 | J7: 14 | K7: 16 | L7: =IF(K7>0,J7/K7,0) -> 0.875 | M7: 1.25 | N7: 22 | O7: 30 | P7: 0.7333333333 | Q7: 1.047619048 | R7: 6 | S7: 18 | T7: 0.3333333333 | U7: 0.4761904762 | V7: 5
A8: 6 | B8: Emie | C8: 0.9 | D8: 0.9 | E8: 1 | F8: 14 | G8: 20 | H8: 0.7 | I8: 0.7 | J8: 15 | K8: 19 | L8: 0.7894736842 | M8: 0.7894736842 | N8: 18 | O8: 23 | P8: 0.7826086957 | Q8: 0.7826086957 | R8: 25 | S8: 18 | T8: 1.388888889 | U8: 1.388888889 | V8: 4
A9: 7 | B9: Peter B | C9: 0.8561403509 | D9: 0.6421052632 | E9: 0.75 | F9: 22 | G9: 33 | H9: =IF(G9>0,F9/G9,0) -> 0.6666666667 | I9: 0.8888888889 | J9: 11 | K9: 16 | L9: =IF(K9>0,J9/K9,0) -> 0.6875 | M9: 0.9166666667 | N9: 19 | O9: 23 | P9: 0.8260869565 | Q9: 1.101449275 | R9: 9 | S9: 23 | T9: 0.3913043478 | U9: 0.5217391304 | V9: 4
A10: 8 | B10: Hans dW | C10: 0.7978723404 | D10: 0.4787234043 | E10: 0.6 | F10: 7 | G10: 20 | H10: 0.35 | I10: 0.5833333333 | J10: 10 | K10: 32 | L10: 0.3125 | M10: 0.5208333333 | N10: 13 | O10: 17 | P10: 0.7647058824 | Q10: 1.274509804 | R10: 15 | S10: 25 | T10: 0.6 | U10: 1 | V10: 5
A11: 9 | B11: Gerard | C11: 0.735042735 | D11: 0.5512820513 | E11: 0.75 | F11: 10 | G11: 19 | H11: 0.5263157895 | I11: 0.701754386 | J11: 11 | K11: 19 | L11: 0.5789473684 | M11: 0.7719298246 | N11: 9 | O11: 17 | P11: =IF(O11>0,N11/O11,0) -> 0.5294117647 | Q11: 0.7058823529 | R11: 13 | S11: 23 | T11: =IF(S11>0,R11/S11,0) -> 0.5652173913 | U11: 0.7536231884 | V11: 3
A12: 10 | B12: Sjoerd | C12: 0.7235142119 | D12: 0.3255813953 | E12: 0.45 | F12: 4 | G12: 19 | H12: 0.2105263158 | I12: 0.4678362573 | J12: 11 | K12: 19 | L12: 0.5789473684 | M12: 1.286549708 | N12: 6 | O12: 23 | P12: =IF(O12>0,N12/O12,0) -> 0.2608695652 | Q12: 0.5797101449 | R12: 7 | S12: 25 | T12: =IF(S12>0,R12/S12,0) -> 0.28 | U12: 0.6222222222 | V12: 4
A13: 11 | B13: George | C13: 0.6382978723 | D13: 0.4787234043 | E13: 0.75 | F13: 12 | G13: 20 | H13: 0.6 | I13: 0.8 | J13: 11 | K13: 19 | L13: 0.5789473684 | M13: 0.7719298246 | N13: 13 | O13: 30 | P13: =IF(O13>0,N13/O13,0) -> 0.4333333333 | Q13: 0.5777777778 | R13: 9 | S13: 25 | T13: =IF(S13>0,R13/S13,0) -> 0.36 | U13: 0.48 | V13: 3
A14: 12 | B14: Stefan | C14: 0 | D14: 0 | E14: 0.4 | H14: 0 | I14: 0 | L14: 0 | M14: 0 | P14: 0 | Q14: 0 | T14: 0 | U14: 0
D19: =AVERAGE(D3:D13) -> 0.7542119667 | E19: =AVERAGE(E3:E13) -> 0.8

Sheet Moyennes
B1: DAG MOYENNE | C1: DATUM | D1: MOYENNE LAATSTE 4 KEER
A2: Cuma | B2: 0.6470588235 | C2: 2019-05-27 | D2: =AVERAGEIF(B2:B2,">0") -> 0.6470588235
A3: Dick | B3: 0.6428571429 | C3: 2007-04-20
A4: Dick | B4: 0.5 | C4: 2007-12-14
A5: Dick | B5: 0.6393442623 | C5: 2008-04-25
A6: Dick | B6: 0 | C6: 2008-12-19
A7: Dick | B7: 0.5303030303 | C7: 2009-05-08 | D7: =AVERAGEIF(B3:B7,">0") -> 0.5781261089
A8: Dick | B8: 0.4098360656 | C8: 2011-01-21 | D8: =AVERAGEIF(B4:B8,">0") -> 0.5198708395
A9: Dick | B9: 0.5 | C9: 2011-07-15 | D9: =AVERAGEIF(B5:B9,">0") -> 0.5198708395
A10: Ed | B10: 0.4653465347 | C10: 2014-05-09 | D10: =AVERAGEIF(B10:B10,">0") -> 0.4653465347
A11: Ed | B11: 0.6885245902 | C11: 2014-12-08 | D11: =AVERAGEIF(B10:B11,">0") -> 0.5769355624
A12: Ed | B12: 0.6179775281 | C12: 2015-05-22 | D12: =AVERAGEIF(B10:B12,">0") -> 0.5906162176
A13: Ed | B13: 0.6476190476 | C13: 2015-12-07 | D13: =AVERAGEIF(B10:B13,">0") -> 0.6048669251
A14: Ed | B14: 0.5308641975 | C14: 2016-05-13 | D14: 0.6212463409
A15: Ed | B15: 0.6181818182 | C15: 2016-12-09 | D15: 0.6036606479
A16: Ed | B16: 0.5540540541 | C16: 2017-05-22 | D16: 0.5876797793
A17: Ed | B17: 0.786407767 | C17: 2018-05-14 | D17: 0.6223769592
A18: Ed | B18: 0.5256410256 | C18: 2018-12-03 | D18: 0.6210711662
A19: Ed | B19: 0.6836734694 | C19: 2019-05-27 | D19: 0.637444079
A20: Ed | B20: 0.58 | C20: 2019-12-09 | D20: 0.6439305655
A21: Emie | B21: 0.9 | C21: 2007-04-20
A22: Emie | B22: 0 | C22: 2007-12-14
A23: Emie | B23: 0.9464285714 | C23: 2008-04-25
A24: Emie | B24: 1.290909091 | C24: 2008-12-19 | D24: =AVERAGEIF(B21:B24,">0") -> 1.045779221
A25: Emie | B25: 1.25 | C25: 2009-05-08 | D25: =AVERAGEIF(B21:B25,">0") -> 1.096834416
A26: Emie | B26: 0.8082191781 | C26: 2009-12-11 | D26: =AVERAGEIF(B23:B26,">0") -> 1.07388921
A27: Emie | B27: 1.0375 | C27: 2010-05-07 | D27: 1.096657067
A28: Emie | B28: 0.7910447761 | C28: 2011-12-23 | D28: 0.9716909886
A29: Emie | B29: 0.8064516129 | C29: 2012-05-11 | D29: 0.8608038918
A30: Emie | B30: 0.90625 | C30: 2012-11-30 | D30: 0.8853115973
A31: Emie | B31: 1.176470588 | C31: 2013-05-06 | D31: 0.9200542443
A32: Emie | B32: 0.701754386 | C32: 2013-12-06 | D32: 0.8977316468
A33: Emie | B33: 1.166666667 | C33: 2014-12-08 | D33: 0.9877854102
A34: Emie | B34: 0.8850574713 | C34: 2015-05-22 | D34: 0.982487278
A35: Emie | B35: 0.8 | C35: 2015-12-07 | D35: 0.888369631
A36: Emie | B36: 0.904109589 | C36: 2016-05-13 | D36: 0.9389584317
A37: Emie | B37: 0.9782608696 | C37: 2016-12-09 | D37: 0.8918569825
A38: Emie | B38: 1.086956522 | C38: 2017-05-22 | D38: 0.9423317451
A39: Emie | B39: 1.179487179 | C39: 2017-12-04 | D39: 1.03720354
A40: Emie | B40: 0.8415841584 | C40: 2018-05-14 | D40: 1.021572182
A41: Emie | B41: 0.8315789474 | C41: 2018-12-03 | D41: 0.9849017018
A42: Emie | B42: 1.108433735 | C42: 2019-05-27 | D42: 0.9902710051
A43: Emie | B43: 1.02739726 | C43: 2019-12-09 | D43: 0.9522485252
A44: Eugene | B44: 0.6202531646 | C44: 2007-04-20 | D44: =AVERAGEIF(B44:B44,">0") -> 0.6202531646
A45: Frank | B45: 0.6896551724 | C45: 2011-01-21 | D45: =AVERAGEIF(B45:B45,">0") -> 0.6896551724
A46: Frank | B46: 0.7142857143 | C46: 2011-07-15 | D46: =AVERAGEIF(B45:B46,">0") -> 0.7019704433
A47: Frank | B47: 0.5681818182 | C47: 2011-12-23 | D47: =AVERAGEIF(B45:B47,">0") -> 0.657374235
A48: Frank | B48: 0.6029411765 | C48: 2012-11-30 | D48: =AVERAGEIF(B45:B48,">0") -> 0.6437659703
A49: Frank | B49: 0.5918367347 | C49: 2013-05-06 | D49: 0.6193113609
A50: Frank | B50: 0.4464285714 | C50: 2013-12-06 | D50: 0.5523470752
A51: Frank | B51: 0.6666666667 | C51: 2014-12-08 | D51: 0.5769682873
A52: Frank | B52: 0.5454545455 | C52: 2015-05-22 | D52: 0.5625966296
A53: Frank | B53: 0.527027027 | C53: 2015-12-07 | D53: 0.5463942026
A54: Frank | B54: 0.7142857143 | C54: 2016-05-13 | D54: 0.6133584884
A55: George | B55: 0.4787234043 | C55: 2007-04-20
A56: George | B56: 0.6025641026 | C56: 2007-12-14
A57: George | B57: 0.6268656716 | C57: 2008-04-25
A58: George | B58: 0.9016393443 | C58: 2008-12-19 | D58: =AVERAGEIF(B55:B58,">0") -> 0.6524481307
A59: George | B59: 0.552238806 | C59: 2009-05-08 | D59: 0.6708269811
A60: George | B60: 0.8596491228 | C60: 2009-12-11 | D60: 0.7350982362
A61: George | B61: 0.7872340426 | C61: 2010-05-07 | D61: 0.7751903289
A62: George | B62: 0.765625 | C62: 2011-01-21 | D62: 0.7411867428
A63: George | B63: 0.7213114754 | C63: 2012-05-11 | D63: 0.7834549102
A64: George | B64: 0.6333333333 | C64: 2012-11-30 | D64: 0.7268759628
A65: George | B65: 0.6119402985 | C65: 2013-05-06 | D65: 0.6830525268
A66: George | B66: 0.5882352941 | C66: 2013-12-06 | D66: 0.6387051003
A67: George | B67: 0.6703296703 | C67: 2014-05-09 | D67: 0.6259596491
A68: George | B68: 0.35 | C68: 2014-12-08 | D68: 0.5551263157
A69: George | B69: 0.5617977528 | C69: 2015-05-22 | D69: 0.5425906793
A70: George | B70: 0.6056338028 | C70: 2015-12-07 | D70: 0.5469403065
A71: George | B71: 0.630952381 | C71: 2016-05-13 | D71: 0.5370959841
A72: George | B72: 0.5252525253 | C72: 2016-12-09 | D72: 0.5809091155
A73: George | B73: 0.5949367089 | C73: 2017-05-22 | D73: 0.5891938545
A74: George | B74: 0.8181818182 | C74: 2017-12-04 | D74: 0.6423308583
A75: George | B75: 0.7222222222 | C75: 2018-12-03 | D75: 0.6651483186
A76: George | B76: 0.6470588235 | C76: 2019-05-27 | D76: 0.6955998932
A77: Gerard | B77: 0.5512820513 | C77: 2007-04-20
A78: Gerard | B78: 0.7183098592 | C78: 2007-12-14
A79: Gerard | B79: 0 | C79: 2008-04-25
A80: Gerard | B80: 0.8983050847 | C80: 2008-12-19 | D80: =AVERAGEIF(B77:B80,">0") -> 0.7226323317
A81: Gerard | B81: 0.75 | C81: 2009-05-08 | D81: 0.788871648
A82: Gerard | B82: 0.8333333333 | C82: 2009-12-11 | D82: 0.827212806
A83: Gerard | B83: 0.75 | C83: 2010-05-07 | D83: 0.8079096045
A84: Gerard | B84: 0.6964285714 | C84: 2011-01-21 | D84: 0.7574404762
A85: Gerard | B85: 0.6933333333 | C85: 2011-07-15 | D85: 0.7432738095
A86: Gerard | B86: 0.671641791 | C86: 2011-12-23 | D86: 0.702850924
A87: Gerard | B87: 0.7843137255 | C87: 2012-05-11 | D87: 0.7114293553
A88: Gerard | B88: 0.8636363636 | C88: 2012-11-30 | D88: 0.7532313034
A89: Gerard | B89: 0.7592592593 | C89: 2013-05-06 | D89: 0.7697127849
A90: Gerard | B90: 0.868852459 | C90: 2013-12-06 | D90: 0.8190154519
A91: Gerard | B91: 1.125 | C91: 2014-12-08 | D91: 0.9041870205
A92: Gerard | B92: 0.9315068493 | C92: 2015-05-22 | D92: 0.9211546419
A93: Gerard | B93: 1.039473684 | C93: 2015-12-07 | D93: 0.9912082481
A94: Gerard | B94: 1.424242424 | C94: 2016-05-13 | D94: 1.130055739
A95: Gerard | B95: 1.154761905 | C95: 2016-12-09 | D95: 1.137496216
A96: Gerard | B96: 1.348484848 | C96: 2017-05-22 | D96: 1.241740715
A97: Gerard | B97: 1.171052632 | C97: 2017-12-04 | D97: 1.274635452
A98: Hans B | B98: 0.6438356164 | C98: 2007-12-14
A99: Hans B | B99: 0.7424242424 | C99: 2008-04-25 | D99: =AVERAGEIF(B98:B99,">0") -> 0.6931299294
A100: Hans B | B100: 0.6935483871 | C100: 2008-12-19 | D100: =AVERAGEIF(B98:B100,">0") -> 0.6932694153
A101: Hans B | B101: 1.264150943 | C101: 2009-05-08 | D101: =AVERAGEIF(B98:B101,">0") -> 0.8359897973
A102: Hans B | B102: 0.8846153846 | C102: 2009-12-11 | D102: 0.8961847394
A103: Hans B | B103: 0.7283950617 | C103: 2010-05-07 | D103: 0.8926774442
A104: Hans B | B104: 0.8166666667 | C104: 2011-01-21 | D104: 0.9234570141
A105: Hans B | B105: 0.8831168831 | C105: 2011-07-15 | D105: 0.828198499
A106: Hans B | B106: 0.6612903226 | C106: 2011-12-23 | D106: 0.7723672335
A107: Hans B | B107: 0.7105263158 | C107: 2012-05-11 | D107: 0.767900047
A108: Hans B | B108: 0.8666666667 | C108: 2012-11-30 | D108: 0.780400047
A109: Hans B | B109: 0.9166666667 | C109: 2013-12-06 | D109: 0.7887874929
A110: Hans B | B110: 1.018518519 | C110: 2014-12-08 | D110: 0.8780945419
A111: Hans B | B111: 0.7922077922 | C111: 2015-05-22 | D111: 0.898514911
A112: Hans B | B112: 0.6464646465 | C112: 2015-12-07 | D112: 0.843464406
A113: Hans B | B113: 0.8181818182 | C113: 2016-05-13 | D113: 0.8188431938
A114: Hans B | B114: 0.61 | C114: 2016-12-09 | D114: 0.7167135642
A115: Hans B | B115: 0.7246376812 | C115: 2017-05-22 | D115: 0.6998210365
A116: Hans B | B116: 0.9480519481 | C116: 2017-12-04 | D116: 0.7752178618
A117: Hans B | B117: 0.7575757576 | C117: 2018-05-14 | D117: 0.7600663467
A118: Hans B | B118: 0.7317073171 | C118: 2018-12-03 | D118: 0.790493176
A119: Hans B | B119: 0.7901234568 | C119: 2019-05-27 | D119: 0.8068646199
A120: Hans B | B120: 0.8732394366 | C120: 2019-12-09 | D120: 0.788161492
A121: Hans dW | B121: 0.4787234043 | C121: 2007-04-20
A122: Hans dW | B122: 0.3734939759 | C122: 2007-12-14 | D122: =AVERAGEIF(B121:B122,">0") -> 0.4261086901
A123: Hans dW | B123: 0 | C123: 2008-04-25 | D123: =AVERAGEIF(B121:B123,">0") -> 0.4261086901
A124: Hans dW | B124: 0.5901639344 | C124: 2008-12-19 | D124: =AVERAGEIF(B121:B124,">0") -> 0.4807937715
A125: Hans dW | B125: 0.5 | C125: 2009-05-08 | D125: =AVERAGEIF(B121:B125,">0") -> 0.4855953286
A126: Hans dW | B126: 0.5512820513 | C126: 2009-12-11 | D126: =AVERAGEIF(B122:B126,">0") -> 0.5037349904
A127: Hans dW | B127: 0.5967741935 | C127: 2011-01-21 | D127: =AVERAGEIF(B123:B127,">0") -> 0.5595550448
A128: Hans dW | B128: 0.3939393939 | C128: 2011-12-23 | D128: =AVERAGEIF(B125:B128,">0") -> 0.5104989097
A129: Hans dW | B129: 0.4262295082 | C129: 2012-05-11 | D129: 0.4920562867
A130: Hans dW | B130: 0.5535714286 | C130: 2013-05-06 | D130: 0.4926286311
A131: Hans dW | B131: 0.4444444444 | C131: 2013-12-06 | D131: 0.4545461938
A132: Hans dW | B132: 0.5483870968 | C132: 2014-05-09 | D132: 0.4931581195
A133: Hans dW | B133: 0.5555555556 | C133: 2014-12-08 | D133: 0.5254896313
A134: Hans dW | B134: 0.4931506849 | C134: 2015-05-22 | D134: 0.5103844454
A135: Hans dW | B135: 0.4047619048 | C135: 2015-12-07 | D135: 0.5004638105
A136: Hans dW | B136: 0.3421052632 | C136: 2016-12-09 | D136: 0.4488933521
A137: Hans dW | B137: 0.275 | C137: 2017-05-22 | D137: 0.3787544632
A138: Hans dW | B138: 0.3815789474 | C138: 2017-12-04 | D138: 0.3508615288
A139: Hans dW | B139: 0.3398058252 | C139: 2018-05-14 | D139: 0.3346225089
A140: Hans dW | B140: 0.6231884058 | C140: 2018-12-03 | D140: 0.4048932946
A141: Hans dW | B141: 0.4712643678 | C141: 2019-05-27 | D141: 0.4539593866
A142: Hans dW | B142: 0.5632183908 | C142: 2019-12-09 | D142: 0.4993692474
A143: Hans M | B143: 0.8620689655 | C143: 2007-04-20 | D143: =AVERAGEIF(B143:B143,">0") -> 0.8620689655
A144: Hans M | B144: 0.6883116883 | C144: 2007-12-14 | D144: =AVERAGEIF(B143:B144,">0") -> 0.7751903269
A145: Hans M | B145: 1 | C145: 2008-04-25 | D145: =AVERAGEIF(B143:B145,">0") -> 0.8501268846
A146: Hans M | B146: 0.7254901961 | C146: 2008-12-19 | D146: =AVERAGEIF(B143:B146,">0") -> 0.8189677125
A147: Hans M | B147: 0.6 | C147: 2009-12-11 | D147: 0.7534504711
A148: Hans M | B148: 0.8548387097 | C148: 2011-01-21 | D148: 0.7950822264
A149: Hans M | B149: 0.8 | C149: 2011-07-15 | D149: 0.7450822264
A150: Hans M | B150: 0.724137931 | C150: 2011-12-23 | D150: 0.7447441602
A151: Hans M | B151: 0.6056338028 | C151: 2012-05-11 | D151: 0.7461526109
A152: Hans M | B152: 0.5789473684 | C152: 2012-11-30 | D152: 0.6771797756
A153: Hans M | B153: 0.8703703704 | C153: 2013-12-06 | D153: 0.6947723682
A154: Hans M | B154: 0.54 | C154: 2014-05-09 | D154: 0.6487378854
A155: Hans M | B155: 0.4285714286 | C155: 2014-12-08 | D155: 0.6044722918
A156: Hans M | B156: 0.875 | C156: 2015-05-22 | D156: 0.6784854497
A157: Hans M | B157: 0.6306306306 | C157: 2016-12-09 | D157: 0.6185505148
A158: Hans M | B158: 0.5824175824 | C158: 2017-05-22 | D158: 0.6291549104
A159: Hans M | B159: 0.6506024096 | C159: 2017-12-04 | D159: 0.6846626557
A160: Hans M | B160: 0.7075471698 | C160: 2018-05-14 | D160: 0.6427994481
A161: Hans M | B161: 0.7078651685 | C161: 2019-05-27 | D161: 0.6621080826
A162: Hans M | B162: 0.5 | C162: 2019-12-09 | D162: 0.641503687
A163: Hein | B163: 0.625 | C163: 2018-12-03 | D163: =AVERAGEIF(B163:B163,">0") -> 0.625
A164: Jan | B164: 1.5 | C164: 2007-04-20
A165: Jan | B165: 1.078125 | C165: 2007-12-14 | D165: =AVERAGEIF(B164:B165,">0") -> 1.2890625
A166: Jan | B166: 1.53030303 | C166: 2008-04-25 | D166: =AVERAGEIF(B164:B166,">0") -> 1.36947601
A167: Jan | B167: 1.55 | C167: 2008-12-19 | D167: =AVERAGEIF(B164:B167,">0") -> 1.414607008
A168: Jan | B168: 0.8375 | C168: 2009-05-08 | D168: 1.248982008
A169: Jan | B169: 1.086206897 | C169: 2009-12-11 | D169: 1.251002482
A170: Jan | B170: 1.168674699 | C170: 2010-05-07 | D170: 1.160595399
A171: Jan | B171: 0.953125 | C171: 2011-01-21 | D171: 1.011376649
A172: Jan | B172: 1.325 | C172: 2011-07-15 | D172: 1.133251649
A173: Jan | B173: 1.242857143 | C173: 2011-12-23 | D173: 1.17241421
A174: Jan | B174: 1.133333333 | C174: 2012-05-11 | D174: 1.163578869
A175: Jan | B175: 1.333333333 | C175: 2012-11-30 | D175: 1.258630952
A176: Jan | B176: 1.491803279 | C176: 2013-12-06 | D176: 1.300331772
A177: Jan | B177: 1.127906977 | C177: 2014-05-09 | D177: 1.271594231
A178: Jan | B178: 1.614035088 | C178: 2014-12-08 | D178: 1.391769669
A179: Jan | B179: 1.573333333 | C179: 2015-05-22 | D179: 1.451769669
A180: Jan | B180: 1.714285714 | C180: 2015-12-07 | D180: 1.507390278
A181: Jan | B181: 1.416666667 | C181: 2016-05-13 | D181: 1.579580201
A182: Jan | B182: 1.958333333 | C182: 2016-12-09 | D182: 1.665654762
A183: Jan | B183: 1.625 | C183: 2017-05-22 | D183: 1.678571429
A184: Jan | B184: 1.765432099 | C184: 2017-12-04 | D184: 1.691358025
A185: Jan | B185: 1.6 | C185: 2018-05-14 | D185: 1.737191358
A186: Jan | B186: 1.851851852 | C186: 2018-12-03 | D186: 1.710570988
A187: Jan | B187: 2.220779221 | C187: 2019-05-27 | D187: 1.859515793
A188: Jan | B188: 2.146666667 | C188: 2019-12-09 | D188: 1.954824435
A189: Jeroen | B189: 0.475 | C189: 2007-12-14
A190: Jeroen | B190: 0.4915254237 | C190: 2008-04-25
A191: Jeroen | B191: 0.6666666667 | C191: 2008-12-19 | D191: =AVERAGEIF(B189:B191,">0") -> 0.5443973635
A192: Joep | B192: 1.686046512 | C192: 2007-12-14
A193: Joep | B193: 1.234375 | C193: 2008-04-25
A194: Joep | B194: 1.509433962 | C194: 2008-12-19
A195: Joep | B195: 1.289855072 | C195: 2009-05-08 | D195: =AVERAGEIF(B192:B195,">0") -> 1.429927637
A196: Joep | B196: 1.696969697 | C196: 2009-12-11 | D196: 1.432658433
A197: Joep | B197: 1.865853659 | C197: 2010-05-07 | D197: 1.590528098
A198: Joep | B198: 2 | C198: 2011-01-21 | D198: 1.713169607
A199: Joep | B199: 1.12345679 | C199: 2011-07-15 | D199: 1.671570036
A200: Joep | B200: 1.447058824 | C200: 2011-12-23 | D200: 1.609092318
... 85 more rows
